{"text_format":"3","workbook":"xlsx","n_sheets":11,"sheets":["Meni","Obrazac5","K9OOSO","OZPR","Transferi","BO","Krv1","Krv2a","Krv2b","DP","KontrolaF"],"not_rendered":{"images":34,"macros":1,"defined_names":78},"read":"whole","date_system":"1900"}

{"sheet":"Meni","index":0,"n_rows":381,"n_cols":7,"rows_kept":381,"merged":[[0,0,0,5],[1,0,1,5],[9,2,9,3],[10,2,10,3],[11,2,11,3],[12,2,12,3],[13,2,13,3],[17,4,17,5]]}
["Деветомесечни извештај здравствених установа 2020"]
["Изаберите филијалу, здравствену установу, упишите датум попуњавања, попуните податке о здравственој установи, попуните обрасцe и податке сачувајте кликом на дугме САЧУВАЈ (назив документа треба да буде шифра установе)"]
[]
[]
[]
[]
[null,null,"10.10.2020."]
[]
[]
[null,null," Специјана болница \"Озрен\""]
[null,null," Сокобања"]
[null,null," 07128541"]
[null,null," 102174689"]
[null,null," 840-538661-68"]
[]
[]
[]
[]
[]
[]
[{"$nulls":6},{"$f":" IF(KontrolaF!J12 =\"\",\"Filijala nije obavila dodatnu kontrolu!\", \"Filijala je obavila dodatnu kontrolu!\")","v":"Filijala nije obavila dodatnu kontrolu!"}]
{"$rows_empty":7}
["20 НИШ",{"$f":"LEFT(A29,2)","v":"20"},null,"00220011 СП Б ОЗРЕН",{"$f":"LEFT(D29,8)","v":"00220011"}]
["01 СУБОТИЦА","01","00201001 ДЗ Б ТОПОЛА","00220001 ДЗ ГАЏИН ХАН"]
["02 ЗРЕЊАНИН","01","00201002 ДЗ М ИЂОШ","00220002 ДЗ ДОЉЕВАЦ"]
["03 КИКИНДА","01","00201004 ЗЈЗ СУБОТИЦА","00220003 ДЗ СВРЉИГ"]
["04 ПАНЧЕВО","01","00201005 АП СУБОТИЦА","00220004 ДЗ СОКОБАЊА"]
["05 СОМБОР","01","00201006 ДЗ СУБОТИЦА","00220005 ДЗ НИШ"]
["06 НОВИ САД","01","00201007 ОБ СУБОТИЦА","00220006 ДЗ МЕРОШИНА"]
["07 СРЕМСКА МИТРОВИЦА","02","00202001 ДЗ ЖИТИШТЕ","00220007 ДЗ РАЖАЊ"]
["08 ШАБАЦ","02","00202003 ДЗ Н  БЕЧЕЈ","00220009 СП Б ТОПОНИЦА"]
["09 ВАЉЕВО","02","00202004 ДЗ СЕЧАЊ","00220010 СП Б СОКО БАЊА"]
["10 СМЕДЕРЕВО","02","00202005 ДЗ С ЦРЊА","00220011 СП Б ОЗРЕН"]
["11 ПОЖАРЕВАЦ","02","00202007 СП Б МЕЛЕНЦИ","00220012 ХМП НИШ"]
["12 КРАГУЈЕВАЦ","02","00202008 СП Б ЗРЕЊАНИН","00220013 ЗЗЗ РАДНИКА НИШ"]
["13 ЈАГОДИНА","02","00202009 ЗЈЗ ЗРЕЊАНИН","00220014 ЗЗЗ СТУДЕНАТА НИШ"]
["14 БОР","02","00202010 АП ЗРЕЊАНИН","00220015 АТД НИШ"]
["15 ЗАЈЕЧАР","02","00202011 ДЗ ЗРЕЊАНИН","00220016 ТРАНСФУЗИЈА НИШ"]
["16 УЖИЦЕ","02","00202012 ОБ ЗРЕЊАНИН","00220017 СУД  МЕД  НИШ"]
["17 ЧАЧАК","03","00203001 ДЗ АДА","00220018 РХ НИШКА БАЊА"]
["18 КРАЉЕВО","03","00203002 ДЗ КАЊИЖА","00220019 КЦ НИШ"]
["19 КРУШЕВАЦ","03","00203003 ДЗ Н  КНЕЖЕВАЦ","00220020 СТОМАТОЛОГИЈА НИШ"]
["20 НИШ","03","00203004 ДЗ ЧОКА","00220021 ИНСТ ЈЗ НИШ"]
["21 ПРОКУПЉЕ","03","00203007 СП Б Н КНЕЖЕВАЦ","00220022 АУ НИШ"]
["22 ПИРОТ","03","00203008 РХ КАЊИЖА","00220024 ВОЈНА БОЛНИЦА НИШ"]
["23 ЛЕСКОВАЦ","03","00203009 ЗЈЗ КИКИНДА","00220025 ДЗ АЛЕКСИНАЦ"]
["24 ВРАЊЕ","03","00203010 АП КИКИНДА","00220026 ОБ АЛЕКСИНАЦ"]
["25 ГРАЧАНИЦА","03","00203011 ДЗ КИКИНДА"]
["28 КОСОВСКА МИТРОВИЦА","03","00203012 OБ КИКИНДА"]
["29 ГЊИЛАНЕ","03","00203013 ДЗ СЕНТА"]
["30 БЕОГРАД","03","00203014 ОБ СЕНТА"]
["33 НОВИ ПАЗАР","03","00203015 АП СЕНТА"]
[null,"04","00204001 ДЗ АЛИБУНАР"]
[null,"04","00204002 ДЗ Б  ЦРКВА"]
[null,"04","00204003 ДЗ КОВАЧИЦА"]
[null,"04","00204004 ДЗ КОВИН"]
[null,"04","00204005 ДЗ ОПОВО"]
[null,"04","00204006 ДЗ ПЛАНДИШТЕ"]
[null,"04","00204009 СП Б Б ЦРКВА"]
[null,"04","00204010 СП Б ВРШАЦ"]
[null,"04","00204011 СП Б КОВИН"]
[null,"04","00204012 ЗЈЗ ПАНЧЕВО"]
[null,"04","00204013 АП ПАНЧЕВО"]
[null,"04","00204014 АП ВРШАЦ"]
[null,"04","00204015 ДЗ ВРШАЦ"]
[null,"04","00204016 ОБ ВРШАЦ"]
[null,"04","00204017 ДЗ ПАНЧЕВО"]
[null,"04","00204018 ОБ ПАНЧЕВО"]
[null,"05","00205001 ДЗ АПАТИН"]
[null,"05","00205002 ДЗ КУЛА"]
[null,"05","00205003 ДЗ ОЏАЦИ"]
[null,"05","00205005 ЗЈЗ СОМБОР"]
[null,"05","00205006 АП СОМБОР"]
[null,"05","00205007 ДЗ СОМБОР"]
[null,"05","00205008 ОБ СОМБОР"]
[null,"05","00205009 СПБ ЈУНАКОВИЋ АПАТИН"]
[null,"06","00206001 ДЗ БАЧ"]
[null,"06","00206002 ДЗ Б ПАЛАНКА"]
[null,"06","00206003 ДЗ Б ПЕТРОВАЦ"]
[null,"06","00206004 ДЗ БЕОЧИН"]
[null,"06","00206005 ДЗ БЕЧЕЈ"]
[null,"06","00206006 ДЗ ЖАБАЉ"]
[null,"06","00206007 ДЗ СРБОБРАН"]
[null,"06","00206008 ДЗ ТЕМЕРИН"]
[null,"06","00206009 ДЗ ТИТЕЛ"]
[null,"06","00206010 ДЗ Н  САД"]
[null,"06","00206012 ТРАНСФУЗИЈА НОВИ САД"]
[null,"06","00206013 ЗЗ РЕУМ  Н  САД"]
[null,"06","00206014 ИНСТ ЈЗ НОВИ САД"]
[null,"06","00206015 ОНКОЛОГИЈА Н  САД"]
[null,"06","00206016 ИНСТ  ПЛ  БОЛ  Н САД"]
[null,"06","00206017 ИНСТ  КВБ Н  САД"]
[null,"06","00206018 ИНСТ  ЗЗ ДЕЦЕ И ОМЛ  Н  САД"]
[null,"06","00206019 СТОМАТ  КЛ  Н  САД"]
[null,"06","00206020 КЦ Н  САД"]
[null,"06","00206021 ЗЗЗ РАДНИКА Н  САД"]
[null,"06","00206022 ЗЗЗ СТУДЕНАТА Н  САД"]
[null,"06","00206023 ПАСТЕРОВ ЗАВОД НОВИ САД"]
[null,"06","00206024 АП  Н САД"]
[null,"06","00206025 ХМП Н САД"]
[null,"06","00206026 ДЗ ВРБАС"]
[null,"06","00206027 ОБ ВРБАС"]
[null,"06","00206028 АП ВРБАС"]
[null,"06","00206029 ВМЦ НОВИ САД"]
[null,"07","00207001 ДЗ ИНЂИЈА"]
[null,"07","00207002 ДЗ ПЕЋИНЦИ"]
[null,"07","00207003 ДЗ РУМА"]
[null,"07","00207004 ДЗ С  ПАЗОВА"]
[null,"07","00207005 ДЗ ШИД"]
[null,"07","00207007 СП Б СЛАНКАМЕН"]
[null,"07","00207008 ЗЈЗ С. МИТРОВИЦА"]
[null,"07","00207009 РХ ВРДНИК"]
[null,"07","00207010 АП С  МИТРОВИЦА"]
[null,"07","00207011 ДЗ ИРИГ"]
[null,"07","00207012 ДЗ С МИТРОВИЦА"]
[null,"07","00207013 ОБ С МИТРОВИЦА"]
[null,"08","00208001 ДЗ БОГАТИЋ"]
[null,"08","00208002 ДЗ ЉУБОВИЈА"]
[null,"08","00208005 РХ КОВИЉАЧА"]
[null,"08","00208006 ЗЈЗ ШАБАЦ"]
[null,"08","00208007 АУ ЛОЗНИЦА"]
[null,"08","00208008 АП ШАБАЦ"]
[null,"08","00208009 ОБ ШАБАЦ"]
[null,"08","00208010 ДЗ ШАБАЦ"]
[null,"08","00208011 ДЗ ВЛАДИМИРЦИ"]
[null,"08","00208012 ДЗ КОЦЕЉЕВА"]
[null,"08","00208013 ДЗ ЛОЗНИЦА"]
[null,"08","00208014 ДЗ КРУПАЊ"]
[null,"08","00208015 ДЗ МАЛИ ЗВОРНИК"]
[null,"08","00208016 ОБ ЛОЗНИЦА"]
[null,"09","00209001 ДЗ УБ"]
[null,"09","00209003 АП ВАЉЕВО"]
[null,"09","00209004 ДЗ ЛАЈКОВАЦ"]
[null,"09","00209005 ЗЈЗ ВАЉЕВО"]
[null,"09","00209007 ДЗ ВАЉЕВО"]
[null,"09","00209008 ДЗ ОСЕЧИНА"]
[null,"09","00209009 ДЗ ЉИГ"]
[null,"09","00209010 ДЗ МИОНИЦА"]
[null,"09","00209011 ОБ ВАЉЕВО"]
[null,"10","00210002 ОБ С ПАЛАНКА"]
[null,"10","00210003 АП С  ПАЛАНКА"]
[null,"10","00210004 АП СМЕДЕРЕВО"]
[null,"10","00210005 ДЗ В  ПЛАНА"]
[null,"10","00210006 ДЗ С  ПАЛАНКА"]
[null,"10","00210007 АП В  ПЛАНА"]
[null,"10","00210008 ОБ СМЕДЕРЕВО"]
[null,"10","00210009 ДЗ СМЕДЕРЕВО"]
[null,"11","00211001 ДЗ В  ГРАДИШТЕ"]
[null,"11","00211002 ДЗ ЖАГУБИЦА"]
[null,"11","00211005 ЗЈЗ ПОЖАРЕВАЦ"]
[null,"11","00211006 АП ПОЖАРЕВАЦ"]
[null,"11","00211007 ДЗ ЖАБАРИ"]
[null,"11","00211008 ДЗ ГОЛУБАЦ"]
[null,"11","00211009 ДЗ КУЧЕВО"]
[null,"11","00211010 ДЗ МАЛО ЦРНИЋЕ"]
[null,"11","00211011 ДЗ ПОЖАРЕВАЦ"]
[null,"11","00211012 OБ ПОЖАРЕВАЦ"]
[null,"11","00211013 ДЗ ПЕТРОВАЦ НА МЛАВИ"]
[null,"11","00211014 ОБ ПЕТРОВАЦ НА МЛАВИ"]
[null,"12","00212001 ДЗ КРАГУЈЕВАЦ"]
[null,"12","00212002 ДЗ БАТОЧИНА"]
[null,"12","00212003 ДЗ КНИЋ"]
[null,"12","00212004 ДЗ ЛАПОВО"]
[null,"12","00212005 ДЗ РАЧА"]
[null,"12","00212006 ДЗ ТОПОЛА"]
[null,"12","00212007 ЗЦ АРАНЂЕЛОВАЦ"]
[null,"12","00212008 СТОМАТОЛОГИЈА КРАГУЈЕВАЦ"]
[null,"12","00212009 СП Б БУКОВИЧКА БАЊА"]
[null,"12","00212010 КЦ КРАГУЈЕВАЦ"]
[null,"12","00212011 ИНСТ ЈЗ КРАГУЈЕВАЦ"]
[null,"12","00212012 АП КРАГУЈЕВАЦ"]
[null,"12","00212013 АП АРАНЂЕЛОВАЦ"]
[null,"12","00212014 ХМП КРАГУЈЕВАЦ"]
[null,"13","00213001 ДЗ ДЕСПОТОВАЦ"]
[null,"13","00213002 ДЗ СВИЛАЈНАЦ"]
[null,"13","00213005 ЗЈЗ ЋУПРИЈА"]
[null,"13","00213007 ДЗ РЕКОВАЦ"]
[null,"13","00213008 ДЗ ЈАГОДИНА"]
[null,"13","00213009 ОБ ЈАГОДИНА"]
[null,"13","00213010 АП ЈАГОДИНА"]
[null,"13","00213011 ДЗ ЋУПРИЈА"]
[null,"13","00213012 ОБ ЋУПРИЈА"]
[null,"13","00213014 ДЗ ПАРАЋИН"]
[null,"13","00213015 АП ПАРАЋИН"]
[null,"13","00213016 ОБ ПАРАЋИН"]
[null,"14","00214002 ЗЦ НЕГОТИН"]
[null,"14","00214003 ЗЦ КЛАДОВО"]
[null,"14","00214005 АУ БОР"]
[null,"14","00214006 ДЗ МАЈДАНПЕК"]
[null,"14","00214007 ОБ МАЈДАНПЕК"]
[null,"14","00214008 ДЗ БОР"]
[null,"14","00214009 ОБ БОР"]
[null,"15","00215001 ДЗ БОЉЕВАЦ"]
[null,"15","00215002 ЗЦ КЊАЖЕВАЦ"]
[null,"15","00215003 ЗЦ ЗАЈЕЧАР"]
[null,"15","00215004 РХ ГАМЗИГРАД"]
[null,"15","00215005 ЗЈЗ ЗАЈЕЧАР"]
[null,"15","00215006 АП ЗАЈЕЧАР"]
[null,"16","00216001 ЗЦ УЖИЦЕ"]
[null,"16","00216003 РХ ЗЛАТИБОР"]
[null,"16","00216004 ЗЈЗ УЖИЦЕ"]
[null,"16","00216005 АП УЖИЦЕ"]
[null,"17","00217001 ЗЦ ЧАЧАК"]
[null,"17","00217003 РХ ИВАЊИЦА"]
[null,"17","00217004 ЗЈЗ ЧАЧАК"]
[null,"17","00217005 АП ЧАЧАК"]
[null,"17","00217006 АП Г  МИЛАНОВАЦ"]
[null,"17","00217007 ДЗ Г МИЛАНОВАЦ"]
[null,"17","00217008 ОБ Г МИЛАНОВАЦ"]
[null,"17","00217009 ДЗ ЧАЧАК"]
[null,"17","00217010 ДЗ ИВАЊИЦА"]
[null,"17","00217011 ДЗ ЛУЧАНИ"]
[null,"17","00217012 ОБ ЧАЧАК"]
[null,"18","00218001 ДЗ РАШКА"]
[null,"18","00218004 ЗЈЗ КРАЉЕВО"]
[null,"33","00218005 СП Б НОВИ ПАЗАР"]
[null,"18","00218006 РХ ВРЊАЧКА БАЊА"]
[null,"18","00218007 СП Б МАТАРУШКА БАЊА"]
[null,"18","00218008 АУ КРАЉЕВО"]
[null,"33","00218009 ДЗ ТУТИН"]
[null,"18","00218010 ДЗ ВРЊАЧКА БАЊА"]
[null,"18","00218011 СП Б ВРЊАЧКА БАЊА"]
[null,"33","00218012 ДЗ НОВИ ПАЗАР"]
[null,"33","00218013 ОБ НОВИ ПАЗАР"]
[null,"18","00218014 ДЗ КРАЉЕВО"]
[null,"18","00218015 ОБ КРАЉЕВО"]
[null,"33","00218016 ЗЈЗ НОВИ ПАЗАР"]
[null,"19","00219001 ДЗ ТРСТЕНИК"]
[null,"19","00219003 СП Б РИБАРСКА БАЊА"]
[null,"19","00219004 ЗЈЗ КРУШЕВАЦ"]
[null,"19","00219005 АУ КРУШЕВАЦ"]
[null,"19","00219006 ДЗ БРУС"]
[null,"19","00219007 ДЗ АЛЕКСАНДРОВАЦ"]
[null,"19","00219008 ДЗ ЋИЋЕВАЦ"]
[null,"19","00219009 ДЗ ВАРВАРИН"]
[null,"19","00219012 ОБ КРУШЕВАЦ"]
[null,"19","00219013 ДЗ КРУШЕВАЦ"]
[null,"20","00220001 ДЗ ГАЏИН ХАН"]
[null,"20","00220002 ДЗ ДОЉЕВАЦ"]
[null,"20","00220003 ДЗ СВРЉИГ"]
[null,"20","00220004 ДЗ СОКОБАЊА"]
[null,"20","00220005 ДЗ НИШ"]
[null,"20","00220006 ДЗ МЕРОШИНА"]
[null,"20","00220007 ДЗ РАЖАЊ"]
[null,"20","00220009 СП Б ТОПОНИЦА"]
[null,"20","00220010 СП Б СОКО БАЊА"]
[null,"20","00220011 СП Б ОЗРЕН"]
[null,"20","00220012 ХМП НИШ"]
[null,"20","00220013 ЗЗЗ РАДНИКА НИШ"]
[null,"20","00220014 ЗЗЗ СТУДЕНАТА НИШ"]
[null,"20","00220015 АТД НИШ"]
[null,"20","00220016 ТРАНСФУЗИЈА НИШ"]
[null,"20","00220017 СУД  МЕД  НИШ"]
[null,"20","00220018 РХ НИШКА БАЊА"]
[null,"20","00220019 КЦ НИШ"]
[null,"20","00220020 СТОМАТОЛОГИЈА НИШ"]
[null,"20","00220021 ИНСТ ЈЗ НИШ"]
[null,"20","00220022 АУ НИШ"]
[null,"20","00220024 ВОЈНА БОЛНИЦА НИШ"]
[null,"20","00220025 ДЗ АЛЕКСИНАЦ"]
[null,"20","00220026 ОБ АЛЕКСИНАЦ"]
[null,"21","00221001 ДЗ КУРШУМЛИЈА"]
[null,"21","00221002 ДЗ БЛАЦЕ"]
[null,"21","00221005 АП ПРОКУПЉЕ"]
[null,"21","00221006 ДЗ ЖИТОРАЂА"]
[null,"21","00221007 ДЗ ПРОКУПЉЕ"]
[null,"21","00221008 ОБ ПРОКУПЉЕ"]
[null,"22","00222001 ДЗ БЕЛА ПАЛАНКА"]
[null,"22","00222003 ЗЈЗ ПИРОТ"]
[null,"22","00222004 АП ПИРОТ"]
[null,"22","00222005 ДЗ БАБУШНИЦА"]
[null,"22","00222006 ДЗ ДИМИТРОВГРАД"]
[null,"22","00222007 ДЗ ПИРОТ"]
[null,"22","00222008 ОБ ПИРОТ"]
[null,"23","00223001 ДЗ БОЈНИК"]
[null,"23","00223003 ЗЈЗ ЛЕСКОВАЦ"]
[null,"23","00223004 АП ЛЕСКОВАЦ"]
[null,"23","00223005 ДЗ ЛЕБАНЕ"]
[null,"23","00223006 РХ СИЈЕРИНСКА БАЊА"]
[null,"23","00223007 ДЗ ВЛАСОТИНЦЕ"]
[null,"23","00223008 ДЗ ЛЕСКОВАЦ"]
[null,"23","00223009 ОБ ЛЕСКОВАЦ"]
[null,"23","00223010 ДЗ МЕДВЕЂА"]
[null,"24","00224001 ЗЦ ВРАЊЕ"]
[null,"24","00224002 ЗЦ СУРДУЛИЦА"]
[null,"24","00224003 СП Б СУРДУЛИЦА"]
[null,"24","00224004 СП Б БУЈАНОВАЧКА БАЊА"]
[null,"24","00224005 РХ ВРАЊСКА БАЊА"]
[null,"24","00224006 ЗЈЗ ВРАЊЕ"]
[null,"24","00224007 АП ВРАЊЕ"]
[null,"24","00224008 ДЗ ВЛАДИЧИН ХАН"]
[null,"24","00224009 ДЗ БУЈАНОВАЦ"]
[null,"24","00224010 ДЗ БОСИЛЕГРАД"]
[null,"24","00224011 АП БУЈАНОВАЦ"]
[null,"24","00224012 ДЗ ПРЕШЕВО"]
[null,"24","00224013 ДЗ ТРГОВИШТЕ"]
[null,"25","00225001 ДЗ ГРАЧАНИЦА"]
[null,"25","00225002 ДЗ ДОЊА ГУШТЕРИЦА"]
[null,"25","00225003 ДЗ КОСОВО ПОЉЕ"]
[null,"25","00225004 ДЗ ОБИЛИЋ"]
[null,"25","00225005 ДЗ ШТРПЦЕ"]
[null,"25","00225006 КБЦ ПРИШТИНА"]
[null,"25","00225007 АУ ПРИШТИНА"]
[null,"25","00225008 ЗЦ ПРИЗРЕН"]
[null,"25","00225009 ДЗ ПРИШТИНА"]
[null,"25","00225010 ДЗ ДРАГАШ"]
[null,"25","00225011 АУ ПРИЗРЕН"]
[null,"25","00225012 ДЗ ИСТОК"]
[null,"25","00225013 ЗЦ ПЕЋ"]
[null,"25","00225014 СПБ ЗА ПЛ БОЛ ПЕЋ"]
[null,"25","00225015 ЗЦ ЂАКОВИЦА"]
[null,"25","00225016 АУ ПЕЋ"]
[null,"25","00225017 РХ ИСТОК"]
[null,"28","00228001 ДЗ ЗВЕЧАН"]
[null,"28","00228002 ЗЦ К  МИТРОВИЦА"]
[null,"28","00228003 АУ К. МИТРОВИЦА"]
[null,"28","00228004 ЗЈЗ К. МИТРОВИЦА"]
[null,"29","00229001 АП ГЊИЛАНЕ"]
[null,"29","00229002 ЗЦ ГЊИЛАНЕ"]
[null,"30","00230001 ДЗ БАРАЈЕВО"]
[null,"30","00230002 ДЗ ВОЖДОВАЦ"]
[null,"30","00230003 ДЗ ВРАЧАР"]
[null,"30","00230004 ДЗ ГРОЦКА"]
[null,"30","00230005 ДЗ ЗВЕЗДАРА"]
[null,"30","00230006 ДЗ ЗЕМУН"]
[null,"30","00230007 ДЗ ЛАЗАРЕВАЦ"]
[null,"30","00230008 ДЗ МЛАДЕНОВАЦ"]
[null,"30","00230009 ДЗ Н  БГД"]
[null,"30","00230010 ДЗ ОБРЕНОВАЦ"]
[null,"30","00230011 ДЗ ПАЛИЛУЛА"]
[null,"30","00230012 ДЗ РАКОВИЦА"]
[null,"30","00230013 ДЗ С  ВЕНАЦ"]
[null,"30","00230014 ДЗ СОПОТ"]
[null,"30","00230015 ДЗ С  ГРАД"]
[null,"30","00230016 ДЗ ЧУКАРИЦА"]
[null,"30","00230017 СП Б МЛАДЕНОВАЦ"]
[null,"30","00230018 СП Б ЦЕРЕБ ПАРАЛИЗА БГД"]
[null,"30","00230019 НЕОНАТОЛОГИЈА БГД"]
[null,"30","00230020 СВЕТИ САВА БГД"]
[null,"30","00230021 ХМП БГД"]
[null,"30","00230022 ГЗ КОЖНО БГД"]
[null,"30","00230023 ГЗ ГЕРОНТ"]
[null,"30","00230024 ГЗЈЗ БГД"]
[null,"30","00230025 АТД БГД"]
[null,"30","00230026 НЕФРО ЛАЗАРЕВАЦ"]
[null,"30","00230027 ЗЗЗ СТУДЕНАТА БГД"]
[null,"30","00230028 ЗЗЗ МУП"]
[null,"30","00230030 ПРОТЕТИКА БГД"]
[null,"30","00230031 ТРАНСФУЗИЈА БГД"]
[null,"30","00230032 НАРКОМАНИЈА БГД"]
[null,"30","00230033 ГОВОРНА ПАТОЛ БГД"]
[null,"30","00230034 БАЊИЦА БГД"]
[null,"30","00230035 ЛАЗА ЛАЗАРЕВИЋ БГД"]
[null,"30","00230036 КВБ ДЕДИЊЕ"]
[null,"30","00230037 МАЈКА И ДЕТЕ БГД"]
[null,"30","00230038 МЕНТАЛНО БГД"]
[null,"30","00230039 ОНКОЛОГИЈА БГД"]
[null,"30","00230040 РЕУМАТОЛОГИЈА БГД"]
[null,"30","00230041 РЕХАБИЛИТАЦИЈА БГД"]
[null,"30","00230042 ЗОТОВИЋ БГД"]
[null,"30","00230043 НЕУРОПС ДЕЦЕ БГД"]
[null,"30","00230044 ДЕЧ КЛ БГД"]
[null,"30","00230045 ГАК"]
[null,"30","00230047 КБЦ Б КОСА"]
[null,"30","00230048 КБЦ Д МИШОВИЋ"]
[null,"30","00230049 КБЦ ЗЕМУН"]
[null,"30","00230050 КБЦ ЗВЕЗДАРА"]
[null,"30","00230051 КЦС"]
[null,"30","00230052 АП БГД"]
[null,"30","00230053 ИНСТ ЈЗ СРБИЈЕ"]
[null,30,"00230054 ИНСТИТУТ ТОРЛАК"]
[null,"30","00230055 ВМА БЕОГРАД"]
[null,"30","00230057 МЕДИЦИНА РАДА СРБИЈЕ"]
[null,"30","00230900 ЗАВОД ЗА БИОЦИДЕ И МЕДИЦИНСКУ ЕКОЛОГИЈУ"]
[null,"12","00312001 ЗЗЗ РАДНИКА ЗАСТАВЕ КРАГУЈЕВАЦ"]

{"sheet":"Obrazac5","index":1,"n_rows":559,"n_cols":11,"rows_kept":559,"merged":[[17,0,19,0],[17,1,19,1],[17,2,19,2],[17,3,19,3],[17,4,17,10],[18,4,19,4],[18,5,18,8],[18,9,19,9],[18,10,19,10],[26,0,28,0],[26,1,28,1],[26,2,28,2],[26,3,28,3],[26,4,26,10],[27,4,28,4],[27,5,27,8],[27,9,28,9],[27,10,28,10],[58,0,60,0],[58,1,60,1],[58,2,60,2],[58,3,60,3],[58,4,58,10],[59,4,60,4],[59,5,59,8],[59,9,60,9],[59,10,60,10],[85,0,87,0],[85,1,87,1],[85,2,87,2],[85,3,87,3],[85,4,85,10],[86,4,87,4],[86,5,86,8],[86,9,87,9],[86,10,87,10],[115,0,117,0],[115,1,117,1],[115,2,117,2],[115,3,117,3],[115,4,115,10],[116,4,117,4],[116,5,116,8],[116,9,117,9],[116,10,117,10],[141,0,143,0],[141,1,143,1],[141,2,143,2],[141,3,143,3],[141,4,141,10],[142,4,143,4],[142,5,142,8],[142,9,143,9],[142,10,143,10],[168,0,170,0],[168,1,170,1],[168,2,170,2],[168,3,170,3],[168,4,168,10],[169,4,170,4],[169,5,169,8],[169,9,170,9],[169,10,170,10],[194,0,196,0],[194,1,196,1],[194,2,196,2],[194,3,196,3],[194,4,194,10],[195,4,196,4],[195,5,195,8],[195,9,196,9],[195,10,196,10],[216,0,218,0],[216,1,218,1],[216,2,218,2],[216,3,218,3],[216,4,216,10],[217,4,218,4],[217,5,217,8],[217,9,218,9],[217,10,218,10],[228,0,230,0],[228,1,230,1],[228,2,230,2],[228,3,230,3],[228,4,228,10],[229,4,230,4],[229,5,229,8],[229,9,230,9],[229,10,230,10],[247,0,249,0],[247,1,249,1],[247,2,249,2],[247,3,249,3],[247,4,247,10],[248,4,249,4],[248,5,248,8],[248,9,249,9],[248,10,249,10],[283,0,285,0],[283,1,285,1],[283,2,285,2],[283,3,285,3],[283,4,283,10],[284,4,285,4],[284,5,284,8],[284,9,285,9],[284,10,285,10],[314,0,316,0],[314,1,316,1],[314,2,316,2],[314,3,316,3],[314,4,314,10],[315,4,316,4],[315,5,315,8],[315,9,316,9],[315,10,316,10],[344,0,346,0],[344,1,346,1],[344,2,346,2],[344,3,346,3],[344,4,344,10],[345,4,346,4],[345,5,345,8],[345,9,346,9],[345,10,346,10],[370,0,372,0],[370,1,372,1],[370,2,372,2],[370,3,372,3],[370,4,370,10],[371,4,372,4],[371,5,371,8],[371,9,372,9],[371,10,372,10],[395,0,397,0],[395,1,397,1],[395,2,397,2],[395,3,397,3],[395,4,395,10],[396,4,397,4],[396,5,396,8],[396,9,397,9],[396,10,397,10],[423,0,425,0],[423,1,425,1],[423,2,425,2],[423,3,425,3],[423,4,423,10],[424,4,425,4],[424,5,424,8],[424,9,425,9],[424,10,425,10],[457,0,459,0],[457,1,459,1],[457,2,459,2],[457,3,459,3],[457,4,457,10],[458,4,459,4],[458,5,458,8],[458,9,459,9],[458,10,459,10],[485,0,487,0],[485,1,487,1],[485,2,487,2],[485,3,487,3],[485,4,485,10],[486,4,487,4],[486,5,486,8],[486,9,487,9],[486,10,487,10],[512,0,514,0],[512,1,514,1],[512,2,514,2],[512,3,514,3],[512,4,512,10],[513,4,514,4],[513,5,513,8],[513,9,514,9],[513,10,514,10],[539,0,541,0],[539,1,541,1],[539,2,541,2],[539,3,541,3],[539,4,539,10],[540,4,541,4],[540,5,540,8],[540,9,541,9],[540,10,541,10],[555,4,555,5],[555,8,555,9]]}
[]
[]
[{"$nulls":10},"Образац 5"]
[]
[]
[]
["Назив корисника буџетских средстава"]
[{"$f":"NazivKorisnika","v":" Специјана болница \"Озрен\""}]
[{"$f":"\"Седиште:   \" & Sediste","v":"Седиште:    Сокобања"},null,null,{"$f":" \"Матични број:   \" & MaticniBroj","v":"Матични број:    07128541"}]
[{"$f":"\"ПИБ:   \" & PIB","v":"ПИБ:    102174689"},null,null,{"$f":"\"Број подрачуна:  \" & BrojPodracuna","v":"Број подрачуна:   840-538661-68"}]
["Назив надлежног директног корисника буџетских средстава"]
["_______________________________________________________________________"]
["(Попуњава само индиректни корисник буџетских средстава)"]
["ИЗВЕШТАЈ О ИЗВРШЕЊУ БУЏЕТА"]
["у периоду од 01.01.2020. - 30.09.2020. године"]
["I. УКУПНИ ПРИХОДИ И ПРИМАЊА"]
[{"$nulls":10},"(У хиљадама динара)"]
["Ознака ОП","Број конта","Опис","Износ планираних прихода и примања","Износ остварених прихода и примања"]
[{"$nulls":4},"Укупно                        (од 6 до 11)","Приходи и примања из буџета",{"$nulls":3},"Из донација и помоћи","Из осталих извора"]
[{"$nulls":5},"Републике","Аутономне покрајине","Општине / \nграда","ООСО"]
[1,2,3,4,5,6,7,8,9,10,11]
[5001,null,"ТЕКУЋИ ПРИХОДИ И ПРИМАЊА ОД ПРОДАЈЕ НЕФИНАНСИЈСКЕ ИМОВИНЕ (5002 + 5106)",{"$f":"D23+D147","v":{"v":242765,"d":"242,765"}},{"$f":"SUM(F22:K22)","v":{"v":182200,"d":"182,200"}},{"$f":"F23+F147","v":0},0,0,{"v":179968,"d":"179,968"},0,{"v":2232,"d":"2,232"}]
[5002,700000,"ТЕКУЋИ ПРИХОДИ (5003 + 5047 + 5057 + 5069 + 5094 + 5099 + 5103)",{"$f":"D24+D76+D90+D102+D131+D136+D140","v":{"v":242735,"d":"242,735"}},{"v":182184,"d":"182,184"},{"$f":"F24+F76+F90+F102+F131+F136+F140","v":0},0,0,{"v":179968,"d":"179,968"},0,{"v":2216,"d":"2,216"}]
[5003,710000,"ПОРЕЗИ (5004 + 5008 + 5010 + 5017 + 5023 + 5030 + 5033 + 5040)",{"$f":"D25+D33+D35+D42+D48+D55+D58+D69","v":0},0,{"$f":"F25+F33+F35+F42+F48+F55+F58+F69","v":0},0,0,0,0,0]
[5004,711000,"ПОРЕЗ НА ДОХОДАК, ДОБИТ И КАПИТАЛНЕ ДОБИТКЕ (од 5005 до 5007)",{"$f":"SUM(D26:D32)","v":0},0,{"$f":"SUM(F26:F32)","v":0},0,0,0,0,0]
[5005,711100,"Порези на доходак и капиталнe добиткe које плаћају физичка лица",null,0]
["Ознака ОП","Број конта","Опис","Износ планираних прихода и примања","Износ остварених прихода и примања"]
[{"$nulls":4},"Укупно                        (од 6 до 11)","Приходи и примања из буџета",{"$nulls":3},"Из донација и помоћи","Из осталих извора"]
[{"$nulls":5},"Републике","Аутономне покрајине","Општине / \nграда","ООСО"]
["1","2","3","4","5","6","7","8","9","10","11"]
[5006,711200,"Порези на добит и капиталне добитке које плаћају предузећа и друга правна лица",null,0]
[5007,711300,"Порези на доходак, добит и капиталне добитке који се не могу разврстати између физичких и правних лица",null,0]
[5008,712000,"ПОРЕЗ НА ФОНД ЗАРАДА (5009)",{"$f":"D34","v":0},0,{"$f":"F34","v":0},0,0,0,0,0]
[5009,712100,"Порез на фонд зарада",null,0]
[5010,713000,"ПОРЕЗ НА ИМОВИНУ (од 5011 до 5016)",{"$f":"SUM(D36:D41)","v":0},0,{"$f":"SUM(F36:F41)","v":0},0,0,0,0,0]
[5011,713100,"Периодични порези на непокретности",null,0]
[5012,713200,"Периодични порези на нето имовину",null,0]
[5013,713300,"Порези на заоставштину, наслеђе и поклон",null,0]
[5014,713400,"Порези на финансијске и капиталне трансакције",null,0]
[5015,713500,"Други једнократни порези на имовину",null,0]
[5016,713600,"Други периодични порези на имовину",null,0]
[5017,714000,"ПОРЕЗ НА ДОБРА И УСЛУГЕ (од 5018 до 5022)",{"$f":"SUM(D43:D47)","v":0},0,{"$f":"SUM(F43:F47)","v":0},0,0,0,0,0]
[5018,714100,"Општи порези на добра и услуге",null,0]
[5019,714300,"Добит фискалних монопола",null,0]
[5020,714400,"Порези на појединачне услуге",null,0]
[5021,714500,"Порези, таксе и накнаде на употребу добара, на дозволу да се добра употребљавају или делатности обављају",null,0]
[5022,714600,"Други порези на добра и услуге",null,0]
[5023,715000,"ПОРЕЗ НА МЕЂУНАРОДНУ ТРГОВИНУ И ТРАНСАКЦИЈЕ (од 5024 до 5029)",{"$f":"SUM(D49:D54)","v":0},0,{"$f":"SUM(F49:F54)","v":0},0,0,0,0,0]
[5024,715100,"Царине и друге увозне дажбине",null,0]
[5025,715200,"Порези на извоз",null,0]
[5026,715300,"Добит извозних или увозних монопола",null,0]
[5027,715400,"Добит по основу разлике између куповног и продајног девизног курса",null,0]
[5028,715500,"Порези на продају или куповину девиза",null,0]
[5029,715600,"Други порези на међународну трговину и трансакције",null,0]
[5030,716000,"ДРУГИ ПОРЕЗИ (5031 + 5032)",{"$f":"D56+D57","v":0},0,{"$f":"F56+F57","v":0},0,0,0,0,0]
[5031,716100,"Други порези које искључиво плаћају предузећа, односно предузетници",null,0]
[5032,716200,"Други порези које плаћају остала лица или који се не могу идентификовати",null,0]
[5033,717000,"АКЦИЗЕ (од 5034 до 5039)",{"$f":"SUM(D63:D68)","v":0},{"$f":"SUM(F58:K58)","v":0},{"$f":"SUM(F63:F68)","v":0},0,0,0,0,0]
["Ознака ОП","Број конта","Опис","Износ планираних прихода и примања","Износ остварених прихода и примања"]
[{"$nulls":4},"Укупно                        (од 6 до 11)","Приходи и примања из буџета",{"$nulls":3},"Из донација и помоћи","Из осталих извора"]
[{"$nulls":5},"Републике","Аутономне покрајине","Општине / \nграда","ООСО"]
["1","2","3","4","5","6","7","8","9","10","11"]
[5034,717100,"Акцизе на деривате нафте",null,0]
[5035,717200,"Акцизе на дуванске прерађевине",null,0]
[5036,717300,"Акцизе на алкохолна пића",null,0]
[5037,717400,"Акцизе на освежавајућа безалкохолна пића",null,0]
[5038,717500,"Акциза на кафу",null,0]
[5039,717600,"Друге акцизе",null,0]
[5040,719000,"ЈЕДНОКРАТНИ ПОРЕЗ НА ЕКСТРА ПРОФИТ И ЕКСТРА ИМОВИНУ СТЕЧЕНУ КОРИШЋЕЊЕМ ПОСЕБНИХ ПОГОДНОСТИ (од 5041 до 5046)",{"$f":"SUM(D70:D75)","v":0},0,{"$f":"SUM(F70:F75)","v":0},0,0,0,0,0]
[5041,719100,"Порез на доходак, добит и капиталну добит на терет физичких лица",null,0]
[5042,719200,"Порез на доходак, добит и капиталну добит на терет предузећа и осталих правних лица",null,0]
[5043,719300,"Порез на доходак, добит и капиталну добит нераспоредив између физичких и правних лица",null,0]
[5044,719400,"Остали једнократни порези на имовину",null,0]
[5045,719500,"Остали порези које плаћају искључиво предузећа и предузетници",null,0]
[5046,719600,"Остали порези које плаћају друга или неидентификована лица",null,0]
[5047,720000,"СОЦИЈАЛНИ ДОПРИНОСИ (5048 + 5053)",{"$f":"D77+D82","v":0},0,{"$f":"F77+F82","v":0},0,0,0,0,0]
[5048,721000,"ДОПРИНОСИ ЗА СОЦИЈАЛНО ОСИГУРАЊЕ (од 5049 до 5052)",{"$f":"SUM(D78:D81)","v":0},0,{"$f":"SUM(F78:F81)","v":0},0,0,0,0,0]
[5049,721100,"Доприноси за социјално осигурање на терет запослених",null,0]
[5050,721200,"Доприноси за социјално осигурање на терет послодавца",null,0]
[5051,721300,"Доприноси за социјално осигурање лица која обављају самосталну делатност и незапослених лица",null,0]
[5052,721400,"Доприноси за социјално осигурање који се не могу разврстати",null,0]
[5053,722000,"ОСТАЛИ СОЦИЈАЛНИ ДОПРИНОСИ (од 5054 до 5056)",{"$f":"SUM(D83:D85)","v":0},0,{"$f":"SUM(F83:F85)","v":0},0,0,0,0,0]
[5054,722100,"Социјални доприноси на терет осигураника",null,0]
[5055,722200,"Социјални доприноси на терет послодаваца",null,0]
[5056,722300,"Импутирани социјални доприноси",null,0]
["Ознака ОП","Број конта","Опис","Износ планираних прихода и примања","Износ остварених прихода и примања"]
[{"$nulls":4},"Укупно                        (од 6 до 11)","Приходи и примања из буџета",{"$nulls":3},"Из донација и помоћи","Из осталих извора"]
[{"$nulls":5},"Републике","Аутономне покрајине","Општине / \nграда","ООСО"]
["1","2","3","4","5","6","7","8","9","10","11"]
[5057,730000,"ДОНАЦИЈЕ, ПОМОЋИ И ТРАНСФЕРИ (5058 + 5061 + 5066)",{"$f":"D91+D94+D99","v":0},0,{"$f":"F91+F94+F99","v":0},0,0,0,0,0]
[5058,731000,"ДОНАЦИЈЕ ОД ИНОСТРАНИХ ДРЖАВА (5059 + 5060)",{"$f":"D92+D93","v":0},0,{"$f":"F92+F93","v":0},0,0,0,0,0]
[5059,731100,"Текуће донације од иностраних држава",null,0]
[5060,731200,"Капиталне донације од иностраних држава",null,0]
[5061,732000,"ДОНАЦИЈЕ И ПОМОЋИ ОД МЕЂУНАРОДНИХ ОРГАНИЗАЦИЈА (од 5062 до 5065)",{"$f":"D95+D96+D97+D98","v":0},0,{"$f":"F95+F96+F97+F98","v":0},0,0,0,0,0]
[5062,732100,"Текуће донације од међународних организација",null,0]
[5063,732200,"Капиталне донације од међународних организација",null,0]
[5064,732300,"Текуће помоћи од ЕУ",null,0]
[5065,732400,"Капиталне помоћи од ЕУ",null,0]
[5066,733000,"ТРАНСФЕРИ ОД ДРУГИХ НИВОА ВЛАСТИ (5067 + 5068)",{"$f":"D100+D101","v":0},0,{"$f":"F100+F101","v":0},0,0,0,0,0]
[5067,733100,"Текући трансфери од других нивоа власти",null,{"$f":"SUM(F100:K100)","v":0}]
[5068,733200,"Капитални трансфери од других нивоа власти",null,0]
[5069,740000,"ДРУГИ ПРИХОДИ (5070 + 5077 + 5082 + 5089 + 5092)",{"$f":"D103+D110+D115+D126+D129","v":{"v":4040,"d":"4,040"}},{"v":2216,"d":"2,216"},{"$f":"F103+F110+F115+F126+F129","v":0},0,0,0,0,{"v":2216,"d":"2,216"}]
[5070,741000,"ПРИХОДИ ОД ИМОВИНЕ (од 5071 до 5076)",{"$f":"SUM(D104:D109)","v":0},0,{"$f":"SUM(F104:F109)","v":0},0,0,0,0,0]
[5071,741100,"Камате",null,0]
[5072,741200,"Дивиденде",null,0]
[5073,741300,"Повлачење прихода од квази корпорација",null,0]
[5074,741400,"Приход од имовине који припада имаоцима полиса осигурања",null,0]
[5075,741500,"Закуп непроизведене имовине",null,0]
[5076,741600,"Финансијске промене на финансијским лизинзима",null,0]
[5077,742000,"ПРИХОДИ ОД ПРОДАЈЕ ДОБАРА И УСЛУГА (од 5078 до 5081)",{"$f":"SUM(D111:D114)","v":{"v":3800,"d":"3,800"}},{"v":2063,"d":"2,063"},{"$f":"SUM(F111:F114)","v":0},0,0,0,0,{"v":2063,"d":"2,063"}]
[5078,742100,"Приходи од продаје добара и услуга или закупа од стране тржишних организација",800,562,{"$nulls":5},562]
[5079,742200,"Таксе и накнаде",null,0]
[5080,742300,"Споредне продаје добара и услуга које врше државне нетржишне јединице",{"v":3000,"d":"3,000"},{"v":1501,"d":"1,501"},{"$nulls":5},{"v":1501,"d":"1,501"}]
[5081,742400,"Импутиране продаје добара и услуга",null,0]
[5082,743000,"НОВЧАНЕ КАЗНЕ И ОДУЗЕТА ИМОВИНСКА КОРИСТ (од 5083 до 5088)",{"$f":"SUM(D120:D125)","v":90},49,{"$f":"SUM(F120:F125)","v":0},0,0,0,0,49]
["Ознака ОП","Број конта","Опис","Износ планираних прихода и примања","Износ остварених прихода и примања"]
[{"$nulls":4},"Укупно                        (од 6 до 11)","Приходи и примања из буџета",{"$nulls":3},"Из донација и помоћи","Из осталих извора"]
[{"$nulls":5},"Републике","Аутономне покрајине","Општине / \nграда","ООСО"]
["1","2","3","4","5","6","7","8","9","10","11"]
[5083,743100,"Приходи од новчаних казни за кривична дела",90,49,{"$nulls":5},49]
[5084,743200,"Приходи од новчаних казни за привредне преступе",null,0]
[5085,743300,"Приходи од новчаних казни за прекршаје",null,0]
[5086,743400,"Приходи од пенала",null,0]
[5087,743500,"Приходи од одузете имовинске користи",null,0]
[5088,743900,"Остале новчане казне, пенали и приходи од одузете имовинске користи",null,0]
[5089,744000,"ДОБРОВОЉНИ ТРАНСФЕРИ ОД ФИЗИЧКИХ И ПРАВНИХ ЛИЦА (5090 + 5091)",{"$f":"D127+D128","v":0},0,{"$f":"F127+F128","v":0},0,0,0,0,0]
[5090,744100,"Текући добровољни трансфери од физичких и правних лица",null,0]
[5091,744200,"Капитални добровољни трансфери од физичких и правних лица",null,0]
[5092,745000,"МЕШОВИТИ И НЕОДРЕЂЕНИ ПРИХОДИ (5093)",{"$f":"D130","v":150},104,{"$f":"F130","v":0},0,0,0,0,104]
[5093,745100,"Мешовити и неодређени приходи",150,104,{"$nulls":5},104]
[5094,770000,"МЕМОРАНДУМСКЕ СТАВКЕ ЗА РЕФУНДАЦИЈУ РАСХОДА (5095 + 5097)",{"$f":"D132+D134","v":660},459,{"$f":"F132+F134","v":0},0,0,459,0,0]
[5095,771000,"МЕМОРАНДУМСКЕ СТАВКЕ ЗА РЕФУНДАЦИЈУ РАСХОДА (5096)",{"$f":"D133","v":660},459,{"$f":"F133","v":0},0,0,459,0,0]
[5096,771100,"Меморандумске ставке за рефундацију расхода",660,459,{"$nulls":3},459]
[5097,772000,"МЕМОРАНДУМСКЕ СТАВКЕ ЗА РЕФУНДАЦИЈУ РАСХОДА ИЗ ПРЕТХОДНЕ ГОДИНЕ (5098)",{"$f":"D135","v":0},0,{"$f":"F135","v":0},0,0,0,0,0]
[5098,772100,"Меморандумске ставке за рефундацију расхода из претходне године",null,0]
[5099,780000,"ТРАНСФЕРИ ИЗМЕЂУ БУЏЕТСКИХ КОРИСНИКА НА ИСТОМ НИВОУ (5100)",{"$f":"D137","v":{"v":231035,"d":"231,035"}},{"$f":"SUM(F136:K136)","v":{"v":179509,"d":"179,509"}},{"$f":"F137","v":0},0,0,{"v":179509,"d":"179,509"},0,0]
[5100,781000,"ТРАНСФЕРИ ИЗМЕЂУ БУЏЕТСКИХ КОРИСНИКА НА ИСТОМ НИВОУ (5101 + 5102)",{"$f":"D138+D139","v":{"v":231035,"d":"231,035"}},{"v":179509,"d":"179,509"},{"$f":"F138+F139","v":0},0,0,{"v":179509,"d":"179,509"},0,0]
[5101,781100,"Трансфери између буџетских корисника на истом нивоу",{"v":231035,"d":"231,035"},{"$f":"SUM(F138:K138)","v":{"v":179509,"d":"179,509"}},{"$nulls":3},{"v":179509,"d":"179,509"}]
[5102,781300,"Трансфери између организација обавезног социјалног осигурања",null,0]
[5103,790000,"ПРИХОДИ ИЗ БУЏЕТА (5104)",{"$f":"D141","v":{"v":7000,"d":"7,000"}},0,{"$f":"F141","v":0},0,0,0,0,0]
[5104,791000,"ПРИХОДИ ИЗ БУЏЕТА (5105)",{"$f":"D146","v":{"v":7000,"d":"7,000"}},0,{"$f":"F146","v":0},0,0,0,0,0]
["Ознака ОП","Број конта","Опис","Износ планираних прихода и примања","Износ остварених прихода и примања"]
[{"$nulls":4},"Укупно                        (од 6 до 11)","Приходи и примања из буџета",{"$nulls":3},"Из донација и помоћи","Из осталих извора"]
[{"$nulls":5},"Републике","Аутономне покрајине","Општине / \nграда","ООСО"]
["1","2","3","4","5","6","7","8","9","10","11"]
[5105,791100,"Приходи из буџета",{"v":7000,"d":"7,000"},0]
[5106,800000,"ПРИМАЊА ОД ПРОДАЈЕ НЕФИНАНСИЈСКЕ ИМОВИНЕ (5107 + 5114 + 5121 + 5124)",{"$f":"D148+D155+D162+D165","v":30},16,{"$f":"F148+F155+F162+F165","v":0},0,0,0,0,16]
[5107,810000,"ПРИМАЊА ОД ПРОДАЈЕ ОСНОВНИХ СРЕДСТАВА (5108 + 5110 + 5112)",{"$f":"D149+D151+D153","v":30},16,{"$f":"F149+F151+F153","v":0},0,0,0,0,16]
[5108,811000,"ПРИМАЊА ОД ПРОДАЈЕ НЕПОКРЕТНОСТИ (5109)",{"$f":"D150","v":30},16,{"$f":"F150","v":0},0,0,0,0,16]
[5109,811100,"Примања од продаје непокретности",30,16,{"$nulls":5},16]
[5110,812000,"ПРИМАЊА ОД ПРОДАЈЕ ПОКРЕТНЕ ИМОВИНЕ (5111)",{"$f":"D152","v":0},0,{"$f":"F152","v":0},0,0,0,0,0]
[5111,812100,"Примања од продаје покретне имовине",null,0]
[5112,813000,"ПРИМАЊА ОД ПРОДАЈЕ ОСТАЛИХ ОСНОВНИХ СРЕДСТАВА (5113)",{"$f":"D154","v":0},0,{"$f":"F154","v":0},0,0,0,0,0]
[5113,813100,"Примања од продаје осталих основних средстава",null,0]
[5114,820000,"ПРИМАЊА ОД ПРОДАЈЕ ЗАЛИХА (5115 + 5117 + 5119)",{"$f":"D156+D158+D160","v":0},0,{"$f":"F156+F158+F160","v":0},0,0,0,0,0]
[5115,821000,"ПРИМАЊА ОД ПРОДАЈЕ РОБНИХ РЕЗЕРВИ (5116)",{"$f":"D157","v":0},0,{"$f":"F157","v":0},0,0,0,0,0]
[5116,821100,"Примања од продаје робних резерви",null,0]
[5117,822000,"ПРИМАЊА ОД ПРОДАЈЕ ЗАЛИХА  ПРОИЗВОДЊЕ (5118)",{"$f":"D159","v":0},0,{"$f":"F159","v":0},0,0,0,0,0]
[5118,822100,"Примања од продаје залиха производње",null,0]
[5119,823000,"ПРИМАЊА ОД ПРОДАЈЕ РОБЕ ЗА ДАЉУ ПРОДАЈУ (5120)",{"$f":"D161","v":0},0,{"$f":"F161","v":0},0,0,0,0,0]
[5120,823100,"Примања од продаје робе за даљу продају",null,0]
[5121,830000,"ПРИМАЊА ОД ПРОДАЈЕ ДРАГОЦЕНОСТИ (5122)",{"$f":"D163","v":0},0,{"$f":"F163","v":0},0,0,0,0,0]
[5122,831000,"ПРИМАЊА ОД ПРОДАЈЕ ДРАГОЦЕНОСТИ (5123)",{"$f":"D164","v":0},0,0,0,0,0,0,0]
[5123,831100,"Примања од продаје драгоцености",null,0]
[5124,840000,"ПРИМАЊА ОД ПРОДАЈЕ ПРИРОДНЕ ИМОВИНЕ (5125 + 5127 + 5129)",{"$f":"D166+D168+D174","v":0},0,{"$f":"F166+F168+F174","v":0},0,0,0,0,0]
[5125,841000,"ПРИМАЊА ОД ПРОДАЈЕ ЗЕМЉИШТА (5126)",{"$f":"D167","v":0},0,{"$f":"F167","v":0},0,0,0,0,0]
[5126,841100,"Примања од продаје земљишта",null,0]
[5127,842000,"ПРИМАЊА ОД ПРОДАЈЕ ПОДЗЕМНИХ БЛАГА (5128)",{"$f":"D173","v":0},0,{"$f":"F173","v":0},0,0,0,0,0]
["Ознака ОП","Број конта","Опис","Износ планираних прихода и примања","Износ остварених прихода и примања"]
[{"$nulls":4},"Укупно                        (од 6 до 11)","Приходи и примања из буџета",{"$nulls":3},"Из донација и помоћи","Из осталих извора"]
[{"$nulls":5},"Републике","Аутономне покрајине","Општине / \nграда","ООСО"]
["1","2","3","4","5","6","7","8","9","10","11"]
[5128,842100,"Примања од продаје подземних блага",null,0]
[5129,843000,"ПРИМАЊА ОД ПРОДАЈЕ ШУМА И ВОДА (5130)",{"$f":"D175","v":0},0,{"$f":"F175","v":0},0,0,0,0,0]
[5130,843100,"Примања од продаје шума и вода",null,0]
[5131,900000,"ПРИМАЊА ОД ЗАДУЖИВАЊА И ПРОДАЈЕ ФИНАНСИЈСКЕ ИМОВИНЕ (5132 + 5151)",{"$f":"D177+D200","v":0},{"$f":"SUM(F176:K176)","v":0},{"$f":"F177+F200","v":0},0,0,0,0,0]
[5132,910000,"ПРИМАЊА ОД ЗАДУЖИВАЊА (5133 + 5143)",{"$f":"D178+D188","v":0},0,{"$f":"F178+F188","v":0},0,0,0,0,0]
[5133,911000,"ПРИМАЊА ОД ДОМАЋИХ ЗАДУЖИВАЊА (од 5134 до 5142)",{"$f":"SUM(D179:D187)","v":0},0,{"$f":"SUM(F179:F187)","v":0},0,0,0,0,0]
[5134,911100,"Примања од емитовања домаћих хартија од вредности, изузев акција",null,0]
[5135,911200,"Примања од задуживања од осталих нивоа власти",null,0]
[5136,911300,"Примања од задуживања од јавних финансијских институција у земљи",null,0]
[5137,911400,"Примања од задуживања од пословних банака у земљи",null,0]
[5138,911500,"Примања од задуживања код осталих поверилаца у земљи",null,0]
[5139,911600,"Примања од задуживања од домаћинстава у земљи",null,0]
[5140,911700,"Примања од домаћих финансијских деривата",null,0]
[5141,911800,"Примања од домаћих меница",null,0]
[5142,911900,"Исправка унутрашњег дуга",null,0]
[5143,912000,"ПРИМАЊА ОД ИНОСТРАНОГ ЗАДУЖИВАЊА (од 5144 до 5150)",{"$f":"SUM(D189:D199)","v":0},0,{"$f":"SUM(F189:F199)","v":0},0,0,0,0,0]
[5144,912100,"Примања од емитовања хартија од вредности, изузев акција, на иностраном финансијском тржишту",null,0]
[5145,912200,"Примања од задуживања од иностраних држава",null,0]
[5146,912300,"Примања од задуживања од мултилатералних институција",null,0]
[5147,912400,"Примања од задуживања од иностраних пословних банака",null,0]
[5148,912500,"Примања од задуживања од осталих иностраних поверилаца",null,0]
[5149,912600,"Примања од иностраних финансијских деривата",null,0]
["Ознака ОП","Број конта","Опис","Износ планираних прихода и примања","Износ остварених прихода и примања"]
[{"$nulls":4},"Укупно                        (од 6 до 11)","Приходи и примања из буџета",{"$nulls":3},"Из донација и помоћи","Из осталих извора"]
[{"$nulls":5},"Републике","Аутономне покрајине","Општине / \nграда","ООСО"]
["1","2","3","4","5","6","7","8","9","10","11"]
[5150,912900,"Исправка спољног дуга",null,0]
[5151,920000,"ПРИМАЊА ОД ПРОДАЈЕ ФИНАНСИЈСКЕ ИМОВИНЕ (5152 + 5162)",{"$f":"D201+D211","v":0},0,{"$f":"F201+F211","v":0},0,0,0,0,0]
[5152,921000,"ПРИМАЊА ОД ПРОДАЈЕ ДОМАЋЕ ФИНАНСИЈСКЕ ИМОВИНЕ (од 5153 до 5161) ",{"$f":"SUM(D202:D210)","v":0},0,{"$f":"SUM(F202:F210)","v":0},0,0,0,0,0]
[5153,921100,"Примања од продаје домаћих хартија од вредности, изузев акција",null,0]
[5154,921200,"Примања од отплате кредита датих осталим нивоима власти",null,0]
[5155,921300,"Примања од отплате кредита датих домаћим јавним финансијским институцијама",null,0]
[5156,921400,"Примања од отплате кредита домаћим пословним банкама",null,0]
[5157,921500,"Примања од отплате кредита датих домаћим јавним нефинансијским институцијама",null,0]
[5158,921600,"Примања од отплате кредита датих физичким лицима и домаћинствима у земљи",null,0]
[5159,921700,"Примања од отплате кредита датих удружењима грађана у земљи",null,0]
[5160,921800,"Примања од отплате кредита датих нефинансијским приватним предузећима у земљи",null,0]
[5161,921900,"Примања од продаје домаћих акција и осталог капитала",null,0]
[5162,922000,"ПРИМАЊА ОД ПРОДАЈЕ СТРАНЕ ФИНАНСИЈСКЕ ИМОВИНЕ (од 5163 до 5170)",{"$f":"SUM(D212:D223)","v":0},0,{"$f":"SUM(F212:F223)","v":0},0,0,0,0,0]
[5163,922100,"Примања од продаје страних хартија од вредности, изузев акција",null,{"$f":"SUM(F212:K212)","v":0}]
[5164,922200,"Примања од отплате кредита датих страним владама",null,0]
[5165,922300,"Примања од отплате кредита датих међународним организацијама",null,0]
[5166,922400,"Примања од отплате кредита датих страним пословним банкама",null,0]
[5167,922500,"Примања од отплате кредита датих страним нефинансијским институцијама",null,0]
["Ознака ОП","Број конта","Опис","Износ планираних прихода и примања","Износ остварених прихода и примања"]
[{"$nulls":4},"Укупно                        (од 6 до 11)","Приходи и примања из буџета",{"$nulls":3},"Из донација и помоћи","Из осталих извора"]
[{"$nulls":5},"Републике","Аутономне покрајине","Општине / \nграда","ООСО"]
["1","2","3","4","5","6","7","8","9","10","11"]
[5168,922600,"Примања од отплате кредита датих страним невладиним организацијама",null,0]
[5169,922700,"Примања од продаје страних акција и осталог капитала",null,0]
[5170,922800,"Примања од продаје стране валуте",null,0]
[5171,null,"УКУПНИ ПРИХОДИ И ПРИМАЊА (5001 + 5131)",{"$f":"D22+D176","v":{"v":242765,"d":"242,765"}},{"v":182200,"d":"182,200"},{"$f":"F22+F176","v":0},0,0,{"v":179968,"d":"179,968"},0,{"v":2232,"d":"2,232"}]
[]
[]
["II. УКУПНИ РАСХОДИ И ИЗДАЦИ"]
[{"$nulls":9},"(У хиљадама динара)"]
["Ознака ОП","Број конта","Опис","Износ одобрених апропријација ","Износ извршених расхода и издатака"]
[{"$nulls":4},"Укупно           (од 6 до 11)","Расходи и издаци на терет буџета",{"$nulls":3},"Из донација и помоћи","Из осталих извора"]
[{"$nulls":5},"Републике ","Аутономне покрајине","Општине / \nграда","ООСО"]
[1,2,3,4,5,6,7,8,9,10,11]
[5172,null,"ТЕКУЋИ РАСХОДИ И ИЗДАЦИ ЗА НЕФИНАНСИЈСКЕ ИМОВИНЕ (5173 + 5341)",{"$f":"D234+D430","v":{"v":242765,"d":"242,765"}},{"$f":"SUM(F233:K233)","v":{"v":182184,"d":"182,184"}},{"$f":"F234+F430","v":0},0,0,{"v":179894,"d":"179,894"},0,{"v":2290,"d":"2,290"}]
[5173,400000,"ТЕКУЋИ РАСХОДИ (5174 + 5196 + 5241 + 5256 + 5280 + 5293 + 5309 + 5324)",{"$f":"D235+D261+D310+D329+D357+D370+D390+D409","v":{"v":242765,"d":"242,765"}},{"v":182184,"d":"182,184"},{"$f":"F235+F261+F310+F329+F357+F370+F390+F409","v":0},0,0,{"v":179894,"d":"179,894"},0,{"v":2290,"d":"2,290"}]
[5174,410000,"РАСХОДИ ЗА ЗАПОСЛЕНЕ (5175 + 5177 + 5181 + 5183 + 5188 + 5190 + 5192 + 5194)",{"$f":"D236+D238+D242+D244+D253+D255+D257+D259","v":{"v":169894,"d":"169,894"}},{"v":133630,"d":"133,630"},{"$f":"F236+F238+F242+F244+F253+F255+F257+F259","v":0},0,0,{"v":132759,"d":"132,759"},0,871]
[5175,411000,"ПЛАТЕ, ДОДАЦИ И НАКНАДЕ ЗАПОСЛЕНИХ (ЗАРАДЕ) (5176)",{"$f":"D237","v":{"v":132556,"d":"132,556"}},{"v":109219,"d":"109,219"},{"$f":"F237","v":0},0,0,{"v":108535,"d":"108,535"},0,684]
[5176,411100,"Плате, додаци и накнаде запослених",{"v":132556,"d":"132,556"},{"v":109219,"d":"109,219"},{"$nulls":3},{"v":108535,"d":"108,535"},null,684]
[5177,412000,"СОЦИЈАЛНИ ДОПРИНОСИ НА ТЕРЕТ ПОСЛОДАВЦА (од 5178 до 5180)",{"$f":"SUM(D239:D241)","v":{"v":28822,"d":"28,822"}},{"v":18110,"d":"18,110"},{"$f":"SUM(F239:F241)","v":0},0,0,{"v":17923,"d":"17,923"},0,187]
[5178,412100,"Допринос за пензијско и инвалидско осигурање",{"v":19945,"d":"19,945"},{"v":12508,"d":"12,508"},{"$nulls":3},{"v":12379,"d":"12,379"},null,129]
[5179,412200,"Допринос за здравствено осигурање",{"v":8877,"d":"8,877"},{"v":5602,"d":"5,602"},{"$nulls":3},{"v":5544,"d":"5,544"},null,58]
[5180,412300,"Допринос за незапосленост",null,0]
[5181,413000,"НАКНАДЕ У НАТУРИ (5182)",{"$f":"D243","v":{"v":2280,"d":"2,280"}},{"v":2255,"d":"2,255"},{"$f":"F243","v":0},0,0,{"v":2255,"d":"2,255"},0,0]
[5182,413100,"Накнаде у натури",{"v":2280,"d":"2,280"},{"v":2255,"d":"2,255"},{"$nulls":3},{"v":2255,"d":"2,255"}]
[5183,414000,"СОЦИЈАЛНА ДАВАЊА ЗАПОСЛЕНИМА (од 5184 до 5187)",{"$f":"SUM(D245:D252)","v":{"v":1430,"d":"1,430"}},756,{"$f":"SUM(F245:F252)","v":0},0,0,756,0,0]
[5184,414100,"Исплата накнада за време одсуствовања с посла на терет фондова",30,30,{"$nulls":3},30]
[5185,414200,"Расходи за образовање деце запослених",null,0]
[5186,414300,"Отпремнине и помоћи",{"v":1000,"d":"1,000"},548,{"$nulls":3},548]
["Ознака ОП","Број конта","Опис","Износ одобрених апропријација","Износ извршених расхода и издатака"]
[{"$nulls":4},"Укупно           (од 6 до 11)","Расходи и издаци на терет буџета",{"$nulls":3},"Из донација и помоћи","Из осталих извора"]
[{"$nulls":5},"Републике ","Аутономне покрајине","Општине / \nграда","ООСО"]
["1","2","3","4","5","6","7","8","9","10","11"]
[5187,414400,"Помоћ у медицинском лечењу запосленог или чланова уже породице и друге помоћи запосленом",400,178,{"$nulls":3},178]
[5188,415000,"НАКНАДА ТРОШКОВА ЗА ЗАПОСЛЕНЕ (5189)",{"$f":"D254","v":{"v":2456,"d":"2,456"}},{"v":1619,"d":"1,619"},{"$f":"F254","v":0},0,0,{"v":1619,"d":"1,619"},0,0]
[5189,415100,"Накнаде трошкова за запослене",{"v":2456,"d":"2,456"},{"v":1619,"d":"1,619"},{"$nulls":3},{"v":1619,"d":"1,619"}]
[5190,416000,"НАГРАДЕ ЗАПОСЛЕНИМА И ОСТАЛИ ПОСЕБНИ РАСХОДИ (5191)",{"$f":"D256","v":{"v":2350,"d":"2,350"}},{"v":1671,"d":"1,671"},{"$f":"F256","v":0},0,0,{"v":1671,"d":"1,671"},0,0]
[5191,416100,"Награде запосленима и остали посебни расходи",{"v":2350,"d":"2,350"},{"v":1671,"d":"1,671"},{"$nulls":3},{"v":1671,"d":"1,671"}]
[5192,417000,"ПОСЛАНИЧКИ ДОДАТАК (5193)",{"$f":"D258","v":0},0,{"$f":"F258","v":0},0,0,0,0,0]
[5193,417100,"Посланички додатак",null,0]
[5194,418000,"СУДИЈСКИ ДОДАТАК (5195)",{"$f":"D260","v":0},0,{"$f":"F260","v":0},0,0,0,0,0]
[5195,418100,"Судијски додатак",null,0]
[5196,420000,"КОРИШЋЕЊЕ УСЛУГА И РОБА (5197 + 5205 + 5211 + 5220 + 5228 + 5231) ",{"$f":"D262+D270+D276+D289+D297+D300","v":{"v":71276,"d":"71,276"}},{"v":47648,"d":"47,648"},{"$f":"F262+F270+F276+F289+F297+F300","v":0},0,0,{"v":46408,"d":"46,408"},0,{"v":1240,"d":"1,240"}]
[5197,421000,"СТАЛНИ ТРОШКОВИ (од 5198 до 5204)",{"$f":"SUM(D263:D269)","v":{"v":19885,"d":"19,885"}},{"v":15565,"d":"15,565"},{"$f":"SUM(F263:F269)","v":0},0,0,{"v":15520,"d":"15,520"},0,45]
[5198,421100,"Трошкови платног промета и банкарских услуга",340,225,{"$nulls":3},210,null,15]
[5199,421200,"Енергетске услуге",{"v":16435,"d":"16,435"},{"v":12461,"d":"12,461"},{"$nulls":3},{"v":12431,"d":"12,431"},null,30]
[5200,421300,"Комуналне услуге",{"v":2042,"d":"2,042"},{"v":1953,"d":"1,953"},{"$nulls":3},{"v":1953,"d":"1,953"}]
[5201,421400,"Услуге комуникација",645,569,{"$nulls":3},569]
[5202,421500,"Трошкови осигурања",423,357,{"$nulls":3},357]
[5203,421600,"Закуп имовине и опреме",null,0]
[5204,421900,"Остали трошкови",null,0]
[5205,422000,"ТРОШКОВИ ПУТОВАЊА (од 5206 до 5210)",{"$f":"SUM(D271:D275)","v":270},110,{"$f":"SUM(F271:F275)","v":0},0,0,56,0,54]
[5206,422100,"Трошкови службених путовања у земљи",150,54,{"$nulls":5},54]
[5207,422200,"Трошкови службених путовања у иностранство",null,0]
[5208,422300,"Трошкови путовања у оквиру редовног рада",120,56,{"$nulls":3},56]
[5209,422400,"Трошкови путовања ученика",null,0]
[5210,422900,"Остали трошкови транспорта",null,0]
[5211,423000,"УСЛУГЕ ПО УГОВОРУ (од 5212 до 5219)",{"$f":"SUM(D277:D288)","v":{"v":1750,"d":"1,750"}},{"v":1254,"d":"1,254"},{"$f":"SUM(F277:F288)","v":0},0,0,{"v":1220,"d":"1,220"},0,34]
[5212,423100,"Административне услуге",null,0]
[5213,423200,"Компјутерске услуге",940,712,{"$nulls":3},712]
[5214,423300,"Услуге образовања и усавршавања запослених",450,361,{"$nulls":3},361]
[5215,423400,"Услуге информисања",160,147,{"$nulls":3},147]
[5216,423500,"Стручне услуге",30,15,{"$nulls":5},15]
[5217,423600,"Услуге за домаћинство и угоститељство",20,19,{"$nulls":5},19]
[5218,423700,"Репрезентација",150,0]
["Ознака ОП","Број конта","Опис","Износ одобрених апропријација","Износ извршених расхода и издатака"]
[{"$nulls":4},"Укупно           (од 6 до 11)","Расходи и издаци на терет буџета",{"$nulls":3},"Из донација и помоћи","Из осталих извора"]
[{"$nulls":5},"Републике ","Аутономне покрајине","Општине / \nграда","ООСО"]
["1","2","3","4","5","6","7","8","9","10","11"]
[5219,423900,"Остале опште услуге",null,0]
[5220,424000,"СПЕЦИЈАЛИЗОВАНЕ УСЛУГЕ (од 5221 до 5227)",{"$f":"SUM(D290:D296)","v":730},567,{"$f":"SUM(F290:F296)","v":0},0,0,260,0,307]
[5221,424100,"Пољопривредне услуге",null,0]
[5222,424200,"Услуге образовања, културе и спорта",null,0]
[5223,424300,"Медицинске услуге",280,260,{"$nulls":3},260]
[5224,424400,"Услуге одржавања аутопутева",null,0]
[5225,424500,"Услуге одржавања националних паркова и природних површина",null,0]
[5226,424600,"Услуге очувања животне средине, науке и геодетске услуге",null,0]
[5227,424900,"Остале специјализоване услуге",450,307,{"$nulls":5},307]
[5228,425000,"ТЕКУЋЕ ПОПРАВКЕ И ОДРЖАВАЊЕ (5229 + 5230)",{"$f":"D298+D299","v":{"v":9591,"d":"9,591"}},{"v":1335,"d":"1,335"},{"$f":"F298+F299","v":0},0,0,642,0,693]
[5229,425100,"Текуће поправке и одржавање зграда и објеката",{"v":3000,"d":"3,000"},15,{"$nulls":5},15]
[5230,425200,"Текуће поправке и одржавање опреме",{"v":6591,"d":"6,591"},{"v":1320,"d":"1,320"},{"$nulls":3},642,null,678]
[5231,426000,"МАТЕРИЈАЛ (од 5232 до 5240)",{"$f":"SUM(D301:D309)","v":{"v":39050,"d":"39,050"}},{"v":28817,"d":"28,817"},{"$f":"SUM(F301:F309)","v":0},0,0,{"v":28710,"d":"28,710"},0,107]
[5232,426100,"Административни материјал",350,213,{"$nulls":3},213]
[5233,426200,"Материјали за пољопривреду",null,0]
[5234,426300,"Материјали за образовање и усавршавање запослених",200,0]
[5235,426400,"Материјали за саобраћај",{"v":1320,"d":"1,320"},714,{"$nulls":3},673,null,41]
[5236,426500,"Материјали за очување животне средине и науку",null,{"$f":"SUM(F305:K305)","v":0}]
[5237,426600,"Материјали за образовање, културу и спорт",null,0]
[5238,426700,"Медицински и лабораторијски материјали",{"v":25137,"d":"25,137"},{"v":20856,"d":"20,856"},{"$nulls":3},{"v":20790,"d":"20,790"},null,66]
[5239,426800,"Материјали за одржавање хигијене и угоститељство",{"v":9531,"d":"9,531"},{"v":6566,"d":"6,566"},{"$nulls":3},{"v":6566,"d":"6,566"}]
[5240,426900,"Материјали за посебне намене",{"v":2512,"d":"2,512"},468,{"$nulls":3},468]
[5241,430000,"АМОРТИЗАЦИЈА И УПОТРЕБА СРЕДСТАВА ЗА РАД (5242 + 5246 + 5248 + 5250 + 5254)",{"$f":"D311+D319+D321+D323+D327","v":150},0,{"$f":"F311+F319+F321+F323+F327","v":0},0,0,0,0,0]
[5242,431000,"АМОРТИЗАЦИЈА НЕКРЕТНИНА И ОПРЕМЕ (од 5243 до 5245)",{"$f":"SUM(D312:D314)","v":150},0,{"$f":"SUM(F312:F314)","v":0},0,0,0,0,0]
[5243,431100,"Амортизација зграда и грађевинскиx објеката",50,0]
[5244,431200,"Амортизација опреме",100,0]
[5245,431300,"Амортизација осталих некретнина и опреме",null,0]
["Ознака ОП","Број конта","Опис","Износ одобрених апропријација","Износ извршених расхода и издатака"]
[{"$nulls":4},"Укупно           (од 6 до 11)","Расходи и издаци на терет буџета",{"$nulls":3},"Из донација и помоћи","Из осталих извора"]
[{"$nulls":5},"Републике ","Аутономне покрајине","Општине / \nграда","ООСО"]
["1","2","3","4","5","6","7","8","9","10","11"]
[5246,432000,"АМОРТИЗАЦИЈА КУЛТИВИСАНЕ ИМОВИНЕ (5247)",{"$f":"D320","v":0},0,{"$f":"F320","v":0},0,0,0,0,0]
[5247,432100,"Амортизација култивисане опреме",null,0]
[5248,433000,"УПОТРЕБА ДРАГОЦЕНОСТИ (5249)",{"$f":"D322","v":0},0,{"$f":"F322","v":0},0,0,0,0,0]
[5249,433100,"Употреба драгоцености",null,0]
[5250,434000,"УПОТРЕБА ПРИРОДНЕ ИМОВИНЕ (од 5251 до 5253)",{"$f":"SUM(D324:D326)","v":0},0,{"$f":"SUM(F324:F326)","v":0},0,0,0,0,0]
[5251,434100,"Употреба земљишта",null,0]
[5252,434200,"Употреба подземног блага",null,0]
[5253,434300,"Употреба шума и вода",null,0]
[5254,435000,"АМОРТИЗАЦИЈА НЕМАТЕРИЈАЛНЕ ИМОВИНЕ (5255)",{"$f":"D328","v":0},0,{"$f":"F328","v":0},0,0,0,0,0]
[5255,435100,"Амортизација нематеријалне имовине",null,0]
[5256,440000,"ОТПЛАТА КАМАТА И ПРАТЕЋИ ТРОШКОВИ ЗАДУЖИВАЊА (5257 + 5267 + 5274 + 5276)",{"$f":"D330+D340+D351+D353","v":0},0,{"$f":"F330+F340+F351+F353","v":0},0,0,0,0,0]
[5257,441000,"ОТПЛАТЕ ДОМАЋИХ КАМАТА (од 5258 до 5266)",{"$f":"SUM(D331:D339)","v":0},0,{"$f":"SUM(F331:F339)","v":0},0,0,0,0,0]
[5258,441100,"Отплата камата на домаће хартије од вредности",null,0]
[5259,441200,"Отплата камата осталим нивоима власти",null,0]
[5260,441300,"Отплата камата домаћим јавним финансијским институцијама",null,0]
[5261,441400,"Отплата камата домаћим пословним банкама",null,0]
[5262,441500,"Отплата камата осталим домаћим кредиторима",null,0]
[5263,441600,"Отплата камата домаћинствима у земљи",null,0]
[5264,441700,"Отплата камата на домаће финансијске деривате",null,0]
[5265,441800,"Отплата камата на домаће менице",null,0]
[5266,441900,"Финансијске промене на финансијским лизинзима",null,0]
[5267,442000,"ОТПЛАТА СТРАНИХ КАМАТА (од 5268 до 5273)",{"$f":"SUM(D341:D350)","v":0},0,{"$f":"SUM(F341:F350)","v":0},0,0,0,0,0]
[5268,442100,"Отплата камата на хартије од вредности емитоване на иностраном финансијском тржишту",null,0]
[5269,442200,"Отплата камата страним владама",null,0]
[5270,442300,"Отплата камата мултилатералним институцијама",null,0]
[5271,442400,"Отплата камата страним пословним банкама",null,0]
["Ознака ОП","Број конта","Опис","Износ одобрених апропријација","Износ извршених расхода и издатака"]
[{"$nulls":4},"Укупно           (од 6 до 11)","Расходи и издаци на терет буџета",{"$nulls":3},"Из донација и помоћи","Из осталих извора"]
[{"$nulls":5},"Републике ","Аутономне покрајине","Општине / \nграда","ООСО"]
["1","2","3","4","5","6","7","8","9","10","11"]
[5272,442500,"Отплата камата осталим страним кредиторима",null,0]
[5273,442600,"Отплата камата на стране финансијске деривате",null,0]
[5274,443000,"ОТПЛАТА КАМАТА ПО ГАРАНЦИЈАМА (5275)",{"$f":"D352","v":0},0,{"$f":"F352","v":0},0,0,0,0,0]
[5275,443100,"Отплата камата по гаранцијама",null,0]
[5276,444000,"ПРАТЕЋИ ТРОШКОВИ ЗАДУЖИВАЊА (од 5277 до 5279)",{"$f":"SUM(D354:D356)","v":0},0,{"$f":"SUM(F354:F356)","v":0},0,0,0,0,0]
[5277,444100,"Негативне курсне разлике",null,0]
[5278,444200,"Казне за кашњење",null,0]
[5279,444300,"Остали пратећи трошкови задуживања",null,0]
[5280,450000,"СУБВЕНЦИЈЕ (5281 + 5284 + 5287 + 5290)",{"$f":"D358+D361+D364+D367","v":0},0,{"$f":"F358+F361+F364+F367","v":0},0,0,0,0,0]
[5281,451000,"СУБВЕНЦИЈЕ ЈАВНИМ НЕФИНАНСИЈСКИМ ПРЕДУЗЕЋИМА И ОРГАНИЗАЦИЈАМА (5282 + 5283)",{"$f":"D359+D360","v":0},0,{"$f":"F359+F360","v":0},0,0,0,0,0]
[5282,451100,"Текуће субвенције јавним нефинансијским предузећима и организацијама",null,0]
[5283,451200,"Капиталне субвенције јавним нефинансијским предузећима и организацијама",null,0]
[5284,452000,"СУБВЕНЦИЈЕ ПРИВАТНИМ ФИНАНСИЈСКИМ ИНСТИТУЦИЈАМА (5285 + 5286)",{"$f":"D362+D363","v":0},0,{"$f":"F362+F363","v":0},0,0,0,0,0]
[5285,452100,"Текуће субвенције приватним финансијским институцијама",null,0]
[5286,452200,"Капиталне субвенције приватним финансијским институцијама",null,0]
[5287,453000,"СУБВЕНЦИЈЕ ЈАВНИМ ФИНАНСИЈСКИМ ИНСТИТУЦИЈАМА (5288 + 5289)",{"$f":"D365+D366","v":0},0,{"$f":"F365+F366","v":0},0,0,0,0,0]
[5288,453100,"Текуће субвенције јавним финансијским институцијама",null,0]
[5289,453200,"Капиталне субвенције јавним финансијским институцијама",null,0]
[5290,454000,"СУБВЕНЦИЈЕ ПРИВАТНИМ ПРЕДУЗЕЋИМА (5291 + 5292)",{"$f":"D368+D369","v":0},0,{"$f":"F368+F369","v":0},0,0,0,0,0]
[5291,454100,"Текуће субвенције приватним предузећима",null,0]
[5292,454200,"Капиталне субвенције приватним предузећима",null,0]
[5293,460000,"ДОНАЦИЈЕ, ДОТАЦИЈЕ И ТРАНСФЕРИ (5294 + 5297 + 5300 + 5303 + 5306)",{"$f":"D375+D378+D381+D384+D387","v":960},727,{"$f":"F375+F378+F381+F384+F387","v":0},0,0,727,0,0]
["Ознака ОП","Број конта","Опис","Износ одобрених апропријација","Износ извршених расхода и издатака"]
[{"$nulls":4},"Укупно           (од 6 до 11)","Расходи и издаци на терет буџета",{"$nulls":3},"Из донација и помоћи","Из осталих извора"]
[{"$nulls":5},"Републике ","Аутономне покрајине","Општине / \nграда","ООСО"]
["1","2","3","4","5","6","7","8","9","10","11"]
[5294,461000,"ДОНАЦИЈЕ СТРАНИМ ВЛАДАМА (5295 + 5296)",{"$f":"D376+D377","v":0},0,{"$f":"F376+F377","v":0},0,0,0,0,0]
[5295,461100,"Текуће донације страним владама",null,0]
[5296,461200,"Капиталне донације страним владама",null,0]
[5297,462000,"ДОТАЦИЈЕ МЕЂУНАРОДНИМ ОРГАНИЗАЦИЈАМА (5298 + 5299)",{"$f":"D379+D380","v":0},0,{"$f":"F379+F380","v":0},0,0,0,0,0]
[5298,462100,"Текуће дотације међународним организацијама",null,0]
[5299,462200,"Капиталне дотације међународним организацијама",null,0]
[5300,463000,"ТРАНСФЕРИ ОСТАЛИМ НИВОИМА ВЛАСТИ (5301 + 5302)",{"$f":"D382+D383","v":0},{"$f":"SUM(F381:K381)","v":0},{"$f":"F382+F383","v":0},0,0,0,0,0]
[5301,463100,"Текући трансфери осталим нивоима власти",null,0]
[5302,463200,"Капитални трансфери осталим нивоима власти",null,0]
[5303,464000,"ДОТАЦИЈЕ ОРГАНИЗАЦИЈАМА ОБАВЕЗНОГ СОЦИЈАЛНОГ ОСИГУРАЊА (5304 + 5305)",{"$f":"D385+D386","v":0},0,{"$f":"F385+F386","v":0},0,0,0,0,0]
[5304,464100,"Текуће дотације организацијама обавезног социјалног осигурања",null,0]
[5305,464200,"Капиталне дотације организацијама обавезног социјалног осигурања",null,0]
[5306,465000,"ОСТАЛЕ ДОТАЦИЈЕ И ТРАНСФЕРИ (5307 + 5308)",{"$f":"D388+D389","v":960},727,{"$f":"F388+F389","v":0},0,0,727,0,0]
[5307,465100,"Остале текуће дотације и трансфери",960,727,{"$nulls":3},727]
[5308,465200,"Остале капиталне дотације и трансфери",null,0]
[5309,470000,"СОЦИЈАЛНО ОСИГУРАЊЕ И СОЦИЈАЛНА ЗАШТИТА (5310 + 5314)",{"$f":"D391+D395","v":0},0,{"$f":"F391+F395","v":0},0,0,0,0,0]
[5310,471000,"ПРАВА ИЗ СОЦИЈАЛНОГ ОСИГУРАЊА (ОРГАНИЗАЦИЈЕ ОБАВЕЗНОГ СОЦИЈАЛНОГ ОСИГУРАЊА) (од 5311 до 5313)",{"$f":"SUM(D392:D394)","v":0},0,{"$f":"SUM(F392:F394)","v":0},0,0,0,0,0]
[5311,471100,"Права из социјалног осигурања која се исплаћују непосредно домаћинствима",null,0]
[5312,471200,"Права из социјалног осигурања која се исплаћују непосредно пружаоцима услуга",null,0]
[5313,471900,"Трансфери другим организацијама обавезног социјалног осигурања за доприносе за осигурање",null,0]
[5314,472000,"НАКНАДЕ ЗА СОЦИЈАЛНУ ЗАШТИТУ ИЗ БУЏЕТА (од 5315 до 5323)",{"$f":"SUM(D400:D408)","v":0},0,{"$f":"SUM(F400:F408)","v":0},0,0,0,0,0]
["Ознака ОП","Број конта","Опис","Износ одобрених апропријација","Износ извршених расхода и издатака"]
[{"$nulls":4},"Укупно           (од 6 до 11)","Расходи и издаци на терет буџета",{"$nulls":3},"Из донација и помоћи","Из осталих извора"]
[{"$nulls":5},"Републике ","Аутономне покрајине","Општине / \nграда","ООСО"]
["1","2","3","4","5","6","7","8","9","10","11"]
[5315,472100,"Накнаде из буџета у случају болести и инвалидности",null,0]
[5316,472200,"Накнаде из буџета за породиљско одсуство",null,0]
[5317,472300,"Накнаде из буџета за децу и породицу",null,0]
[5318,472400,"Накнаде из буџета за случај незапослености",null,0]
[5319,472500,"Старосне и породичне пензије из буџета",null,0]
[5320,472600,"Накнаде из буџета у случају смрти",null,0]
[5321,472700,"Накнаде из буџета за образовање, културу, науку и спорт",null,0]
[5322,472800,"Накнаде из буџета за становање и живот",null,0]
[5323,472900,"Остале накнаде из буџета",null,0]
[5324,480000,"ОСТАЛИ РАСХОДИ (5325 + 5328 + 5332 + 5334 + 5337 + 5339)",{"$f":"D410+D413+D417+D419+D422+D428","v":485},179,{"$f":"F410+F413+F417+F419+F422+F428","v":0},0,0,0,0,179]
[5325,481000,"ДОТАЦИЈЕ НЕВЛАДИНИМ ОРГАНИЗАЦИЈАМА (5326 + 5327)",{"$f":"D411+D412","v":0},0,{"$f":"F411+F412","v":0},0,0,0,0,0]
[5326,481100,"Дотације непрофитним организацијама које пружају помоћ домаћинствима",null,0]
[5327,481900,"Дотације осталим непрофитним институцијама",null,0]
[5328,482000,"ПОРЕЗИ, ОБАВЕЗНЕ ТАКСЕ, КАЗНЕ, ПЕНАЛИ И КАМАТЕ (од 5329 до 5331)",{"$f":"SUM(D414:D416)","v":485},179,{"$f":"SUM(F414:F416)","v":0},0,0,0,0,179]
[5329,482100,"Остали порези",300,154,{"$nulls":5},154]
[5330,482200,"Обавезне таксе",33,10,{"$nulls":5},10]
[5331,482300,"Новчане казне, пенали и камате",152,15,{"$nulls":5},15]
[5332,483000,"НОВЧАНЕ КАЗНЕ И ПЕНАЛИ ПО РЕШЕЊУ СУДОВА (5333)",{"$f":"D418","v":0},0,{"$f":"F418","v":0},0,0,0,0,0]
[5333,483100,"Новчане казне и пенали по решењу судова",null,0]
[5334,484000,"НАКНАДА ШТЕТЕ ЗА ПОВРЕДЕ ИЛИ ШТЕТУ НАСТАЛУ УСЛЕД ЕЛЕМЕНТАРНИХ НЕПОГОДА ИЛИ ДРУГИХ ПРИРОДНИХ УЗРОКА (5335 + 5336)",{"$f":"D420+D421","v":0},0,{"$f":"F420+F421","v":0},0,0,0,0,0]
[5335,484100,"Накнада штете за повреде или штету насталу услед елементарних непогода",null,0]
[5336,484200,"Накнада штете од дивљачи",null,0]
[5337,485000,"НАКНАДА ШТЕТЕ ЗА ПОВРЕДЕ ИЛИ ШТЕТУ НАНЕТУ ОД СТРАНЕ ДРЖАВНИХ ОРГАНА (5338)",{"$f":"D423","v":0},0,{"$f":"F423","v":0},0,0,0,0,0]
[5338,485100,"Накнада штете за повреде или штету нанетих од стране државних органа",null,0]
["Ознака ОП","Број конта","Опис","Износ одобрених апропријација","Износ извршених расхода и издатака"]
[{"$nulls":4},"Укупно           (од 6 до 11)","Расходи и издаци на терет буџета",{"$nulls":3},"Из донација и помоћи","Из осталих извора"]
[{"$nulls":5},"Републике ","Аутономне покрајине","Општине / \nграда","ООСО"]
["1","2","3","4","5","6","7","8","9","10","11"]
[5339,489000,"РАСХОДИ КОЈИ СЕ ФИНАНСИРАЈУ ИЗ СРЕДСТАВА ЗА РЕАЛИЗАЦИЈУ НАЦИОНАЛНОГ ИНВЕСТИЦИОНОГ ПЛАНА (5340)",{"$f":"D429","v":0},0,{"$f":"F429","v":0},0,0,0,0,0]
[5340,489100,"Расходи који се финансирају из средстава за реализацију националног инвестиционог плана",null,0]
[5341,500000,"ИЗДАЦИ ЗА НЕФИНАНСИЈСКУ ИМОВИНУ (5342 + 5364 + 5373 + 5376 + 5384)",{"$f":"D431+D453+D466+D469+D477","v":0},0,{"$f":"F431+F453+F466+F469+F477","v":0},0,0,0,0,0]
[5342,510000,"ОСНОВНА СРЕДСТВА (5343 + 5348 + 5358 + 5360 + 5362)",{"$f":"D432+D437+D447+D449+D451","v":0},0,{"$f":"F432+F437+F447+F449+F451","v":0},0,0,0,0,0]
[5343,511000,"ЗГРАДЕ И ГРАЂЕВИНСКИ ОБЈЕКТИ (од 5344 до 5347)",{"$f":"SUM(D433:D436)","v":0},0,{"$f":"SUM(F433:F436)","v":0},0,0,0,0,0]
[5344,511100,"Куповина зграда и објеката",null,0]
[5345,511200,"Изградња зграда и објеката",null,0]
[5346,511300,"Капитално одржавање зграда и објеката",null,0]
[5347,511400,"Пројектно планирање",null,0]
[5348,512000,"МАШИНЕ И ОПРЕМА (од 5349 до 5357)",{"$f":"SUM(D438:D446)","v":0},0,{"$f":"SUM(F438:F446)","v":0},0,0,0,0,0]
[5349,512100,"Опрема за саобраћај",null,0]
[5350,512200,"Административна опрема",null,0]
[5351,512300,"Опрема за пољопривреду",null,0]
[5352,512400,"Опрема за заштиту животне средине",null,0]
[5353,512500,"Медицинска и лабораторијска опрема",null,0]
[5354,512600,"Опрема за образовање, културу и спорт",null,0]
[5355,512700,"Опрема за војску",null,0]
[5356,512800,"Опрема за јавну безбедност",null,0]
[5357,512900,"Опрема за производњу, моторна, непокретна и немоторна опрема",null,0]
[5358,513000,"ОСТАЛЕ НЕКРЕТНИНЕ И ОПРЕМА (5359)",{"$f":"D448","v":0},0,{"$f":"F448","v":0},0,0,0,0,0]
[5359,513100,"Остале некретнине и опрема",null,0]
[5360,514000,"КУЛТИВИСАНА ИМОВИНА (5361)",{"$f":"D450","v":0},0,{"$f":"F450","v":0},0,0,0,0,0]
[5361,514100,"Култивисана имовина",null,0]
[5362,515000,"НЕМАТЕРИЈАЛНА ИМОВИНА (5363)",{"$f":"D452","v":0},0,{"$f":"F452","v":0},0,0,0,0,0]
[5363,515100,"Нематеријална имовина",null,0]
[5364,520000,"ЗАЛИХЕ (5365 + 5367 + 5371)",{"$f":"D454+D456+D464","v":0},{"$f":"SUM(F453:K453)","v":0},{"$f":"F454+F456+F464","v":0},0,0,0,0,0]
[5365,521000,"РОБНЕ РЕЗЕРВЕ (5366)",{"$f":"D455","v":0},0,{"$f":"F455","v":0},0,0,0,0,0]
[5366,521100,"Робне резерве",null,0]
[5367,522000,"ЗАЛИХЕ ПРОИЗВОДЊЕ (од 5368 до 5370)",{"$f":"SUM(D457:D463)","v":0},0,{"$f":"SUM(F457:F463)","v":0},0,0,0,0,0]
[5368,522100,"Залихе материјала",null,0]
["Ознака ОП","Број конта","Опис","Износ одобрених апропријација","Износ извршених расхода и издатака"]
[{"$nulls":4},"Укупно           (од 6 до 11)","Расходи и издаци на терет буџета",{"$nulls":3},"Из донација и помоћи","Из осталих извора"]
[{"$nulls":5},"Републике ","Аутономне покрајине","Општине / \nграда","ООСО"]
["1","2","3","4","5","6","7","8","9","10","11"]
[5369,522200,"Залихе недовршене производње",null,0]
[5370,522300,"Залихе готових производа",null,0]
[5371,523000,"ЗАЛИХЕ РОБЕ ЗА ДАЉУ ПРОДАЈУ (5372)",{"$f":"D465","v":0},0,{"$f":"F465","v":0},0,0,0,0,0]
[5372,523100,"Залихе робе за даљу продају",null,0]
[5373,530000,"ДРАГОЦЕНОСТИ (5374)",{"$f":"D467","v":0},0,{"$f":"F467","v":0},0,0,0,0,0]
[5374,531000,"ДРАГОЦЕНОСТИ (5375)",{"$f":"D468","v":0},0,0,0,0,0,0,0]
[5375,531100,"Драгоцености",null,0]
[5376,540000,"ПРИРОДНА ИМОВИНА (5377 + 5379 + 5381)",{"$f":"D470+D472+D474","v":0},0,{"$f":"F470+F472+F474","v":0},0,0,0,0,0]
[5377,541000,"ЗЕМЉИШТЕ (5378)",{"$f":"D471","v":0},0,{"$f":"F471","v":0},0,0,0,0,0]
[5378,541100,"Земљиште",null,0]
[5379,542000,"РУДНА БОГАТСТВА (5380)",{"$f":"D473","v":0},0,{"$f":"F473","v":0},0,0,0,0,0]
[5380,542100,"Копови",null,0]
[5381,543000,"ШУМЕ И ВОДЕ (5382 + 5383)",{"$f":"D475+D476","v":0},0,{"$f":"F475+F476","v":0},0,0,0,0,0]
[5382,543100,"Шуме",null,0]
[5383,543200,"Воде",null,0]
[5384,550000,"НЕФИНАНСИЈСКА ИМОВИНА КОЈА СЕ ФИНАНСИРА ИЗ СРЕДСТАВА ЗА РЕАЛИЗАЦИЈУ НАЦИОНАЛНОГ ИНВЕСТИЦИОНОГ ПЛАНА (5385)",{"$f":"D478","v":0},0,{"$f":"F478","v":0},0,0,0,0,0]
[5385,551000,"НЕФИНАНСИЈСКА ИМОВИНА КОЈА СЕ ФИНАНСИРА ИЗ СРЕДСТАВА ЗА РЕАЛИЗАЦИЈУ НАЦИОНАЛНОГ ИНВЕСТИЦИОНОГ ПЛАНА (5386)",{"$f":"D479","v":0},0,0,0,0,0,0,0]
[5386,551100,"Нефинансијска имовина која се финансира из средстава за реализацију националног инвестиционог плана",null,0]
[5387,600000,"ИЗДАЦИ ЗА ОТПЛАТУ ГЛАВНИЦЕ И НАБАВКУ ФИНАНСИЈСКЕ ИМОВИНЕ (5388 + 5413)",{"$f":"D481+D510","v":0},0,{"$f":"F481+F510","v":0},0,0,0,0,0]
[5388,610000,"ОТПЛАТА ГЛАВНИЦЕ (5389 + 5399 + 5407 + 5409 + 5411)",{"$f":"D482+D496+D504+D506+D508","v":0},0,{"$f":"F482+F496+F504+F506+F508","v":0},0,0,0,0,0]
[5389,611000,"ОТПЛАТА ГЛАВНИЦЕ ДОМАЋИМ КРЕДИТОРИМА (од 5390 до 5398)",{"$f":"SUM(D483:D495)","v":0},0,{"$f":"SUM(F483:F495)","v":0},0,0,0,0,0]
[5390,611100,"Отплата главнице на домаће хартије од вредности, изузев акција",null,0]
[5391,611200,"Отплата главнице осталим нивоима власти",null,0]
[5392,611300,"Отплата главнице домаћим јавним финансијским институцијама",null,0]
["Ознака ОП","Број конта","Опис","Износ одобрених апропријација","Износ извршених расхода и издатака"]
[{"$nulls":4},"Укупно           (од 6 до 11)","Расходи и издаци на терет буџета",{"$nulls":3},"Из донација и помоћи","Из осталих извора"]
[{"$nulls":5},"Републике ","Аутономне покрајине","Општине / \nграда","ООСО"]
["1","2","3","4","5","6","7","8","9","10","11"]
[5393,611400,"Отплата главнице домаћим пословним банкама",null,0]
[5394,611500,"Отплата главнице осталим домаћим кредиторима",null,0]
[5395,611600,"Отплата главнице домаћинствима у земљи",null,0]
[5396,611700,"Отплата главнице на домаће финансијске деривате",null,0]
[5397,611800,"Отплата домаћих меница",null,0]
[5398,611900,"Исправка унутрашњег дуга",null,0]
[5399,612000,"ОТПЛАТА ГЛАВНИЦЕ СТРАНИМ КРЕДИТОРИМА (од 5400 до 5406)",{"$f":"SUM(D497:D503)","v":0},0,{"$f":"SUM(F497:F503)","v":0},0,0,0,0,0]
[5400,612100,"Отплата главнице на хартије од вредности, изузев акција, емитоване на иностраном финансијском тржишту",null,0]
[5401,612200,"Отплата главнице страним владама",null,0]
[5402,612300,"Отплата главнице мултилатералним институцијама",null,0]
[5403,612400,"Отплате главнице страним пословним банкама",null,0]
[5404,612500,"Отплате главнице осталим страним кредиторима",null,0]
[5405,612600,"Отплата главнице на стране финансијске деривате",null,0]
[5406,612900,"Исправка спољног дуга",null,0]
[5407,613000,"ОТПЛАТА ГЛАВНИЦЕ ПО ГАРАНЦИЈАМА (5408)",{"$f":"D505","v":0},0,{"$f":"F505","v":0},0,0,0,0,0]
[5408,613100,"Отплата главнице по гаранцијама",null,0]
[5409,614000,"ОТПЛАТА ГЛАВНИЦЕ ЗА ФИНАНСИЈСКИ ЛИЗИНГ (5410)",{"$f":"D507","v":0},0,{"$f":"F507","v":0},0,0,0,0,0]
[5410,614100,"Отплата главнице за финансијски лизинг",null,0]
[5411,615000,"ОТПЛАТА ГАРАНЦИЈА ПО КОМЕРЦИЈАЛНИМ ТРАНСАКЦИЈАМА (5412)",{"$f":"D509","v":0},0,0,0,0,0,0,0]
[5412,615100,"Отплата гаранција по комерцијалним трансакцијама",null,0]
[5413,620000,"НАБАВКА ФИНАНСИЈСКЕ ИМОВИНЕ (5414 + 5424 + 5433)",{"$f":"D511+D525+D534","v":0},0,{"$f":"F511+F525+F534","v":0},0,0,0,0,0]
[5414,621000,"НАБАВКА ДОМАЋЕ ФИНАНСИЈСКЕ ИМОВИНЕ (од 5415 до 5423)",{"$f":"SUM(D512:D524)","v":0},0,{"$f":"SUM(F512:F524)","v":0},0,0,0,0,0]
[5415,621100,"Набавка домаћих хартија од вредности, изузев акција",null,0]
["Ознака ОП","Број конта","Опис","Износ одобрених апропријација","Износ извршених расхода и издатака"]
[{"$nulls":4},"Укупно           (од 6 до 11)","Расходи и издаци на терет буџета",{"$nulls":3},"Из донација и помоћи","Из осталих извора"]
[{"$nulls":5},"Републике ","Аутономне покрајине","Општине / \nграда","ООСО"]
["1","2","3","4","5","6","7","8","9","10","11"]
[5416,621200,"Кредити осталим нивоима власти",null,0]
[5417,621300,"Кредити домаћим јавним финансијским институцијама",null,0]
[5418,621400,"Кредити домаћим пословним банкама",null,0]
[5419,621500,"Кредити домаћим нефинансијским јавним институцијама",null,0]
[5420,621600,"Кредити физичким лицима и домаћинствима у земљи",null,0]
[5421,621700,"Кредити невладиним организацијама у земљи",null,0]
[5422,621800,"Кредити домаћим нефинансијским приватним предузећима",null,0]
[5423,621900,"Набавка домаћих акција и осталог капитала",null,0]
[5424,622000,"НАБАВКА СТРАНЕ ФИНАНСИЈСКЕ ИМОВИНЕ (од 5425 до 5432)",{"$f":"SUM(D526:D533)","v":0},0,{"$f":"SUM(F526:F533)","v":0},0,0,0,0,0]
[5425,622100,"Набавка страних хартија од вредности, изузев акција",null,0]
[5426,622200,"Кредити страним владама",null,0]
[5427,622300,"Кредити међународним организацијама",null,0]
[5428,622400,"Кредити страним пословним банкама",null,0]
[5429,622500,"Кредити страним нефинансијским институцијама",null,0]
[5430,622600,"Кредити страним невладиним организацијама",null,{"$f":"SUM(F531:K531)","v":0}]
[5431,622700,"Набавка страних акција и осталог капитала",null,0]
[5432,622800,"Куповина стране валуте",null,0]
[5433,623000,"НАБАВКА ФИНАНСИЈСКЕ ИМОВИНЕ КОЈА СЕ ФИНАНСИРА ИЗ СРЕДСТАВА ЗА РЕАЛИЗАЦИЈУ НАЦИОНАЛНОГ ИНВЕСТИЦИОНОГ ПЛАНА (5434)",{"$f":"D535","v":0},0,{"$f":"F535","v":0},0,0,0,0,0]
[5434,623100,"Набавка финансијске имовине која се финансира из средстава за реализацију националног инвестиционог плана ",null,0]
[5435,null,"УКУПНИ РАСХОДИ И ИЗДАЦИ (5172 + 5387)",{"$f":"D233+D480","v":{"v":242765,"d":"242,765"}},{"v":182184,"d":"182,184"},{"$f":"F233+F480","v":0},0,0,{"v":179894,"d":"179,894"},0,{"v":2290,"d":"2,290"}]
[]
["III. УТВРЂИВАЊЕ РЕЗУЛТАТА"]
[]
["Ознака ОП","Број конта","Опис","Планирани приходи и примања / расходи и издаци","Остварени приходи и и примања / расходи и издаци"]
[{"$nulls":4},"Укупно           (од 6 до 11)","Из буџета",{"$nulls":3},"Из донација и помоћи","Из осталих извора"]
[{"$nulls":5},"Републике","Аутономне покрајине","Општине / \nграда","ООСО"]
[1,2,3,4,5,6,7,8,9,10,11]
[5436,null,"ТЕКУЋИ ПРИХОДИ И ПРИМАЊА ОД ПРОДАЈЕ НЕФИНАНСИЈСКЕ ИМОВИНЕ (5001)",{"$f":"D22","v":{"v":242765,"d":"242,765"}},{"$f":"SUM(F544:K544)","v":{"v":182200,"d":"182,200"}},{"$f":"F22","v":0},0,0,{"v":179968,"d":"179,968"},0,{"v":2232,"d":"2,232"}]
[5437,null,"ТЕКУЋИ РАСХОДИ И ИЗДАЦИ ЗА НЕФИНАНСИЈСКУ ИМОВИНУ (5172)",{"$f":"D233","v":{"v":242765,"d":"242,765"}},{"$f":"SUM(F545:K545)","v":{"v":182184,"d":"182,184"}},{"$f":"F233","v":0},0,0,{"v":179894,"d":"179,894"},0,{"v":2290,"d":"2,290"}]
[5438,null,"Вишак прихода и примања – буџетски суфицит (5436 – 5437) > 0",{"$f":"IF((D544-D545)>0,D544-D545,0)","v":0},{"$f":"IF((E544-E545)>0,E544-E545,0)","v":16},{"$f":"IF((F544-F545)>0,F544-F545,0)","v":0},0,0,74,0,0]
[5439,null,"Мањак прихода и примања – буџетски дефицит (5437 – 5436) > 0",{"$f":"IF((D545-D544)>0,D545-D544,0)","v":0},{"$f":"IF((E545-E544)>0,E545-E544,0)","v":0},{"$f":"IF((F545-F544)>0,F545-F544,0)","v":0},0,0,0,0,58]
[5440,900000,"ПРИМАЊА ОД ЗАДУЖИВАЊА И ПРОДАЈЕ ФИНАНСИЈСКЕ ИМОВИНЕ (5131)",{"$f":"D176","v":0},{"$f":"SUM(F548:K548)","v":0},{"$f":"F176","v":0},0,0,0,0,0]
[5441,600000,"ИЗДАЦИ ЗА ОТПЛАТУ ГЛАВНИЦЕ И НАБАВКУ ФИНАНСИЈСКЕ ИМОВИНЕ (5387)",{"$f":"D480","v":0},{"$f":"SUM(F549:K549)","v":0},{"$f":"F480","v":0},0,0,0,0,0]
[5442,null,"ВИШАК ПРИМАЊА (5440 – 5441) > 0",{"$f":"IF((D548-D549)>0,D548-D549,0)","v":0},{"$f":"IF((E548-E549)>0,E548-E549,0)","v":0},{"$f":"IF((F548-F549)>0,F548-F549,0)","v":0},0,0,0,0,0]
[5443,null,"МАЊАК ПРИМАЊА (5441 – 5440) > 0",{"$f":"IF((D549-D548)>0,D549-D548,0)","v":0},{"$f":"IF((E549-E548)>0,E549-E548,0)","v":0},{"$f":"IF((F549-F548)>0,F549-F548,0)","v":0},0,0,0,0,0]
[5444,null,"ВИШАК НОВЧАНИХ ПРИЛИВА (5171 - 5435) > 0",{"$f":"IF(D224-D536>0,D224-D536,0)","v":0},16,0,0,0,74,0,0]
[5445,null,"МАЊАК НОВЧАНИХ ПРИЛИВА (5435 - 5171) > 0",{"$f":"IF(D536-D224>0,D536-D224,0)","v":0},0,0,0,0,0,0,58]
[]
[]
["Датум  _________________________",{"$nulls":3},"Лице одговорно за\n попуњавање обрасца",{"$nulls":3},"Наредбодавац"]
[]
[]
[{"$nulls":4},"____________________________________",{"$nulls":3},"_________________________________"]

{"sheet":"K9OOSO","index":2,"n_rows":26,"n_cols":5,"rows_kept":26,"merged":[[10,0,10,1]]}
["РЕПУБЛИЧКИ ФОНД ЗА ЗДРАВСТВЕНО",{"$nulls":3},"К9ООСО"]
["ОСИГУРАЊЕ - БЕОГРАД"]
["Јована Мариновића 2"]
[]
[null,null,"ОДСТУПАЊА ОД НОВЧАНОГ ТОКА У ПЕРИОДУ 01.01.- 30.09.2020. ГОДИНЕ"]
[]
[{"$f":"\"ФИЛИЈАЛА:   \" & Filijala","v":"ФИЛИЈАЛА:   20 НИШ"}]
[{"$f":"\"ЗДРАВСТВЕНА УСТАНОВА:  \" & ZU","v":"ЗДРАВСТВЕНА УСТАНОВА:  00220011 СП Б ОЗРЕН"}]
[]
[{"$nulls":4},"у хиљадама (000) динара"]
["Р. Бр.",null,"ОПИС","КОЛОНА УКУПНО","КОЛОНА 9 ООСО"]
[1,2,3,4,5]
["1.",null,"ПОЧЕТНО СТАЊЕ СРЕДСТАВА НА ДАН 01.01.2020.Г. ",{"$f":"D14+D15","v":{"v":4026,"d":"4,026"}},{"$f":"E14+E15","v":790}]
[null,"1.1.","Почетно стање средстава на подрачунима (група 121000)",{"v":4026,"d":"4,026"},790]
[null,"1.2.","Почетно стање средстава у благајни (група 121000)"]
["2.",null,"НОВЧАНИ ПРИЛИВИ У ПЕРИОДУ 01.01.-30.09.2020.Г.",{"$f":"D17+D18+D19","v":{"v":182200,"d":"182,200"}},{"$f":"E17+E18+E19","v":{"v":179968,"d":"179,968"}}]
[null,"2.1.","Приходи и примања  који се исказују у обрасцу бр. 5.(класе 700000, 800000 и 900000)",{"v":182200,"d":"182,200"},{"v":179968,"d":"179,968"}]
[null,"2.2.","Новчани приливи по основу наплаћеног ПДВ-а"]
[null,"2.3.","Остали новчани приливи који нису исказани на класама у обрасцу бр. 5."]
["3.",null,"НОВЧАНИ ОДЛИВИ У ПЕРИОДУ 01.01.-30.09.2020.Г.",{"$f":"D21+D22+D23","v":{"v":182184,"d":"182,184"}},{"$f":"E21+E22+E23","v":{"v":179894,"d":"179,894"}}]
[null,"3.1.","Расходи и издаци који се исказују у обрасцу бр.5. (класе 400000, 500000 и 600000)",{"v":182184,"d":"182,184"},{"v":179894,"d":"179,894"}]
[null,"3.2.","Новчани одливи по основу плаћеног ПДВ-а"]
[null,"3.3.","Остали новчани одливи који нису исказани на класама у обрасцу бр. 5."]
["4.",null,"САЛДО СРЕДСТАВА НА ДАН 30.09.2020.г. (4 = (1+ 2- 3) = (4.1 + 4.2))",{"$f":"D13+D16-D20","v":{"v":4042,"d":"4,042"}},{"$f":"E13+E16-E20","v":864}]
[null,"4.1.","Салдо средстава на подрачунима (група 121000)",{"v":4042,"d":"4,042"},864]
[null,"4.2.","Салдо средстава у благајни (група 121000)"]

{"sheet":"OZPR","index":3,"n_rows":308,"n_cols":8,"rows_kept":308,"merged":[[17,0,19,0],[17,1,19,1],[17,2,19,2],[17,3,19,3],[17,4,19,4],[17,5,19,5],[17,6,19,6],[17,7,19,7],[36,0,38,0],[36,1,38,1],[36,2,38,2],[36,3,38,3],[36,4,38,4]]}
["РЕПУБЛИЧКИ ФОНД ЗА ЗДРАВСТВЕНО"]
["ОСИГУРАЊЕ - БЕОГРАД",{"$nulls":6},"ОЗПР"]
["Јована Мариновића 2"]
[]
[]
[]
[{"$f":"\"ФИЛИЈАЛА:   \" & Filijala","v":"ФИЛИЈАЛА:   20 НИШ"}]
[{"$f":"\"ЗДРАВСТВЕНА УСТАНОВА:  \" & ZU","v":"ЗДРАВСТВЕНА УСТАНОВА:  00220011 СП Б ОЗРЕН"}]
[]
[]
[]
[]
[]
["ОБРАЗАЦ ЗА ПАРТИЦИПАЦИЈУ И РЕФУНДАЦИЈЕ"]
["у периоду од 01.01.2020. - 30.09.2020. године"]
["I. УКУПНИ ПРИХОДИ И ПРИМАЊА"]
[{"$nulls":7},"у хиљадама (000) динара"]
["Ознака ОП","Број конта","Опис","Приходи по основу партиципације за услуге здравствене заштите и рефундација","Приходи по основу партиципације за  лекове издате на рецепт и помагала издатa на налог и рефундација","Приходи по основу укупне партиципације и рефундација","Јавни радови","УКУПНО"]
[]
[]
[1,2,3,4,5,"6=4+5",7,"8=6+7"]
[5001,null,"ТЕКУЋИ ПРИХОДИ И ПРИМАЊА ОД ПРОДАЈЕ НЕФИНАНСИЈСКЕ ИМОВИНЕ (5002)",{"$f":"D23","v":44},{"$f":"E23","v":0},{"$f":"D22+E22","v":44},{"$f":"G23","v":459},{"$f":"F22+G22","v":503}]
[5002,700000,"ТЕКУЋИ ПРИХОДИ (5003 + 5047 + 5057 + 5069 + 5094 + 5099 + 5103)",{"$f":"D24+D29","v":44},{"$f":"E24+E29","v":0},44,{"$f":"G24+G29","v":459},503]
[5094,770000,"МЕМОРАНДУМСКЕ СТАВКЕ ЗА РЕФУНДАЦИЈУ РАСХОДА (5095 + 5097)",{"$f":"D25+D27","v":0},{"$f":"E25+E27","v":0},0,{"$f":"G25+G27","v":459},459]
[5095,771000,"МЕМОРАНДУМСКЕ СТАВКЕ ЗА РЕФУНДАЦИЈУ РАСХОДА (5096)",{"$f":"D26","v":0},{"$f":"E26","v":0},0,{"$f":"G26","v":459},459]
[5096,771100,"Меморандумске ставке за рефундацију расхода",null,null,0,459,459]
[5097,772000,"МЕМОРАНДУМСКЕ СТАВКЕ ЗА РЕФУНДАЦИЈУ РАСХОДА ИЗ ПРЕТХОДНЕ ГОДИНЕ (5098)",{"$f":"D28","v":0},{"$f":"E28","v":0},0,{"$f":"G28","v":0},0]
[5098,772100,"Меморандумске ставке за рефундацију расхода из претходне године",null,null,0,null,0]
[5099,780000,"ТРАНСФЕРИ ИЗМЕЂУ БУЏЕТСКИХ КОРИСНИКА НА ИСТОМ НИВОУ (5100)",{"$f":"D30","v":44},{"$f":"E30","v":0},44,null,44]
[5100,781000,"ТРАНСФЕРИ ИЗМЕЂУ БУЏЕТСКИХ КОРИСНИКА НА ИСТОМ НИВОУ (5101 + 5102)",{"$f":"D31","v":44},{"$f":"E31","v":0},44,null,44]
[5101,781100,"Трансфери између буџетских корисника на истом нивоу",44,null,44,null,44]
[5171,null,"УКУПНИ ПРИХОДИ И ПРИМАЊА (5001)",{"$f":"D22","v":44},{"$f":"E22","v":0},44,{"$f":"G22","v":459},503]
[]
[]
["II. УКУПНИ РАСХОДИ И ИЗДАЦИ"]
[{"$nulls":3},"у хиљадама (000) динара"]
["Ознака ОП","Број конта","Опис","Расходи и издаци по основу укупне партиципације и рефундација "]
[]
[]
[1,2,3,4]
[5172,null,"ТЕКУЋИ РАСХОДИ И ИЗДАЦИ ЗА НЕФИНАНСИЈСКЕ ИМОВИНЕ (5173 + 5341)",{"$f":"D42+D210","v":44}]
[5173,400000,"ТЕКУЋИ РАСХОДИ (5174 + 5196 + 5241 + 5256 + 5280 + 5293 + 5309 + 5324)",{"$f":"D43+D65+D110+D125+D149+D162+D178+D193","v":44}]
[5174,410000,"РАСХОДИ ЗА ЗАПОСЛЕНЕ (5175 + 5177 + 5181 + 5183 + 5188 + 5190 + 5192 + 5194)",{"$f":"D44+D46+D50+D52+D57+D59+D61+D63","v":0}]
[5175,411000,"ПЛАТЕ, ДОДАЦИ И НАКНАДЕ ЗАПОСЛЕНИХ (ЗАРАДЕ) (5176)",{"$f":"D45","v":0}]
[5176,411100,"Плате, додаци и накнаде запослених"]
[5177,412000,"СОЦИЈАЛНИ ДОПРИНОСИ НА ТЕРЕТ ПОСЛОДАВЦА (од 5178 до 5180)",{"$f":"SUM(D47:D49)","v":0}]
[5178,412100,"Допринос за пензијско и инвалидско осигурање"]
[5179,412200,"Допринос за здравствено осигурање"]
[5180,412300,"Допринос за незапосленост"]
[5181,413000,"НАКНАДЕ У НАТУРИ (5182)",{"$f":"D51","v":0}]
[5182,413100,"Накнаде у натури"]
[5183,414000,"СОЦИЈАЛНА ДАВАЊА ЗАПОСЛЕНИМА (од 5184 до 5187)",{"$f":"SUM(D53:D56)","v":0}]
[5184,414100,"Исплата накнада за време одсуствовања с посла на терет фондова"]
[5185,414200,"Расходи за образовање деце запослених"]
[5186,414300,"Отпремнине и помоћи"]
[5187,414400,"Помоћ у медицинском лечењу запосленог или чланова уже породице и друге помоћи запосленом"]
[5188,415000,"НАКНАДА ТРОШКОВА ЗА ЗАПОСЛЕНЕ (5189)",{"$f":"D58","v":0}]
[5189,415100,"Накнаде трошкова за запослене"]
[5190,416000,"НАГРАДЕ ЗАПОСЛЕНИМА И ОСТАЛИ ПОСЕБНИ РАСХОДИ (5191)",{"$f":"D60","v":0}]
[5191,416100,"Награде запосленима и остали посебни расходи"]
[5192,417000,"ПОСЛАНИЧКИ ДОДАТАК (5193)",{"$f":"D62","v":0}]
[5193,417100,"Посланички додатак"]
[5194,418000,"СУДИЈСКИ ДОДАТАК (5195)",{"$f":"D64","v":0}]
[5195,418100,"Судијски додатак"]
[5196,420000,"КОРИШЋЕЊЕ УСЛУГА И РОБА (5197 + 5205 + 5211 + 5220 + 5228 + 5231) ",{"$f":"D66+D74+D80+D89+D97+D100","v":44}]
[5197,421000,"СТАЛНИ ТРОШКОВИ (од 5198 до 5204)",{"$f":"SUM(D67:D73)","v":44}]
[5198,421100,"Трошкови платног промета и банкарских услуга",44]
[5199,421200,"Енергетске услуге"]
[5200,421300,"Комуналне услуге"]
[5201,421400,"Услуге комуникација"]
[5202,421500,"Трошкови осигурања"]
[5203,421600,"Закуп имовине и опреме"]
[5204,421900,"Остали трошкови"]
[5205,422000,"ТРОШКОВИ ПУТОВАЊА (од 5206 до 5210)",{"$f":"SUM(D75:D79)","v":0}]
[5206,422100,"Трошкови службених путовања у земљи"]
[5207,422200,"Трошкови службених путовања у иностранство"]
[5208,422300,"Трошкови путовања у оквиру редовног рада"]
[5209,422400,"Трошкови путовања ученика"]
[5210,422900,"Остали трошкови транспорта"]
[5211,423000,"УСЛУГЕ ПО УГОВОРУ (од 5212 до 5219)",{"$f":"SUM(D81:D88)","v":0}]
[5212,423100,"Административне услуге"]
[5213,423200,"Компјутерске услуге"]
[5214,423300,"Услуге образовања и усавршавања запослених"]
[5215,423400,"Услуге информисања"]
[5216,423500,"Стручне услуге"]
[5217,423600,"Услуге за домаћинство и угоститељство"]
[5218,423700,"Репрезентација"]
[5219,423900,"Остале опште услуге"]
[5220,424000,"СПЕЦИЈАЛИЗОВАНЕ УСЛУГЕ (од 5221 до 5227)",{"$f":"SUM(D90:D96)","v":0}]
[5221,424100,"Пољопривредне услуге"]
[5222,424200,"Услуге образовања, културе и спорта"]
[5223,424300,"Медицинске услуге"]
[5224,424400,"Услуге одржавања аутопутева"]
[5225,424500,"Услуге одржавања националних паркова и природних површина"]
[5226,424600,"Услуге очувања животне средине, науке и геодетске услуге"]
[5227,424900,"Остале специјализоване услуге"]
[5228,425000,"ТЕКУЋЕ ПОПРАВКЕ И ОДРЖАВАЊЕ (5229 + 5230)",{"$f":"D98+D99","v":0}]
[5229,425100,"Текуће поправке и одржавање зграда и објеката"]
[5230,425200,"Текуће поправке и одржавање опреме"]
[5231,426000,"МАТЕРИЈАЛ (од 5232 до 5240)",{"$f":"SUM(D101:D109)","v":0}]
[5232,426100,"Административни материјал"]
[5233,426200,"Материјали за пољопривреду"]
[5234,426300,"Материјали за образовање и усавршавање запослених"]
[5235,426400,"Материјали за саобраћај"]
[5236,426500,"Материјали за очување животне средине и науку"]
[5237,426600,"Материјали за образовање, културу и спорт"]
[5238,426700,"Медицински и лабораторијски материјали"]
[5239,426800,"Материјали за одржавање хигијене и угоститељство"]
[5240,426900,"Материјали за посебне намене"]
[5241,430000,"АМОРТИЗАЦИЈА И УПОТРЕБА СРЕДСТАВА ЗА РАД (5242 + 5246 + 5248 + 5250 + 5254)",{"$f":"D111+D115+D117+D119+D123","v":0}]
[5242,431000,"АМОРТИЗАЦИЈА НЕКРЕТНИНА И ОПРЕМЕ (од 5243 до 5245)",{"$f":"SUM(D112:D114)","v":0}]
[5243,431100,"Амортизација зграда и грађевинскиx објеката"]
[5244,431200,"Амортизација опреме"]
[5245,431300,"Амортизација осталих некретнина и опреме"]
[5246,432000,"АМОРТИЗАЦИЈА КУЛТИВИСАНЕ ИМОВИНЕ (5247)",{"$f":"D116","v":0}]
[5247,432100,"Амортизација култивисане опреме"]
[5248,433000,"УПОТРЕБА ДРАГОЦЕНОСТИ (5249)",{"$f":"D118","v":0}]
[5249,433100,"Употреба драгоцености"]
[5250,434000,"УПОТРЕБА ПРИРОДНЕ ИМОВИНЕ (од 5251 до 5253)",{"$f":"SUM(D120:D122)","v":0}]
[5251,434100,"Употреба земљишта"]
[5252,434200,"Употреба подземног блага"]
[5253,434300,"Употреба шума и вода"]
[5254,435000,"АМОРТИЗАЦИЈА НЕМАТЕРИЈАЛНЕ ИМОВИНЕ (5255)",{"$f":"D124","v":0}]
[5255,435100,"Амортизација нематеријалне имовине"]
[5256,440000,"ОТПЛАТА КАМАТА И ПРАТЕЋИ ТРОШКОВИ ЗАДУЖИВАЊА (5257 + 5267 + 5274 + 5276)",{"$f":"D126+D136+D143+D145","v":0}]
[5257,441000,"ОТПЛАТЕ ДОМАЋИХ КАМАТА (од 5258 до 5266)",{"$f":"SUM(D127:D135)","v":0}]
[5258,441100,"Отплата камата на домаће хартије од вредности"]
[5259,441200,"Отплата камата осталим нивоима власти"]
[5260,441300,"Отплата камата домаћим јавним финансијским институцијама"]
[5261,441400,"Отплата камата домаћим пословним банкама"]
[5262,441500,"Отплата камата осталим домаћим кредиторима"]
[5263,441600,"Отплата камата домаћинствима у земљи"]
[5264,441700,"Отплата камата на домаће финансијске деривате"]
[5265,441800,"Отплата камата на домаће менице"]
[5266,441900,"Финансијске промене на финансијским лизинзима"]
[5267,442000,"ОТПЛАТА СТРАНИХ КАМАТА (од 5268 до 5273)",{"$f":"SUM(D137:D142)","v":0}]
[5268,442100,"Отплата камата на хартије од вредности емитоване на иностраном финансијском тржишту"]
[5269,442200,"Отплата камата страним владама"]
[5270,442300,"Отплата камата мултилатералним институцијама"]
[5271,442400,"Отплата камата страним пословним банкама"]
[5272,442500,"Отплата камата осталим страним кредиторима"]
[5273,442600,"Отплата камата на стране финансијске деривате"]
[5274,443000,"ОТПЛАТА КАМАТА ПО ГАРАНЦИЈАМА (5275)",{"$f":"D144","v":0}]
[5275,443100,"Отплата камата по гаранцијама"]
[5276,444000,"ПРАТЕЋИ ТРОШКОВИ ЗАДУЖИВАЊА (од 5277 до 5279)",{"$f":"SUM(D146:D148)","v":0}]
[5277,444100,"Негативне курсне разлике"]
[5278,444200,"Казне за кашњење"]
[5279,444300,"Остали пратећи трошкови задуживања"]
[5280,450000,"СУБВЕНЦИЈЕ (5281 + 5284 + 5287 + 5290)",{"$f":"D150+D153+D156+D159","v":0}]
[5281,451000,"СУБВЕНЦИЈЕ ЈАВНИМ НЕФИНАНСИЈСКИМ ПРЕДУЗЕЋИМА И ОРГАНИЗАЦИЈАМА (5282 + 5283)",{"$f":"D151+D152","v":0}]
[5282,451100,"Текуће субвенције јавним нефинансијским предузећима и организацијама"]
[5283,451200,"Капиталне субвенције јавним нефинансијским предузећима и организацијама"]
[5284,452000,"СУБВЕНЦИЈЕ ПРИВАТНИМ ФИНАНСИЈСКИМ ИНСТИТУЦИЈАМА (5285 + 5286)",{"$f":"D154+D155","v":0}]
[5285,452100,"Текуће субвенције приватним финансијским институцијама"]
[5286,452200,"Капиталне субвенције приватним финансијским институцијама"]
[5287,453000,"СУБВЕНЦИЈЕ ЈАВНИМ ФИНАНСИЈСКИМ ИНСТИТУЦИЈАМА (5288 + 5289)",{"$f":"D157+D158","v":0}]
[5288,453100,"Текуће субвенције јавним финансијским институцијама"]
[5289,453200,"Капиталне субвенције јавним финансијским институцијама"]
[5290,454000,"СУБВЕНЦИЈЕ ПРИВАТНИМ ПРЕДУЗЕЋИМА (5291 + 5292)",{"$f":"D160+D161","v":0}]
[5291,454100,"Текуће субвенције приватним предузећима"]
[5292,454200,"Капиталне субвенције приватним предузећима"]
[5293,460000,"ДОНАЦИЈЕ, ДОТАЦИЈЕ И ТРАНСФЕРИ (5294 + 5297 + 5300 + 5303 + 5306)",{"$f":"D163+D166+D169+D172+D175","v":0}]
[5294,461000,"ДОНАЦИЈЕ СТРАНИМ ВЛАДАМА (5295 + 5296)",{"$f":"D164+D165","v":0}]
[5295,461100,"Текуће донације страним владама"]
[5296,461200,"Капиталне донације страним владама"]
[5297,462000,"ДОТАЦИЈЕ МЕЂУНАРОДНИМ ОРГАНИЗАЦИЈАМА (5298 + 5299)",{"$f":"D167+D168","v":0}]
[5298,462100,"Текуће дотације међународним организацијама"]
[5299,462200,"Капиталне дотације међународним организацијама"]
[5300,463000,"ТРАНСФЕРИ ОСТАЛИМ НИВОИМА ВЛАСТИ (5301 + 5302)",{"$f":"D170+D171","v":0}]
[5301,463100,"Текући трансфери осталим нивоима власти"]
[5302,463200,"Капитални трансфери осталим нивоима власти"]
[5303,464000,"ДОТАЦИЈЕ ОРГАНИЗАЦИЈАМА ОБАВЕЗНОГ СОЦИЈАЛНОГ ОСИГУРАЊА (5304 + 5305)",{"$f":"D173+D174","v":0}]
[5304,464100,"Текуће дотације организацијама обавезног социјалног осигурања"]
[5305,464200,"Капиталне дотације организацијама обавезног социјалног осигурања"]
[5306,465000,"ОСТАЛЕ ДОТАЦИЈЕ И ТРАНСФЕРИ (5307 + 5308)",{"$f":"D176+D177","v":0}]
[5307,465100,"Остале текуће дотације и трансфери"]
[5308,465200,"Остале капиталне дотације и трансфери"]
[5309,470000,"СОЦИЈАЛНО ОСИГУРАЊЕ И СОЦИЈАЛНА ЗАШТИТА (5310 + 5314)",{"$f":"D179+D183","v":0}]
[5310,471000,"ПРАВА ИЗ СОЦИЈАЛНОГ ОСИГУРАЊА (ОРГАНИЗАЦИЈЕ ОБАВЕЗНОГ СОЦИЈАЛНОГ ОСИГУРАЊА) (од 5311 до 5313)",{"$f":"SUM(D180:D182)","v":0}]
[5311,471100,"Права из социјалног осигурања која се исплаћују непосредно домаћинствима"]
[5312,471200,"Права из социјалног осигурања која се исплаћују непосредно пружаоцима услуга"]
[5313,471900,"Трансфери другим организацијама обавезног социјалног осигурања за доприносе за осигурање"]
[5314,472000,"НАКНАДЕ ЗА СОЦИЈАЛНУ ЗАШТИТУ ИЗ БУЏЕТА (од 5315 до 5323)",{"$f":"SUM(D184:D192)","v":0}]
[5315,472100,"Накнаде из буџета у случају болести и инвалидности"]
[5316,472200,"Накнаде из буџета за породиљско одсуство"]
[5317,472300,"Накнаде из буџета за децу и породицу"]
[5318,472400,"Накнаде из буџета за случај незапослености"]
[5319,472500,"Старосне и породичне пензије из буџета"]
[5320,472600,"Накнаде из буџета у случају смрти"]
[5321,472700,"Накнаде из буџета за образовање, културу, науку и спорт"]
[5322,472800,"Накнаде из буџета за становање и живот"]
[5323,472900,"Остале накнаде из буџета"]
[5324,480000,"ОСТАЛИ РАСХОДИ (5325 + 5328 + 5332 + 5334 + 5337 + 5339)",{"$f":"D194+D197+D201+D203+D206+D208","v":0}]
[5325,481000,"ДОТАЦИЈЕ НЕВЛАДИНИМ ОРГАНИЗАЦИЈАМА (5326 + 5327)",{"$f":"D195+D196","v":0}]
[5326,481100,"Дотације непрофитним организацијама које пружају помоћ домаћинствима"]
[5327,481900,"Дотације осталим непрофитним институцијама"]
[5328,482000,"ПОРЕЗИ, ОБАВЕЗНЕ ТАКСЕ И КАЗНЕ (од 5329 до 5331)",{"$f":"SUM(D198:D200)","v":0}]
[5329,482100,"Остали порези"]
[5330,482200,"Обавезне таксе"]
[5331,482300,"Новчане казне и пенали"]
[5332,483000,"НОВЧАНЕ КАЗНЕ И ПЕНАЛИ ПО РЕШЕЊУ СУДОВА (5333)",{"$f":"D202","v":0}]
[5333,483100,"Новчане казне и пенали по решењу судова"]
[5334,484000,"НАКНАДА ШТЕТЕ ЗА ПОВРЕДЕ ИЛИ ШТЕТУ НАСТАЛУ УСЛЕД ЕЛЕМЕНТАРНИХ НЕПОГОДА ИЛИ ДРУГИХ ПРИРОДНИХ УЗРОКА (5335 + 5336)",{"$f":"D204+D205","v":0}]
[5335,484100,"Накнада штете за повреде или штету насталу услед елементарних непогода"]
[5336,484200,"Накнада штете од дивљачи"]
[5337,485000,"НАКНАДА ШТЕТЕ ЗА ПОВРЕДЕ ИЛИ ШТЕТУ НАНЕТУ ОД СТРАНЕ ДРЖАВНИХ ОРГАНА (5338)",{"$f":"D207","v":0}]
[5338,485100,"Накнада штете за повреде или штету нанетих од стране државних органа"]
[5339,489000,"РАСХОДИ КОЈИ СЕ ФИНАНСИРАЈУ ИЗ СРЕДСТАВА ЗА РЕАЛИЗАЦИЈУ НАЦИОНАЛНОГ ИНВЕСТИЦИОНОГ ПЛАНА (5340)",{"$f":"D209","v":0}]
[5340,489100,"Расходи који се финансирају из средстава за реализацију националног инвестиционог плана"]
[5341,500000,"ИЗДАЦИ ЗА НЕФИНАНСИЈСКУ ИМОВИНУ (5342 + 5364 + 5373 + 5376 + 5384)",{"$f":"D211+D233+D242+D245+D253","v":0}]
[5342,510000,"ОСНОВНА СРЕДСТВА (5343 + 5348 + 5358 + 5360 + 5362)",{"$f":"D212+D217+D227+D229+D231","v":0}]
[5343,511000,"ЗГРАДЕ И ГРАЂЕВИНСКИ ОБЈЕКТИ (од 5344 до 5347)",{"$f":"SUM(D213:D216)","v":0}]
[5344,511100,"Куповина зграда и објеката"]
[5345,511200,"Изградња зграда и објеката"]
[5346,511300,"Капитално одржавање зграда и објеката"]
[5347,511400,"Пројектно планирање"]
[5348,512000,"МАШИНЕ И ОПРЕМА (од 5349 до 5357)",{"$f":"SUM(D218:D226)","v":0}]
[5349,512100,"Опрема за саобраћај"]
[5350,512200,"Административна опрема"]
[5351,512300,"Опрема за пољопривреду"]
[5352,512400,"Опрема за заштиту животне средине"]
[5353,512500,"Медицинска и лабораторијска опрема"]
[5354,512600,"Опрема за образовање, културу и спорт"]
[5355,512700,"Опрема за војску"]
[5356,512800,"Опрема за јавну безбедност"]
[5357,512900,"Опрема за производњу, моторна, непокретна и немоторна опрема"]
[5358,513000,"ОСТАЛЕ НЕКРЕТНИНЕ И ОПРЕМА (5359)",{"$f":"D228","v":0}]
[5359,513100,"Остале некретнине и опрема"]
[5360,514000,"КУЛТИВИСАНА ИМОВИНА (5361)",{"$f":"D230","v":0}]
[5361,514100,"Култивисана имовина"]
[5362,515000,"НЕМАТЕРИЈАЛНА ИМОВИНА (5363)",{"$f":"D232","v":0}]
[5363,515100,"Нематеријална имовина"]
[5364,520000,"ЗАЛИХЕ (5365 + 5367 + 5371)",{"$f":"D234+D236+D240","v":0}]
[5365,521000,"РОБНЕ РЕЗЕРВЕ (5366)",{"$f":"D235","v":0}]
[5366,521100,"Робне резерве"]
[5367,522000,"ЗАЛИХЕ ПРОИЗВОДЊЕ (од 5368 до 5370)",{"$f":"SUM(D237:D239)","v":0}]
[5368,522100,"Залихе материјала"]
[5369,522200,"Залихе недовршене производње"]
[5370,522300,"Залихе готових производа"]
[5371,523000,"ЗАЛИХЕ РОБЕ ЗА ДАЉУ ПРОДАЈУ (5372)",{"$f":"D241","v":0}]
[5372,523100,"Залихе робе за даљу продају"]
[5373,530000,"ДРАГОЦЕНОСТИ (5374)",{"$f":"D243","v":0}]
[5374,531000,"ДРАГОЦЕНОСТИ (5375)",{"$f":"D244","v":0}]
[5375,531100,"Драгоцености"]
[5376,540000,"ПРИРОДНА ИМОВИНА (5377 + 5379 + 5381)",{"$f":"D246+D248+D250","v":0}]
[5377,541000,"ЗЕМЉИШТЕ (5378)",{"$f":"D247","v":0}]
[5378,541100,"Земљиште"]
[5379,542000,"РУДНА БОГАТСТВА (5380)",{"$f":"D249","v":0}]
[5380,542100,"Копови"]
[5381,543000,"ШУМЕ И ВОДЕ (5382 + 5383)",{"$f":"D251+D252","v":0}]
[5382,543100,"Шуме"]
[5383,543200,"Воде"]
[5384,550000,"НЕФИНАНСИЈСКА ИМОВИНА КОЈА СЕ ФИНАНСИРА ИЗ СРЕДСТАВА ЗА РЕАЛИЗАЦИЈУ НАЦИОНАЛНОГ ИНВЕСТИЦИОНОГ ПЛАНА (5385)",{"$f":"D254","v":0}]
[5385,551000,"НЕФИНАНСИЈСКА ИМОВИНА КОЈА СЕ ФИНАНСИРА ИЗ СРЕДСТАВА ЗА РЕАЛИЗАЦИЈУ НАЦИОНАЛНОГ ИНВЕСТИЦИОНОГ ПЛАНА (5386)",{"$f":"D255","v":0}]
[5386,551100,"Нефинансијска имовина која се финансира из средстава за реализацију националног инвестиционог плана"]
[5387,600000,"ИЗДАЦИ ЗА ОТПЛАТУ ГЛАВНИЦЕ И НАБАВКУ ФИНАНСИЈСКЕ ИМОВИНЕ (5388 + 5413)",{"$f":"D257+D282","v":0}]
[5388,610000,"ОТПЛАТА ГЛАВНИЦЕ (5389 + 5399 + 5407 + 5409 + 5411)",{"$f":"D258+D268+D276+D278+D280","v":0}]
[5389,611000,"ОТПЛАТА ГЛАВНИЦЕ ДОМАЋИМ КРЕДИТОРИМА (од 5390 до 5398)",{"$f":"SUM(D259:D267)","v":0}]
[5390,611100,"Отплата главнице на домаће хартије од вредности, изузев акција"]
[5391,611200,"Отплата главнице осталим нивоима власти"]
[5392,611300,"Отплата главнице домаћим јавним финансијским институцијама"]
[5393,611400,"Отплата главнице домаћим пословним банкама"]
[5394,611500,"Отплата главнице осталим домаћим кредиторима"]
[5395,611600,"Отплата главнице домаћинствима у земљи"]
[5396,611700,"Отплата главнице на домаће финансијске деривате"]
[5397,611800,"Отплата домаћих меница"]
[5398,611900,"Исправка унутрашњег дуга"]
[5399,612000,"ОТПЛАТА ГЛАВНИЦЕ СТРАНИМ КРЕДИТОРИМА (од 5400 до 5406)",{"$f":"SUM(D269:D275)","v":0}]
[5400,612100,"Отплата главнице на хартије од вредности, изузев акција, емитоване на иностраном финансијском тржишту"]
[5401,612200,"Отплата главнице страним владама"]
[5402,612300,"Отплата главнице мултилатералним институцијама"]
[5403,612400,"Отплате главнице страним пословним банкама"]
[5404,612500,"Отплате главнице осталим страним кредиторима"]
[5405,612600,"Отплата главнице на стране финансијске деривате"]
[5406,612900,"Исправка спољног дуга"]
[5407,613000,"ОТПЛАТА ГЛАВНИЦЕ ПО ГАРАНЦИЈАМА (5408)",{"$f":"D277","v":0}]
[5408,613100,"Отплата главнице по гаранцијама"]
[5409,614000,"ОТПЛАТА ГЛАВНИЦЕ ЗА ФИНАНСИЈСКИ ЛИЗИНГ (5410)",{"$f":"D279","v":0}]
[5410,614100,"Отплата главнице за финансијски лизинг"]
[5411,615000,"ОТПЛАТА ГАРАНЦИЈА ПО КОМЕРЦИЈАЛНИМ ТРАНСАКЦИЈАМА (5412)",{"$f":"D281","v":0}]
[5412,615100,"Отплата гаранција по комерцијалним трансакцијама"]
[5413,620000,"НАБАВКА ФИНАНСИЈСКЕ ИМОВИНЕ (5414 + 5424 + 5433)",{"$f":"D283+D293+D302","v":0}]
[5414,621000,"НАБАВКА ДОМАЋЕ ФИНАНСИЈСКЕ ИМОВИНЕ (од 5415 до 5423)",{"$f":"SUM(D284:D292)","v":0}]
[5415,621100,"Набавка домаћих хартија од вредности, изузев акција"]
[5416,621200,"Кредити осталим нивоима власти"]
[5417,621300,"Кредити домаћим јавним финансијским институцијама"]
[5418,621400,"Кредити домаћим пословним банкама"]
[5419,621500,"Кредити домаћим нефинансијским јавним институцијама"]
[5420,621600,"Кредити физичким лицима и домаћинствима у земљи"]
[5421,621700,"Кредити невладиним организацијама у земљи"]
[5422,621800,"Кредити домаћим нефинансијским приватним предузећима"]
[5423,621900,"Набавка домаћих акција и осталог капитала"]
[5424,622000,"НАБАВКА СТРАНЕ ФИНАНСИЈСКЕ ИМОВИНЕ (од 5425 до 5432)",{"$f":"SUM(D294:D301)","v":0}]
[5425,622100,"Набавка страних хартија од вредности, изузев акција"]
[5426,622200,"Кредити страним владама"]
[5427,622300,"Кредити међународним организацијама"]
[5428,622400,"Кредити страним пословним банкама"]
[5429,622500,"Кредити страним нефинансијским институцијама"]
[5430,622600,"Кредити страним невладиним организацијама"]
[5431,622700,"Набавка страних акција и осталог капитала"]
[5432,622800,"Куповина стране валуте"]
[5433,623000,"НАБАВКА ФИНАНСИЈСКЕ ИМОВИНЕ КОЈА СЕ ФИНАНСИРА ИЗ СРЕДСТАВА ЗА РЕАЛИЗАЦИЈУ НАЦИОНАЛНОГ ИНВЕСТИЦИОНОГ ПЛАНА (5434)",{"$f":"D303","v":0}]
[5434,623100,"Набавка финансијске имовине која се финансира из средстава за реализацију националног инвестиционог плана "]
[5435,null,"УКУПНИ РАСХОДИ И ИЗДАЦИ (5172 + 5387)",{"$f":"D41+D256","v":44}]
[]
[]
["Саставио:",null,null,"Директор здравствене установе:"]
["______________________",null,null,"_________________________________"]

{"sheet":"Transferi","index":4,"n_rows":26,"n_cols":6,"rows_kept":26,"merged":[[4,0,4,5],[8,0,8,5],[15,0,15,5],[17,0,17,2]]}
["РЕПУБЛИЧКИ ФОНД ЗА ЗДРАВСТВЕНО",{"$nulls":4},"ТР"]
["ОСИГУРАЊЕ - БЕОГРАД"]
["Јована Мариновића 2"]
[]
[]
[]
[{"$f":"\"ФИЛИЈАЛА:   \" & Filijala","v":"ФИЛИЈАЛА:   20 НИШ"}]
[{"$f":"\"ЗДРАВСТВЕНА УСТАНОВА:  \" & ZU","v":"ЗДРАВСТВЕНА УСТАНОВА:  00220011 СП Б ОЗРЕН"}]
["ТРАНСФЕРИ ИЗМЕЂУ БУЏЕТСКИХ КОРИСНИКА НА ИСТОМ НИВОУ - конто 781100 (ООСО)\nу периоду од 01.01.2020. - 30.09.2020. године"]
[{"$nulls":5},"у хиљадама (000) динара"]
["Р.  бр.","Назив","Трансфери за услуге здравствене заштите","Трансфери за лекове издате на рецепт","Трансфери за помагала издата на налог","УКУПНО"]
[null,0,1,2,3,"4=1+2+3"]
["1","781100 - Трансфери између буџетских корисника на истом нивоу (ООСО)",{"$nulls":3},{"$f":"C13+D13+E13","v":0}]
[]
["Напомена: 1. Износ исказан у колони 4 - УКУПНО увећан за укупну партиципацију из обрасца ОЗПР (колона 6) мора бити једнак износу на ОП 5101 у колони 9 Обрасца 5."]
["                 2. У колону 1 - Трансфери за услуге здравствене заштите уноси се износ трансфера за здравствене услуге примарне и стоматолошке здравствене заштите\n                     у здравственим установама које имају апотеку у саставу."]
[]
["РАСХОДИ ЗА ЛЕКОВЕ ИЗДАТЕ НА РЕЦЕПТ И ПОМАГАЛА ИЗДАТА НА НАЛОГ\nу периоду од 01.01.2020. - 30.09.2020. године"]
[]
[null,null,"у хиљадама (000) динара"]
["Р.  бр.","Назив","Лекови издати на рецепт и помагала издата на налог"]
[null,0,1]
["1","426751 - Лекови на рецепт"]
[]
[]
["Напомена: Образац ТР попуњавају само апотеке и здравствене установе које у свом саставу имају апотеку."]

{"sheet":"BO","index":5,"n_rows":24,"n_cols":8,"rows_kept":24,"merged":[[4,0,4,7],[5,3,5,4]]}
["РЕПУБЛИЧКИ ФОНД ЗА ЗДРАВСТВЕНО",{"$nulls":6},"БО"]
["ОСИГУРАЊЕ - БЕОГРАД"]
["Јована Мариновића 2"]
[]
["ОБРАЗАЦ БО - ИСПЛАЋЕНА И РЕФУНДИРАНА СРЕДСТВА КОЈА СЕ ОДНОСЕ НА НАКНАДЕ КОЈЕ СЕ ЕВИДЕНТИРАЈУ У ОКВИРУ ГРУПЕ 414100"]
[{"$nulls":3},"у периоду од 01.01.2020. - 30.09.2020. године"]
[{"$f":"\"ФИЛИЈАЛА:   \" & Filijala","v":"ФИЛИЈАЛА:   20 НИШ"}]
[{"$f":"\"ЗДРАВСТВЕНА УСТАНОВА:  \" & ZU","v":"ЗДРАВСТВЕНА УСТАНОВА:  00220011 СП Б ОЗРЕН"}]
[]
[{"$nulls":7},"у хиљадама (000) динара"]
["Р.  бр.","Извор финансирања","771100 исказан у обрасцу 5ГО","Пренета средства за накнаде које нису исказане у приходима (сторниран расход извршен у текућој години)","Укупно пренета средства за накнаде","Исплате накнада исказаних у обрасцу 5ГО на 414100","Исплате накнада  које нису исказане у расходима","Укупно исплаћене накнаде"]
[null,0,1,2,"3=1+2",4,5,"6=4+5"]
["1","УКУПНА СРЕДСТВА (1.1-1.5)",{"$f":"C14+C15+C16+C17+C18","v":0},{"v":2433,"d":"2,433"},{"v":2433,"d":"2,433"},30,{"v":2133,"d":"2,133"},{"v":2163,"d":"2,163"}]
["1.1","РФЗО",null,{"v":2029,"d":"2,029"},{"$f":"C14+D14","v":{"v":2029,"d":"2,029"}},null,{"v":2029,"d":"2,029"},{"$f":"F14+G14","v":{"v":2029,"d":"2,029"}}]
["1.2","ФОНД ПИО",null,404,{"$f":"C15+D15","v":404},30,104,{"$f":"F15+G15","v":134}]
["1.3","СЕКРЕТАРИЈАТ ЗА СОЦИЈАЛНУ И ДЕЧИЈУ ЗАШТИТУ",null,null,{"$f":"C16+D16","v":0},null,null,{"$f":"F16+G16","v":0}]
["1.4","ОПШТИНА / ГРАД",null,null,{"$f":"C17+D17","v":0},null,null,{"$f":"F17+G17","v":0}]
["1.5","ОСТАЛО",null,null,{"$f":"C18+D18","v":0},null,null,{"$f":"F18+G18","v":0}]
[]
["Напомена: Овим обрасцем обухваћена су средства за:"]
["* накнаде за боловање преко 30 дана које рефундира РФЗО"]
["* накнаде за породиљско одсуство које рефундира Секретаријат за социјалну и дечију заштиту"]
["* накнаде за инвалиде II категорије које рефундира Фонд ПИО"]
["* накнаде за 35% за трудничко боловање"]

{"sheet":"Krv1","index":6,"n_rows":27,"n_cols":9,"rows_kept":27,"merged":[[4,0,4,8],[8,0,8,8],[15,0,15,8],[17,0,17,8],[19,0,20,0],[19,1,20,1],[19,2,20,2],[19,3,20,3],[19,4,20,4],[19,5,19,7],[19,8,20,8]]}
["РЕПУБЛИЧКИ ФОНД ЗА ЗДРАВСТВЕНО",{"$nulls":7},"КРВ 1"]
["ОСИГУРАЊЕ - БЕОГРАД"]
["Јована Мариновића 2"]
[]
[]
[]
[{"$f":"\"ФИЛИЈАЛА:   \" & Filijala","v":"ФИЛИЈАЛА:   20 НИШ"}]
[{"$f":"\"ЗДРАВСТВЕНА УСТАНОВА:  \" & ZU","v":"ЗДРАВСТВЕНА УСТАНОВА:  00220011 СП Б ОЗРЕН"}]
["ТРАНСФЕРИ РЕПУБЛИЧКОГ ФОНДА ЗА КРВ И ЛАБИЛНЕ ПРОДУКТЕ ОД КРВИ ЗДРАВСТВЕНИМ УСТАНОВАМА ЗА ОСИГУРАНА ЛИЦА РЕПУБЛИЧКОГ ФОНДА- конто 781100 (ООСО) у периоду од 01.01.2020. - 30.09.2020. године                                                                                                                                                                                                                                                                                                                                                   "]
[null,null,"у хиљадама (000) динара"]
["Р.  бр.","Назив","Трансфери за крв и лабилне продукте од крви"]
[null,0,1]
["1","781100 - Трансфери за крв и лабилне продукте од крви за осигурана лица Републичког фонда",118]
[]
[]
[]
[]
["РАСХОДИ ЗА КРВ И ЛАБИЛНЕ ПРОДУКТЕ ОД КРВИ ЗА ОСИГУРАНА ЛИЦА РЕПУБЛИЧКОГ ФОНДА у периоду од 01.01.2020. - 30.09.2020. године"]
[{"$nulls":8},"у хиљадама (000) динара"]
["Р.  бр.","Назив","Институт за трансфузију крви Београд","Завод за трансфузију крви Нови Сад","Завод за трансфузију крви Ниш","Остали",null,null,"Укупно"]
[{"$nulls":5},"ЗУ од којих је набављена крв","Остали добављачи","Укупно остали"]
[null,0,1,2,3,4,5,"6=4+5","7 = 1+2+3+6"]
["1","426700 - Крв и лабилни продукти од крви",null,null,130,null,null,{"$f":"F23+G23","v":0},{"$f":"C23+D23+E23+H23","v":130}]
[]
[]
["Напомена 1: Средства за КПП 076 и за испоручену крв за осигурана лица Републичког фонда приликом пружања услуга ван уговорене накнаде"]
["Напомена 2: Уз образац Крв 1 здравствена установа треба да достави и обавештење на које се установе и у ком износу односи податак исказан у колонама 4 и 5"]

{"sheet":"Krv2a","index":7,"n_rows":365,"n_cols":4,"rows_kept":365,"merged":[[4,0,4,6],[8,0,8,3]]}
["РЕПУБЛИЧКИ ФОНД ЗА ЗДРАВСТВЕНО",null,null,"КРВ 2а"]
["ОСИГУРАЊЕ - БЕОГРАД"]
["Јована Мариновића 2"]
[]
[]
[]
[{"$f":"\"ФИЛИЈАЛА:   \" & Filijala","v":"ФИЛИЈАЛА:   20 НИШ"}]
[{"$f":"\"ЗДРАВСТВЕНА УСТАНОВА:  \" & ZU","v":"ЗДРАВСТВЕНА УСТАНОВА:  00220011 СП Б ОЗРЕН"}]
["ОСТВАРЕНИ ПРИХОДИ ОД ЗДРАВСТВЕНИХ УСТАНОВА ИЗ ПЛАНА МРЕЖЕ ПО ОСНОВУ ПРОДАЈЕ КРВИ И ЛАБИЛНИХ ПРОДУКАТА ОД КРВИ ЗА ОСИГУРАНА ЛИЦА РЕПУБЛИЧКОГ ФОНДА у периоду од 01.01.2020. - 30.09.2020. године"]
[{"$nulls":3},"у хиљадама (000) динара"]
[null,"Р.  бр.","781100 - Остварени приходи од здравствених установа из плана мреже по основу продаје крви и лабилних продуката од крви за осигурана лица Републичког фонда","Износ"]
[{"$nulls":3},1]
[null,"1","00201001 Дом здравља \"Др Јанош Хаџи\", Бачка Топола"]
[null,"2","00201002 Дом здравља \"Др Мартон Шандор\", Мали Иђош"]
[null,"3","00201004 Завод за јавно здравље Суботица"]
[null,"4","00201005 Апотека Суботица"]
[null,"5","00201006 Дом здравља Суботица"]
[null,"6","00201007 Општа болница Суботица"]
[null,"7","00202001 Дом здравља  Житиште"]
[null,"8","00202003 Дом здравља Нови Бечеј"]
[null,"9","00202004 Дом здравља Сечањ"]
[null,"10","00202005 Дом здравља Нова Црња"]
[null,"11","00202007 Специјална болница \"Русанда\" Меленци"]
[null,"12","00202008 Специјална болница за плућне болести \"Др Васа Савић\", Зрењанин"]
[null,"13","00202009 Завод за јавно здравље Зрењанин"]
[null,"14","00202010 Апотека Зрењанин"]
[null,"15","00202011 Дом здравља \"Др Бошко Вребалов\" Зрењанин"]
[null,"16","00202012 Општа болница \"Ђ. Јовановић\" Зрењанин"]
[null,"17","00203001 Дом здравља Ада"]
[null,"18","00203002 Дом здравља Кањижа"]
[null,"19","00203003 Дом здравља Нови Кнежевац"]
[null,"20","00203004 Дом здравља Чока"]
[null,"21","00203007 Специјална болница \"Свети Врачеви\", Нови Кнежевац"]
[null,"22","00203008 Специјална болница за рехабилитацију \" Бања Кањижа \""]
[null,"23","00203009 Завод за јавно здравље Кикинда"]
[null,"24","00203010 Апотека Кикинда"]
[null,"25","00203011 Дом здравља Кикинда"]
[null,"26","00203012 Општа болница Кикинда"]
[null,"27","00203013 Дом здравља Сента"]
[null,"28","00203014 Општа болница Сента"]
[null,"29","00203015 Апотека Сента"]
[null,"30","00204001 Дом здравља Алибунар"]
[null,"31","00204002 Дом здравља Бела Црква"]
[null,"32","00204003 Дом здравља Ковачица"]
[null,"33","00204004 Дом здравља \"Ковин\", Ковин"]
[null,"34","00204005 Дом здравља Опово"]
[null,"35","00204006 Дом здравља \"1.Октобар\", Пландиште"]
[null,"36","00204009 Специјална болница за плућне болести \"Др Будислав Бабић\" Бела Црква"]
[null,"37","00204010 Специјална болница за психијатријске болести \"Др Славољуб Бакаловић\" Вршац"]
[null,"38","00204011 Неуропсихијатријска болница \"Ковин\", Ковин"]
[null,"39","00204012 Завод за јавно здравље Панчево"]
[null,"40","00204014 Апотека Вршац"]
[null,"41","00204015 Дом здравља Вршац"]
[null,"42","00204016 Општа болница Вршац"]
[null,"43","00204017 Дом здравља Панчево"]
[null,"44","00204018 Општа болница Панчево"]
[null,"45","00205001 Дом здравља Апатин"]
[null,"46","00205002 Дом здравља Кула"]
[null,"47","00205003 Дом здравља \"Каменко Гагрчин\", Оџаци"]
[null,"48","00205005 Завод за јавно здравље Сомбор"]
[null,"49","00205006 Апотека Сомбор"]
[null,"50","00205007 Дом здравља \"Др Ђорђе Лазић\" Сомбор"]
[null,"51","00205008 Општа болница \"Др Радивој Симоновић\" Сомбор"]
[null,"52","00205009 Специјална болница за рехабилитацију\"Јунаковић\"Апатин"]
[null,"53","00206001 Дом здравља Бач"]
[null,"54","00206002 Дом здравља \"Др Младен Стојановић\", Бачка Паланка"]
[null,"55","00206003 Дом здравља Бачки Петровац"]
[null,"56","00206004 Дом здравља \"Др Душан Савић-Дода\" Беочин"]
[null,"57","00206005 Дом здравља Бечеј"]
[null,"58","00206006 Дом здравља Жабаљ"]
[null,"59","00206007 Дом здравља \"Др Ђорђе Бастић\", Србобран"]
[null,"60","00206008 Дом здравља Темерин"]
[null,"61","00206009 Дом здравља Тител"]
[null,"62","00206010 Дом здравља \"Нови Сад\""]
[null,"63","00206012 Завод за трансфузију крви Војводине"]
[null,"64","00206013 Специјална болница за реуматске болести Нови Сад"]
[null,"65","00206014 Институт за јавно здравље Војводине"]
[null,"66","00206015 Институт за онкологију  Војводине, Сремска Каменица"]
[null,"67","00206016 Институт за плућне болести Војводине, Сремска Каменица"]
[null,"68","00206017 Институт за кардиоваскуларне болести Војводине, Сремска Каменица"]
[null,"69","00206018 Институт за здравствену заштиту деце и омладине Војводине, Нови Сад"]
[null,"70","00206019 Клиника за стоматологију Војводине, Нови Сад"]
[null,"71","00206020 Клинички центар Војводине Нови Сад"]
[null,"72","00206021 Завод за здравствену заштиту радника Нови Сад"]
[null,"73","00206022 Завод за здравствену заштиту студената Нови Сад"]
[null,"74","00206023 Пастеров завод Нови Сад"]
[null,"75","00206024 Апотека Нови Сад"]
[null,"76","00206025 Завод за хитну медицинску помоћ , Нови Сад"]
[null,"77","00206026 Дом здравља \"Вељко Влаховић\" Врбас"]
[null,"78","00206027 Општа болница \"Врбас\" Врбас"]
[null,"79","00206028 Апотека Врбас"]
[null,"80","00206029 Војномедицински центар Нови Сад"]
[null,"81","00207001 Дом здравља \"Милорад Мика Павловић\", Инђија"]
[null,"82","00207002 Дом здравља \"Др Драган Фундук\", Пећинци"]
[null,"83","00207003 Дом здравља Рума"]
[null,"84","00207004 Дом здравља \"Јован Јовановић-Змај\", Стара Пазова"]
[null,"85","00207005 Дом здравља Шид"]
[null,"86","00207007 Специјална болница \"Др Боривоје Гњатић\""]
[null,"87","00207008 Завод за јавно здравље Сремска Митровица"]
[null,"88","00207009 Специјална болница за рехабилитацију Термал Врдник"]
[null,"89","00207010 Апотека Сремска Митровица"]
[null,"90","00207011 Дом здравља Ириг"]
[null,"91","00207012 Дом здравља Сремска Митровица"]
[null,"92","00207013 Општа болница Сремска Митровица"]
[null,"93","00208001 Дом здравља Богатић"]
[null,"94","00208002 Дом здравља Љубовија"]
[null,"95","00208005 Специјална болница за рехабилитацију Бања Ковиљача"]
[null,"96","00208006 Завод за јавно здравље Шабац"]
[null,"97","00208007 Здравствена установа \"Апотека Лозница\""]
[null,"98","00208009 Општа болница Шабац"]
[null,"99","00208010 Дом здравља Шабац"]
[null,"100","00208011 Дом здравља Владимирци"]
[null,"101","00208012 Дом здравља \"Др Даринка Лукић\" Коцељева"]
[null,"102","00208013 Дом здравља Лозница"]
[null,"103","00208014 Дом здравља Крупањ"]
[null,"104","00208015 Дом здравља Мали Зворник"]
[null,"105","00208016 Општа болница Лозница"]
[null,"106","00209001 Дом здравља Уб"]
[null,"107","00209003 Здравствена  установа  Апотека Ваљево"]
[null,"108","00209004 Дом здравља Лајковац"]
[null,"109","00209005 Завод за јавно здравље Ваљево"]
[null,"110","00209007 Дом здравља Ваљево"]
[null,"111","00209008 Дом здравља Осечина"]
[null,"112","00209009 Дом здравља Љиг"]
[null,"113","00209010 Дом здравља Мионица"]
[null,"114","00209011 Општа болница Ваљево"]
[null,"115","00210002 Општа болница \"Стефан Високи\", Смедеревска Паланка"]
[null,"116","00210003 СЗУ Апотека Здравље"]
[null,"117","00210004 Апотека Смедерево"]
[null,"118","00210005 Дом здравља Велика Плана"]
[null,"119","00210006 Дом здравља Смедеревска Паланка"]
[null,"120","00210007 Апотека \"Медица\" Велика Плана"]
[null,"121","00210008 Општа болница Свети Лука, Смедерево"]
[null,"122","00210009 Дом здравља Смедерево"]
[null,"123","00211001 Дом здравља Велико Градиште"]
[null,"124","00211002 Дом здравља Жагубица"]
[null,"125","00211005 Завод за јавно здравље Пожаревац"]
[null,"126","00211006 Здравствена установа Апотека Пожаревац"]
[null,"127","00211007 Дом здравља Жабари"]
[null,"128","00211008 Дом здравља Голубац"]
[null,"129","00211009 Дом здравља Кучево"]
[null,"130","00211010 Дом здравља Мало Црниће"]
[null,"131","00211011 Дом здравља Пожаревац"]
[null,"132","00211012 Општа болница Пожаревац"]
[null,"133","00211013 Дом здравља Петровац на Млави"]
[null,"134","00211014 Општа болница Петровац на Млави"]
[null,"135","00212001 Дом здравља Крагујевац"]
[null,"136","00212002 Дом здравља Баточина"]
[null,"137","00212003 Дом здравља \"Даница и Коста Шамановић\", Кнић"]
[null,"138","00212004 Дом здравља Лапово"]
[null,"139","00212005 Дом здравља \"Милоје Хаџић - Шуле\", Рача"]
[null,"140","00212006 Дом здравља \"Свети Ђорђе\", Топола"]
[null,"141","00212007 Здравствени центар Аранђеловац"]
[null,"142","00212008 Завод за стоматологију Крагујевац"]
[null,"143","00212009 Специјална болница за рехабилитацију Буковицка бања Аранђеловац"]
[null,"144","00212010 Клинички центар Крагујевац"]
[null,"145","00212011 Институт за јавно здравље Крагујевац"]
[null,"146","00212012 Апотека Крагујевац"]
[null,"147","00212013 Апотека \"Шумадија\" Аранђеловац"]
[null,"148","00212014 Завод за хитну медецинску помоћ Крагујевац"]
[null,"149","00213001 Дом здравља Деспотовац"]
[null,"150","00213002 Дом здравља Свилајнац"]
[null,"151","00213005 Завод за јавно здравље Ћуприја \"Поморавље\""]
[null,"152","00213007 Дом здравља Рековац"]
[null,"153","00213008 Дом здравља Јагодина"]
[null,"154","00213009 Општа болница Јагодина"]
[null,"155","00213010 Здравствена установа апотека Јагодина"]
[null,"156","00213011 Дом здравља Ћуприја"]
[null,"157","00213012 Општа болница Ћуприја"]
[null,"158","00213014 Дом здравља Параћин"]
[null,"159","00213015 Апотека Параћин"]
[null,"160","00213016 Општа болница Параћин"]
[null,"161","00214002 Здравствени центар Неготин"]
[null,"162","00214003 Здравствени центар Кладово"]
[null,"163","00214006 Дом здравља Др Верољуб Цакић Мајданпек"]
[null,"164","00214007 Општа болница Мајданпек"]
[null,"165","00214008 Дом здравља Бор"]
[null,"166","00214009 Општа болница Бор"]
[null,"167","00215001 Дом здравља Бољевац"]
[null,"168","00215002 Здравствени центар Књажевац"]
[null,"169","00215003 Здравствени центар Зајечар"]
[null,"170","00215004 Специјална болница за рехабилитацију Гамзиград"]
[null,"171","00215005 Завод за јавно здравље \"Тимок\" Зајечар"]
[null,"172","00215006 Апотека Зајечар"]
[null,"173","00216001 Здравствени центар Ужице"]
[null,"174","00216003 Спец. болница за болести штитасте жлезде и болести метаболизма \"Златибор\""]
[null,"175","00216004 Завод за јавно здравље Ужице"]
[null,"176","00216005 Апотека Ужице"]
[null,"177","00217003 Специјална болница за рехабилитацију Ивањица"]
[null,"178","00217004 Завод за јавно здравље Чачак"]
[null,"179","00217005 Апотека Чачак"]
[null,"180","00217007 Дом здравља Горњи Милановац"]
[null,"181","00217008 Општа болница Горњи Милановац"]
[null,"182","00217009 Дом здравља \"Чачак\", Чачак"]
[null,"183","00217010 Дом здравља Ивањица"]
[null,"184","00217011 Дом здравља Лучани"]
[null,"185","00217012 Општа болница Чачак"]
[null,"186","00218001 Дом здравља Рашка"]
[null,"187","00218004 Завод за јавно здравље Краљево"]
[null,"188","00218005 Специјална болница \"Новопазарска Бања\""]
[null,"189","00218006 Завод за специјалну рехабилитацију Врњачка Бања"]
[null,"190","00218007 Специјална болница за рехабилитацију \"Агенс\" Матарушка Бања"]
[null,"191","00218008 Апотека Краљево"]
[null,"192","00218009 Дом здравља Тутин"]
[null,"193","00218010 Дом здравља Врњачка Бања"]
[null,"194","00218011 Специјална болница за интерне болести Врњачка Бања"]
[null,"195","00218012 Дом здравља Нови Пазар"]
[null,"196","00218013 Општа болница Нови Пазар"]
[null,"197","00218014 Дом здравља Краљево"]
[null,"198","00218015 Општа болница Студеница Краљево"]
[null,"199","00218016 Завод за јавно здравље Нови Пазар"]
[null,"200","00219001 Дом здравља \"Др Сава Станојевић\", Трстеник"]
[null,"201","00219003 Специјална болница за рехабилитацију \"Рибарска Бања\""]
[null,"202","00219004 Завод за јавно здравље Крушевац"]
[null,"203","00219005 Апотека Крушевац"]
[null,"204","00219006 Дом здравља Брус"]
[null,"205","00219007 Дом здравља \"Др Добривоје Гер Поповић\", Александровац"]
[null,"206","00219008 Дом здравља Ћићевац"]
[null,"207","00219009 Дом здравља \"Др Властимир Годић\" Варварин"]
[null,"208","00219012 Општа болница Крушевац"]
[null,"209","00219013 Дом здравља Крушевац"]
[null,"210","00220001 Дом здравља Гаџин Хан"]
[null,"211","00220002 Дом здравља Дољевац"]
[null,"212","00220003 Дом здравља \"Др Љубинко Ђорђевић\", Сврљиг"]
[null,"213","00220004 Дом здравља Соко Бања"]
[null,"214","00220005 Дом здравља Ниш"]
[null,"215","00220006 Дом здравља Мерошина"]
[null,"216","00220007 Дом здравља Ражањ"]
[null,"217","00220009 Специјална псхијатријска болница \"Горња Топоница\""]
[null,"218","00220010 Специјална болница за неспец. плућне болести \"Сокобања\""]
[null,"219","00220011 Специјална болница за плућне болести Озрен, Сокобања"]
[null,"220","00220012 Завод за хитну медицинску помоћ  Ниш"]
[null,"221","00220013 Завод за здравствену заштиту радника Ниш"]
[null,"222","00220014 Завод за здравствену заштиту студената Ниш"]
[null,"223","00220015 Завод за плућне болести и туберкулозу Ниш"]
[null,"224","00220016 Завод за трансфузију крви "]
[null,"225","00220017 Завод за судску медицину Ниш"]
[null,"226","00220018 Институт за лечење и рехабилитацију Нишка Бања, Ниш"]
[null,"227","00220019 Клинички центар Ниш"]
[null,"228","00220020 Клиника за стоматологију Ниш"]
[null,"229","00220021 Институт за јавно здравље Ниш"]
[null,"230","00220022 Апотека Ниш"]
[null,"231","00220024 Војна болница Ниш"]
[null,"232","00220025 Дом здравља Алексинац"]
[null,"233","00220026 Општа болница Алексинац"]
[null,"234","00221001 Дом здравља Куршумлија"]
[null,"235","00221002 Дом здравља Блаце"]
[null,"236","00221005 Аптоека Прокупље"]
[null,"237","00221006 Дом здравља Житорађа"]
[null,"238","00221007 Дом здравља Прокупље"]
[null,"239","00221008 Општа болница Прокупље"]
[null,"240","00222001 Дом здравља Бела Паланка"]
[null,"241","00222003 Завод за јавно здравље Пирот"]
[null,"242","00222004 Апотека Пирот"]
[null,"243","00222005 Дом здравља \"Др Јован Ристић\", Бабушница"]
[null,"244","00222006 Дом здравља Димитровград"]
[null,"245","00222007 Дом здравља Пирот"]
[null,"246","00222008 Општа болница Пирот"]
[null,"247","00223001 Дом здравља Бојник"]
[null,"248","00223003 Завод за јавно здравље Лесковац"]
[null,"249","00223004 Апотека Лесковац"]
[null,"250","00223005 Дом здравља Лебане"]
[null,"251","00223006 Специјална болница за рехабилаитацију Гејзер, Сијаринска Бања"]
[null,"252","00223007 Дом здравља Власотинце"]
[null,"253","00223008 Дом здравља Лесковац"]
[null,"254","00223009 Општа болница Лесковац"]
[null,"255","00223010 Дом здравља Медвеђа"]
[null,"256","00224001 Здравствени центар Врање"]
[null,"257","00224002 Здравствени центар Сурдулица"]
[null,"258","00224003 Специјална болница  за плућне болести и туберкулозу Сурдулица"]
[null,"259","00224004 Специјална болница за рехабилаитацију Бујановац, Бујановачка Бања"]
[null,"260","00224005 Специјална болница за рехабилитацију Врањска Бања"]
[null,"261","00224006 Завод за јавно здравње Врање"]
[null,"262","00224007 Апотека Врање"]
[null,"263","00224008 Дом здравља Владичин Хан"]
[null,"264","00224009 Дом здравља Бујановац"]
[null,"265","00224010 Дом Здравља Босилеград"]
[null,"266","00224011 Апотека Бујановац"]
[null,"267","00224012 Дом здравља Прешево"]
[null,"268","00224013 Дом здравља Трговиште"]
[null,"269","00225001 Дом зравља Грачаница"]
[null,"270","00225002 Дом здравља Доња Гуштерица"]
[null,"271","00225003 Дом Здравља Косово Поље"]
[null,"272","00225004 Дом здравља Обилић"]
[null,"273","00225005 ДомЗдравља Штрпце"]
[null,"274","00225006 Клиничко болнички центар Приштина"]
[null,"275","00225007 Апотекарска установа Приштина"]
[null,"276","00225008 Здравствени центар Призрен"]
[null,"277","00225009 Дом здравља Приштина"]
[null,"278","00225010 Дом здравља Драгаш"]
[null,"279","00225011 Апотекарска установа Призрен"]
[null,"280","00225012 Дом здравља Исток"]
[null,"281","00225013 Здравствени центар Пећ"]
[null,"282","00225014 Специјална болница за плућне болести Пећ"]
[null,"283","00225015 Здравствени центар Ђаковица"]
[null,"284","00225016 Апотекарса установа Пећ"]
[null,"285","00225017 Завод за специјализовану рехабилитацију Исток"]
[null,"286","00228001 Дом здравља Звечан"]
[null,"287","00228002 Здравствени центар Косовска Митровица"]
[null,"288","00228003 Апотека Косовска Митровица"]
[null,"289","00228004 Завод за јавно здравње - Приштина"]
[null,"290","00229001 Апотека Гњилане"]
[null,"291","00229002 Здравствени центар Гњилане"]
[null,"292","00230001 Дом здравља \"Др Милорад Влајковић\" Барајево"]
[null,"293","00230002 Дом здравља Вождовац"]
[null,"294","00230003 Дом здравља Врачар"]
[null,"295","00230004 Дом здравља Гроцка"]
[null,"296","00230005 Дом здравља \"Звездара\""]
[null,"297","00230006 Дом здравља Земун"]
[null,"298","00230007 Дом здравља \"Др Ђорђе Ковачевић\", Лазаревац"]
[null,"299","00230008 Дом здравља Младеновац"]
[null,"300","00230009 Дом здравља Нови Београд"]
[null,"301","00230010 Дом здравља Обреновац"]
[null,"302","00230011 Дом здравља \"Др Милутин Ивковић\", Палилула"]
[null,"303","00230012 Дом здравља Раковица"]
[null,"304","00230013 Дом здравља Савски Венац"]
[null,"305","00230014 Дом здравља Сопот"]
[null,"306","00230015 Дом здравља Стари Град, Београд"]
[null,"307","00230016 Дом здравља \" Др Симо Милошевић\", Чукарица"]
[null,"308","00230017 Специјална болница за интерне болести Младеновац"]
[null,"309","00230018 Спец. болница за церебралну парализу и развојну неурологију, Београд"]
[null,"310","00230019 Институт за неонатологију, Београд"]
[null,"311","00230020 Спец. болница за цереброваскуларна обољења \"Свети Сава\" Београд"]
[null,"312","00230021 Градски завод за хитну медицинску помоћ Београд"]
[null,"313","00230022 Градски завод за кожне и венеричне болести Београд"]
[null,"314","00230023 Градски завод за геронтологију и палијативно збрињавање, Београд"]
[null,"315","00230024 Градски завод за јавно здравље Београд"]
[null,"316","00230025 Градски завод за антитуберкулозну заштиту и болести плућа Београд"]
[null,"317","00230026 Завод за ендемску нефропатију, Лазаревац"]
[null,"318","00230027 Завод за здравствену заштиту студената, Београд"]
[null,"319","00230028 Завод за здравствену заштиту радника МУП-а"]
[null,"320","00230030 Специјална болница за рехабилитацију и ортопедску протетику, Београд"]
[null,"321","00230031 Институт за трансфузију крви Србије"]
[null,"322","00230032 Специјална болница за болести зависности"]
[null,"323","00230033 Завод за психофизичке поремећаје и говорну патологију Београд"]
[null,"324","00230034 Институт за ортопедско - хируршке болести \"Бањица\", Београд"]
[null,"325","00230035 Институт за неуропсихијатријске болести \"Др Лаза Лазаревић\""]
[null,"326","00230036 Институт за кардиоваскуларне болести \"Дедиње\""]
[null,"327","00230037 Институт за здравствену заштиту мајке и детета Србије \"Др Вукан Чупић\", Н.Београд"]
[null,"328","00230038 Институт за ментално здравље Београд"]
[null,"329","00230039 Институт за онкологију и радијологију Србије, Београд"]
[null,"330","00230040 Институт за реуматологију Београд"]
[null,"331","00230041 Институт за рехабилитацију Србије, Београд"]
[null,"332","00230042 Клиника за рехабилитацију \"Др Мирослав Зотовић\""]
[null,"333","00230043 Клиника за неурологију и психијатрију за децу и омладину, Београд"]
[null,"334","00230044 Универзитетска дечја клиника, Београд"]
[null,"335","00230045 Гинеколошко акушерска клиника \" Народни фронт\", Београд"]
[null,"336","00230047 Клиничко-болнички центар Бежанијска Коса"]
[null,"337","00230048 Клиничко-болнички центар \"Др Драгиша Мишовић\" Дедиње"]
[null,"338","00230049 Клиничко болнички центар Земун"]
[null,"339","00230050 Клиничко болнички центар Звездара, Београд"]
[null,"340","00230051 Клинички центар Србије"]
[null,"341","00230052 Апотека Београд"]
[null,"342","00230053 Институт за јавно здравље Србије \"др Милан Јовановић Батут\""]
[null,"343","00230054 Институт за вирусологију, вакцине и серуме Торлак"]
[null,"344","00230055 Војномедицинска академија"]
[null,"345","00230057 Институт за медицину рада Србије Др Драгомир Карајовић"]
[null,"346","00312001 Застава - Завод за здравствену заштиту радника, Крагујевац"]
[null,null,"УКУПНО:",{"$f":"SUM(D13:D358)","v":0}]
[]
[]
[]
[]
["Саставио:",null,null,"Директор здравствене установе:"]
["______________________",null,null,"______________________________"]

{"sheet":"Krv2b","index":8,"n_rows":284,"n_cols":4,"rows_kept":284,"merged":[[4,0,4,6],[9,0,9,3],[12,0,14,0],[12,1,14,1],[12,2,14,2],[12,3,14,3]]}
["РЕПУБЛИЧКИ ФОНД ЗА ЗДРАВСТВЕНО",null,null,"КРВ 2б"]
["ОСИГУРАЊЕ - БЕОГРАД"]
["Јована Мариновића 2"]
[]
[]
[]
[{"$f":"\"ФИЛИЈАЛА:   \" & Filijala","v":"ФИЛИЈАЛА:   20 НИШ"}]
[{"$f":"\"ЗДРАВСТВЕНА УСТАНОВА:  \" & ZU","v":"ЗДРАВСТВЕНА УСТАНОВА:  00220011 СП Б ОЗРЕН"}]
[]
["ИЗВРШЕНИ РАСХОДИ ИЗ ОСТВАРЕНИХ ПРИХОДА ОД ПРОДАЈЕ КРВИ \nИ ЛАБИЛНИХ ПРОДУКАТА ОД КРВИ \nу периоду од 01.01.2020. - 30.09.2020. године"]
[]
[{"$nulls":3},"у хиљадама (000) динара"]
["Ознака ОП","Број конта","Опис","Износ"]
[]
[]
[1,2,3,4]
[5172,null,"ТЕКУЋИ РАСХОДИ И ИЗДАЦИ ЗА НЕФИНАНСИЈСКЕ ИМОВИНЕ (5173 + 5341)",{"$f":"D18+D186","v":0}]
[5173,400000,"ТЕКУЋИ РАСХОДИ (5174 + 5196 + 5241 + 5256 + 5280 + 5293 + 5309 + 5324)",{"$f":"D19+D41+D86+D101+D125+D138+D154+D169","v":0}]
[5174,410000,"РАСХОДИ ЗА ЗАПОСЛЕНЕ (5175 + 5177 + 5181 + 5183 + 5188 + 5190 + 5192 + 5194)",{"$f":"D20+D22+D26+D28+D33+D35+D37+D39","v":0}]
[5175,411000,"ПЛАТЕ, ДОДАЦИ И НАКНАДЕ ЗАПОСЛЕНИХ (ЗАРАДЕ) (5176)",{"$f":"D21","v":0}]
[5176,411100,"Плате, додаци и накнаде запослених"]
[5177,412000,"СОЦИЈАЛНИ ДОПРИНОСИ НА ТЕРЕТ ПОСЛОДАВЦА (од 5178 до 5180)",{"$f":"SUM(D23:D25)","v":0}]
[5178,412100,"Допринос за пензијско и инвалидско осигурање"]
[5179,412200,"Допринос за здравствено осигурање"]
[5180,412300,"Допринос за незапосленост"]
[5181,413000,"НАКНАДЕ У НАТУРИ (5182)",{"$f":"D27","v":0}]
[5182,413100,"Накнаде у натури"]
[5183,414000,"СОЦИЈАЛНА ДАВАЊА ЗАПОСЛЕНИМА (од 5184 до 5187)",{"$f":"SUM(D29:D32)","v":0}]
[5184,414100,"Исплата накнада за време одсуствовања с посла на терет фондова"]
[5185,414200,"Расходи за образовање деце запослених"]
[5186,414300,"Отпремнине и помоћи"]
[5187,414400,"Помоћ у медицинском лечењу запосленог или чланова уже породице и друге помоћи запосленом"]
[5188,415000,"НАКНАДА ТРОШКОВА ЗА ЗАПОСЛЕНЕ (5189)",{"$f":"D34","v":0}]
[5189,415100,"Накнаде трошкова за запослене"]
[5190,416000,"НАГРАДЕ ЗАПОСЛЕНИМА И ОСТАЛИ ПОСЕБНИ РАСХОДИ (5191)",{"$f":"D36","v":0}]
[5191,416100,"Награде запосленима и остали посебни расходи"]
[5192,417000,"ПОСЛАНИЧКИ ДОДАТАК (5193)",{"$f":"D38","v":0}]
[5193,417100,"Посланички додатак"]
[5194,418000,"СУДИЈСКИ ДОДАТАК (5195)",{"$f":"D40","v":0}]
[5195,418100,"Судијски додатак"]
[5196,420000,"КОРИШЋЕЊЕ УСЛУГА И РОБА (5197 + 5205 + 5211 + 5220 + 5228 + 5231) ",{"$f":"D42+D50+D56+D65+D73+D76","v":0}]
[5197,421000,"СТАЛНИ ТРОШКОВИ (од 5198 до 5204)",{"$f":"SUM(D43:D49)","v":0}]
[5198,421100,"Трошкови платног промета и банкарских услуга"]
[5199,421200,"Енергетске услуге"]
[5200,421300,"Комуналне услуге"]
[5201,421400,"Услуге комуникација"]
[5202,421500,"Трошкови осигурања"]
[5203,421600,"Закуп имовине и опреме"]
[5204,421900,"Остали трошкови"]
[5205,422000,"ТРОШКОВИ ПУТОВАЊА (од 5206 до 5210)",{"$f":"SUM(D51:D55)","v":0}]
[5206,422100,"Трошкови службених путовања у земљи"]
[5207,422200,"Трошкови службених путовања у иностранство"]
[5208,422300,"Трошкови путовања у оквиру редовног рада"]
[5209,422400,"Трошкови путовања ученика"]
[5210,422900,"Остали трошкови транспорта"]
[5211,423000,"УСЛУГЕ ПО УГОВОРУ (од 5212 до 5219)",{"$f":"SUM(D57:D64)","v":0}]
[5212,423100,"Административне услуге"]
[5213,423200,"Компјутерске услуге"]
[5214,423300,"Услуге образовања и усавршавања запослених"]
[5215,423400,"Услуге информисања"]
[5216,423500,"Стручне услуге"]
[5217,423600,"Услуге за домаћинство и угоститељство"]
[5218,423700,"Репрезентација"]
[5219,423900,"Остале опште услуге"]
[5220,424000,"СПЕЦИЈАЛИЗОВАНЕ УСЛУГЕ (од 5221 до 5227)",{"$f":"SUM(D66:D72)","v":0}]
[5221,424100,"Пољопривредне услуге"]
[5222,424200,"Услуге образовања, културе и спорта"]
[5223,424300,"Медицинске услуге"]
[5224,424400,"Услуге одржавања аутопутева"]
[5225,424500,"Услуге одржавања националних паркова и природних површина"]
[5226,424600,"Услуге очувања животне средине, науке и геодетске услуге"]
[5227,424900,"Остале специјализоване услуге"]
[5228,425000,"ТЕКУЋЕ ПОПРАВКЕ И ОДРЖАВАЊЕ (5229 + 5230)",{"$f":"D74+D75","v":0}]
[5229,425100,"Текуће поправке и одржавање зграда и објеката"]
[5230,425200,"Текуће поправке и одржавање опреме"]
[5231,426000,"МАТЕРИЈАЛ (од 5232 до 5240)",{"$f":"SUM(D77:D85)","v":0}]
[5232,426100,"Административни материјал"]
[5233,426200,"Материјали за пољопривреду"]
[5234,426300,"Материјали за образовање и усавршавање запослених"]
[5235,426400,"Материјали за саобраћај"]
[5236,426500,"Материјали за очување животне средине и науку"]
[5237,426600,"Материјали за образовање, културу и спорт"]
[5238,426700,"Медицински и лабораторијски материјали"]
[5239,426800,"Материјали за одржавање хигијене и угоститељство"]
[5240,426900,"Материјали за посебне намене"]
[5241,430000,"АМОРТИЗАЦИЈА И УПОТРЕБА СРЕДСТАВА ЗА РАД (5242 + 5246 + 5248 + 5250 + 5254)",{"$f":"D87+D91+D93+D95+D99","v":0}]
[5242,431000,"АМОРТИЗАЦИЈА НЕКРЕТНИНА И ОПРЕМЕ (од 5243 до 5245)",{"$f":"SUM(D88:D90)","v":0}]
[5243,431100,"Амортизација зграда и грађевинскиx објеката"]
[5244,431200,"Амортизација опреме"]
[5245,431300,"Амортизација осталих некретнина и опреме"]
[5246,432000,"АМОРТИЗАЦИЈА КУЛТИВИСАНЕ ИМОВИНЕ (5247)",{"$f":"D92","v":0}]
[5247,432100,"Амортизација култивисане опреме"]
[5248,433000,"УПОТРЕБА ДРАГОЦЕНОСТИ (5249)",{"$f":"D94","v":0}]
[5249,433100,"Употреба драгоцености"]
[5250,434000,"УПОТРЕБА ПРИРОДНЕ ИМОВИНЕ (од 5251 до 5253)",{"$f":"SUM(D96:D98)","v":0}]
[5251,434100,"Употреба земљишта"]
[5252,434200,"Употреба подземног блага"]
[5253,434300,"Употреба шума и вода"]
[5254,435000,"АМОРТИЗАЦИЈА НЕМАТЕРИЈАЛНЕ ИМОВИНЕ (5255)",{"$f":"D100","v":0}]
[5255,435100,"Амортизација нематеријалне имовине"]
[5256,440000,"ОТПЛАТА КАМАТА И ПРАТЕЋИ ТРОШКОВИ ЗАДУЖИВАЊА (5257 + 5267 + 5274 + 5276)",{"$f":"D102+D112+D119+D121","v":0}]
[5257,441000,"ОТПЛАТЕ ДОМАЋИХ КАМАТА (од 5258 до 5266)",{"$f":"SUM(D103:D111)","v":0}]
[5258,441100,"Отплата камата на домаће хартије од вредности"]
[5259,441200,"Отплата камата осталим нивоима власти"]
[5260,441300,"Отплата камата домаћим јавним финансијским институцијама"]
[5261,441400,"Отплата камата домаћим пословним банкама"]
[5262,441500,"Отплата камата осталим домаћим кредиторима"]
[5263,441600,"Отплата камата домаћинствима у земљи"]
[5264,441700,"Отплата камата на домаће финансијске деривате"]
[5265,441800,"Отплата камата на домаће менице"]
[5266,441900,"Финансијске промене на финансијским лизинзима"]
[5267,442000,"ОТПЛАТА СТРАНИХ КАМАТА (од 5268 до 5273)",{"$f":"SUM(D113:D118)","v":0}]
[5268,442100,"Отплата камата на хартије од вредности емитоване на иностраном финансијском тржишту"]
[5269,442200,"Отплата камата страним владама"]
[5270,442300,"Отплата камата мултилатералним институцијама"]
[5271,442400,"Отплата камата страним пословним банкама"]
[5272,442500,"Отплата камата осталим страним кредиторима"]
[5273,442600,"Отплата камата на стране финансијске деривате"]
[5274,443000,"ОТПЛАТА КАМАТА ПО ГАРАНЦИЈАМА (5275)",{"$f":"D120","v":0}]
[5275,443100,"Отплата камата по гаранцијама"]
[5276,444000,"ПРАТЕЋИ ТРОШКОВИ ЗАДУЖИВАЊА (од 5277 до 5279)",{"$f":"SUM(D122:D124)","v":0}]
[5277,444100,"Негативне курсне разлике"]
[5278,444200,"Казне за кашњење"]
[5279,444300,"Остали пратећи трошкови задуживања"]
[5280,450000,"СУБВЕНЦИЈЕ (5281 + 5284 + 5287 + 5290)",{"$f":"D126+D129+D132+D135","v":0}]
[5281,451000,"СУБВЕНЦИЈЕ ЈАВНИМ НЕФИНАНСИЈСКИМ ПРЕДУЗЕЋИМА И ОРГАНИЗАЦИЈАМА (5282 + 5283)",{"$f":"D127+D128","v":0}]
[5282,451100,"Текуће субвенције јавним нефинансијским предузећима и организацијама"]
[5283,451200,"Капиталне субвенције јавним нефинансијским предузећима и организацијама"]
[5284,452000,"СУБВЕНЦИЈЕ ПРИВАТНИМ ФИНАНСИЈСКИМ ИНСТИТУЦИЈАМА (5285 + 5286)",{"$f":"D130+D131","v":0}]
[5285,452100,"Текуће субвенције приватним финансијским институцијама"]
[5286,452200,"Капиталне субвенције приватним финансијским институцијама"]
[5287,453000,"СУБВЕНЦИЈЕ ЈАВНИМ ФИНАНСИЈСКИМ ИНСТИТУЦИЈАМА (5288 + 5289)",{"$f":"D133+D134","v":0}]
[5288,453100,"Текуће субвенције јавним финансијским институцијама"]
[5289,453200,"Капиталне субвенције јавним финансијским институцијама"]
[5290,454000,"СУБВЕНЦИЈЕ ПРИВАТНИМ ПРЕДУЗЕЋИМА (5291 + 5292)",{"$f":"D136+D137","v":0}]
[5291,454100,"Текуће субвенције приватним предузећима"]
[5292,454200,"Капиталне субвенције приватним предузећима"]
[5293,460000,"ДОНАЦИЈЕ, ДОТАЦИЈЕ И ТРАНСФЕРИ (5294 + 5297 + 5300 + 5303 + 5306)",{"$f":"D139+D142+D145+D148+D151","v":0}]
[5294,461000,"ДОНАЦИЈЕ СТРАНИМ ВЛАДАМА (5295 + 5296)",{"$f":"D140+D141","v":0}]
[5295,461100,"Текуће донације страним владама"]
[5296,461200,"Капиталне донације страним владама"]
[5297,462000,"ДОТАЦИЈЕ МЕЂУНАРОДНИМ ОРГАНИЗАЦИЈАМА (5298 + 5299)",{"$f":"D143+D144","v":0}]
[5298,462100,"Текуће дотације међународним организацијама"]
[5299,462200,"Капиталне дотације међународним организацијама"]
[5300,463000,"ТРАНСФЕРИ ОСТАЛИМ НИВОИМА ВЛАСТИ (5301 + 5302)",{"$f":"D146+D147","v":0}]
[5301,463100,"Текући трансфери осталим нивоима власти"]
[5302,463200,"Капитални трансфери осталим нивоима власти"]
[5303,464000,"ДОТАЦИЈЕ ОРГАНИЗАЦИЈАМА ОБАВЕЗНОГ СОЦИЈАЛНОГ ОСИГУРАЊА (5304 + 5305)",{"$f":"D149+D150","v":0}]
[5304,464100,"Текуће дотације организацијама обавезног социјалног осигурања"]
[5305,464200,"Капиталне дотације организацијама обавезног социјалног осигурања"]
[5306,465000,"ОСТАЛЕ ДОТАЦИЈЕ И ТРАНСФЕРИ (5307 + 5308)",{"$f":"D152+D153","v":0}]
[5307,465100,"Остале текуће дотације и трансфери"]
[5308,465200,"Остале капиталне дотације и трансфери"]
[5309,470000,"СОЦИЈАЛНО ОСИГУРАЊЕ И СОЦИЈАЛНА ЗАШТИТА (5310 + 5314)",{"$f":"D155+D159","v":0}]
[5310,471000,"ПРАВА ИЗ СОЦИЈАЛНОГ ОСИГУРАЊА (ОРГАНИЗАЦИЈЕ ОБАВЕЗНОГ СОЦИЈАЛНОГ ОСИГУРАЊА) (од 5311 до 5313)",{"$f":"SUM(D156:D158)","v":0}]
[5311,471100,"Права из социјалног осигурања која се исплаћују непосредно домаћинствима"]
[5312,471200,"Права из социјалног осигурања која се исплаћују непосредно пружаоцима услуга"]
[5313,471900,"Трансфери другим организацијама обавезног социјалног осигурања за доприносе за осигурање"]
[5314,472000,"НАКНАДЕ ЗА СОЦИЈАЛНУ ЗАШТИТУ ИЗ БУЏЕТА (од 5315 до 5323)",{"$f":"SUM(D160:D168)","v":0}]
[5315,472100,"Накнаде из буџета у случају болести и инвалидности"]
[5316,472200,"Накнаде из буџета за породиљско одсуство"]
[5317,472300,"Накнаде из буџета за децу и породицу"]
[5318,472400,"Накнаде из буџета за случај незапослености"]
[5319,472500,"Старосне и породичне пензије из буџета"]
[5320,472600,"Накнаде из буџета у случају смрти"]
[5321,472700,"Накнаде из буџета за образовање, културу, науку и спорт"]
[5322,472800,"Накнаде из буџета за становање и живот"]
[5323,472900,"Остале накнаде из буџета"]
[5324,480000,"ОСТАЛИ РАСХОДИ (5325 + 5328 + 5332 + 5334 + 5337 + 5339)",{"$f":"D170+D173+D177+D179+D182+D184","v":0}]
[5325,481000,"ДОТАЦИЈЕ НЕВЛАДИНИМ ОРГАНИЗАЦИЈАМА (5326 + 5327)",{"$f":"D171+D172","v":0}]
[5326,481100,"Дотације непрофитним организацијама које пружају помоћ домаћинствима"]
[5327,481900,"Дотације осталим непрофитним институцијама"]
[5328,482000,"ПОРЕЗИ, ОБАВЕЗНЕ ТАКСЕ И КАЗНЕ (од 5329 до 5331)",{"$f":"SUM(D174:D176)","v":0}]
[5329,482100,"Остали порези"]
[5330,482200,"Обавезне таксе"]
[5331,482300,"Новчане казне и пенали"]
[5332,483000,"НОВЧАНЕ КАЗНЕ И ПЕНАЛИ ПО РЕШЕЊУ СУДОВА (5333)",{"$f":"D178","v":0}]
[5333,483100,"Новчане казне и пенали по решењу судова"]
[5334,484000,"НАКНАДА ШТЕТЕ ЗА ПОВРЕДЕ ИЛИ ШТЕТУ НАСТАЛУ УСЛЕД ЕЛЕМЕНТАРНИХ НЕПОГОДА ИЛИ ДРУГИХ ПРИРОДНИХ УЗРОКА (5335 + 5336)",{"$f":"D180+D181","v":0}]
[5335,484100,"Накнада штете за повреде или штету насталу услед елементарних непогода"]
[5336,484200,"Накнада штете од дивљачи"]
[5337,485000,"НАКНАДА ШТЕТЕ ЗА ПОВРЕДЕ ИЛИ ШТЕТУ НАНЕТУ ОД СТРАНЕ ДРЖАВНИХ ОРГАНА (5338)",{"$f":"D183","v":0}]
[5338,485100,"Накнада штете за повреде или штету нанетих од стране државних органа"]
[5339,489000,"РАСХОДИ КОЈИ СЕ ФИНАНСИРАЈУ ИЗ СРЕДСТАВА ЗА РЕАЛИЗАЦИЈУ НАЦИОНАЛНОГ ИНВЕСТИЦИОНОГ ПЛАНА (5340)",{"$f":"D185","v":0}]
[5340,489100,"Расходи који се финансирају из средстава за реализацију националног инвестиционог плана"]
[5341,500000,"ИЗДАЦИ ЗА НЕФИНАНСИЈСКУ ИМОВИНУ (5342 + 5364 + 5373 + 5376 + 5384)",{"$f":"D187+D209+D218+D221+D229","v":0}]
[5342,510000,"ОСНОВНА СРЕДСТВА (5343 + 5348 + 5358 + 5360 + 5362)",{"$f":"D188+D193+D203+D205+D207","v":0}]
[5343,511000,"ЗГРАДЕ И ГРАЂЕВИНСКИ ОБЈЕКТИ (од 5344 до 5347)",{"$f":"SUM(D189:D192)","v":0}]
[5344,511100,"Куповина зграда и објеката"]
[5345,511200,"Изградња зграда и објеката"]
[5346,511300,"Капитално одржавање зграда и објеката"]
[5347,511400,"Пројектно планирање"]
[5348,512000,"МАШИНЕ И ОПРЕМА (од 5349 до 5357)",{"$f":"SUM(D194:D202)","v":0}]
[5349,512100,"Опрема за саобраћај"]
[5350,512200,"Административна опрема"]
[5351,512300,"Опрема за пољопривреду"]
[5352,512400,"Опрема за заштиту животне средине"]
[5353,512500,"Медицинска и лабораторијска опрема"]
[5354,512600,"Опрема за образовање, културу и спорт"]
[5355,512700,"Опрема за војску"]
[5356,512800,"Опрема за јавну безбедност"]
[5357,512900,"Опрема за производњу, моторна, непокретна и немоторна опрема"]
[5358,513000,"ОСТАЛЕ НЕКРЕТНИНЕ И ОПРЕМА (5359)",{"$f":"D204","v":0}]
[5359,513100,"Остале некретнине и опрема"]
[5360,514000,"КУЛТИВИСАНА ИМОВИНА (5361)",{"$f":"D206","v":0}]
[5361,514100,"Култивисана имовина"]
[5362,515000,"НЕМАТЕРИЈАЛНА ИМОВИНА (5363)",{"$f":"D208","v":0}]
[5363,515100,"Нематеријална имовина"]
[5364,520000,"ЗАЛИХЕ (5365 + 5367 + 5371)",{"$f":"D210+D212+D216","v":0}]
[5365,521000,"РОБНЕ РЕЗЕРВЕ (5366)",{"$f":"D211","v":0}]
[5366,521100,"Робне резерве"]
[5367,522000,"ЗАЛИХЕ ПРОИЗВОДЊЕ (од 5368 до 5370)",{"$f":"SUM(D213:D215)","v":0}]
[5368,522100,"Залихе материјала"]
[5369,522200,"Залихе недовршене производње"]
[5370,522300,"Залихе готових производа"]
[5371,523000,"ЗАЛИХЕ РОБЕ ЗА ДАЉУ ПРОДАЈУ (5372)",{"$f":"D217","v":0}]
[5372,523100,"Залихе робе за даљу продају"]
[5373,530000,"ДРАГОЦЕНОСТИ (5374)",{"$f":"D219","v":0}]
[5374,531000,"ДРАГОЦЕНОСТИ (5375)",{"$f":"D220","v":0}]
[5375,531100,"Драгоцености"]
[5376,540000,"ПРИРОДНА ИМОВИНА (5377 + 5379 + 5381)",{"$f":"D222+D224+D226","v":0}]
[5377,541000,"ЗЕМЉИШТЕ (5378)",{"$f":"D223","v":0}]
[5378,541100,"Земљиште"]
[5379,542000,"РУДНА БОГАТСТВА (5380)",{"$f":"D225","v":0}]
[5380,542100,"Копови"]
[5381,543000,"ШУМЕ И ВОДЕ (5382 + 5383)",{"$f":"D227+D228","v":0}]
[5382,543100,"Шуме"]
[5383,543200,"Воде"]
[5384,550000,"НЕФИНАНСИЈСКА ИМОВИНА КОЈА СЕ ФИНАНСИРА ИЗ СРЕДСТАВА ЗА РЕАЛИЗАЦИЈУ НАЦИОНАЛНОГ ИНВЕСТИЦИОНОГ ПЛАНА (5385)",{"$f":"D230","v":0}]
[5385,551000,"НЕФИНАНСИЈСКА ИМОВИНА КОЈА СЕ ФИНАНСИРА ИЗ СРЕДСТАВА ЗА РЕАЛИЗАЦИЈУ НАЦИОНАЛНОГ ИНВЕСТИЦИОНОГ ПЛАНА (5386)",{"$f":"D231","v":0}]
[5386,551100,"Нефинансијска имовина која се финансира из средстава за реализацију националног инвестиционог плана"]
[5387,600000,"ИЗДАЦИ ЗА ОТПЛАТУ ГЛАВНИЦЕ И НАБАВКУ ФИНАНСИЈСКЕ ИМОВИНЕ (5388 + 5413)",{"$f":"D233+D258","v":0}]
[5388,610000,"ОТПЛАТА ГЛАВНИЦЕ (5389 + 5399 + 5407 + 5409 + 5411)",{"$f":"D234+D244+D252+D254+D256","v":0}]
[5389,611000,"ОТПЛАТА ГЛАВНИЦЕ ДОМАЋИМ КРЕДИТОРИМА (од 5390 до 5398)",{"$f":"SUM(D235:D243)","v":0}]
[5390,611100,"Отплата главнице на домаће хартије од вредности, изузев акција"]
[5391,611200,"Отплата главнице осталим нивоима власти"]
[5392,611300,"Отплата главнице домаћим јавним финансијским институцијама"]
[5393,611400,"Отплата главнице домаћим пословним банкама"]
[5394,611500,"Отплата главнице осталим домаћим кредиторима"]
[5395,611600,"Отплата главнице домаћинствима у земљи"]
[5396,611700,"Отплата главнице на домаће финансијске деривате"]
[5397,611800,"Отплата домаћих меница"]
[5398,611900,"Исправка унутрашњег дуга"]
[5399,612000,"ОТПЛАТА ГЛАВНИЦЕ СТРАНИМ КРЕДИТОРИМА (од 5400 до 5406)",{"$f":"SUM(D245:D251)","v":0}]
[5400,612100,"Отплата главнице на хартије од вредности, изузев акција, емитоване на иностраном финансијском тржишту"]
[5401,612200,"Отплата главнице страним владама"]
[5402,612300,"Отплата главнице мултилатералним институцијама"]
[5403,612400,"Отплате главнице страним пословним банкама"]
[5404,612500,"Отплате главнице осталим страним кредиторима"]
[5405,612600,"Отплата главнице на стране финансијске деривате"]
[5406,612900,"Исправка спољног дуга"]
[5407,613000,"ОТПЛАТА ГЛАВНИЦЕ ПО ГАРАНЦИЈАМА (5408)",{"$f":"D253","v":0}]
[5408,613100,"Отплата главнице по гаранцијама"]
[5409,614000,"ОТПЛАТА ГЛАВНИЦЕ ЗА ФИНАНСИЈСКИ ЛИЗИНГ (5410)",{"$f":"D255","v":0}]
[5410,614100,"Отплата главнице за финансијски лизинг"]
[5411,615000,"ОТПЛАТА ГАРАНЦИЈА ПО КОМЕРЦИЈАЛНИМ ТРАНСАКЦИЈАМА (5412)",{"$f":"D257","v":0}]
[5412,615100,"Отплата гаранција по комерцијалним трансакцијама"]
[5413,620000,"НАБАВКА ФИНАНСИЈСКЕ ИМОВИНЕ (5414 + 5424 + 5433)",{"$f":"D259+D269+D278","v":0}]
[5414,621000,"НАБАВКА ДОМАЋЕ ФИНАНСИЈСКЕ ИМОВИНЕ (од 5415 до 5423)",{"$f":"SUM(D260:D268)","v":0}]
[5415,621100,"Набавка домаћих хартија од вредности, изузев акција"]
[5416,621200,"Кредити осталим нивоима власти"]
[5417,621300,"Кредити домаћим јавним финансијским институцијама"]
[5418,621400,"Кредити домаћим пословним банкама"]
[5419,621500,"Кредити домаћим нефинансијским јавним институцијама"]
[5420,621600,"Кредити физичким лицима и домаћинствима у земљи"]
[5421,621700,"Кредити невладиним организацијама у земљи"]
[5422,621800,"Кредити домаћим нефинансијским приватним предузећима"]
[5423,621900,"Набавка домаћих акција и осталог капитала"]
[5424,622000,"НАБАВКА СТРАНЕ ФИНАНСИЈСКЕ ИМОВИНЕ (од 5425 до 5432)",{"$f":"SUM(D270:D277)","v":0}]
[5425,622100,"Набавка страних хартија од вредности, изузев акција"]
[5426,622200,"Кредити страним владама"]
[5427,622300,"Кредити међународним организацијама"]
[5428,622400,"Кредити страним пословним банкама"]
[5429,622500,"Кредити страним нефинансијским институцијама"]
[5430,622600,"Кредити страним невладиним организацијама"]
[5431,622700,"Набавка страних акција и осталог капитала"]
[5432,622800,"Куповина стране валуте"]
[5433,623000,"НАБАВКА ФИНАНСИЈСКЕ ИМОВИНЕ КОЈА СЕ ФИНАНСИРА ИЗ СРЕДСТАВА ЗА РЕАЛИЗАЦИЈУ НАЦИОНАЛНОГ ИНВЕСТИЦИОНОГ ПЛАНА (5434)",{"$f":"D279","v":0}]
[5434,623100,"Набавка финансијске имовине која се финансира из средстава за реализацију националног инвестиционог плана "]
[5435,null,"УКУПНИ РАСХОДИ И ИЗДАЦИ (5172 + 5387)",{"$f":"D17+D232","v":0}]
[]
[]
["Саставио:",null,null,"Директор здравствене установе:"]
["______________________",null,null,"______________________________"]

{"sheet":"DP","index":9,"n_rows":33,"n_cols":5,"rows_kept":33,"merged":[[4,1,4,4]]}
["РЕПУБЛИЧКИ ФОНД ЗА ЗДРАВСТВЕНО",{"$nulls":3},"ДП"]
["ОСИГУРАЊЕ - БЕОГРАД"]
["Јована Мариновића 2"]
[]
[null,"ДИРЕКТНА ПЛАЋАЊА\nу периоду од 01.01.2020. - 30.09.2020. године"]
[]
[{"$f":"\"ФИЛИЈАЛА:   \" & Filijala","v":"ФИЛИЈАЛА:   20 НИШ"}]
[{"$f":"\"ЗДРАВСТВЕНА УСТАНОВА:  \" & ZU","v":"ЗДРАВСТВЕНА УСТАНОВА:  00220011 СП Б ОЗРЕН"}]
[]
[{"$nulls":4},"у хиљадама (000) динара"]
[null,"Р.  бр.","Конто","ПЛАЋАЊЕ ЗА КОЈЕ ЈЕ ЗУ СПРОВЕЛА ОБРАЧУНСКИ НАЛОГ","ПЛАЋАЊЕ ЗА КОЈЕ ЗУ НИЈЕ СПРОВЕЛА ОБРАЧУНСКИ НАЛОГ"]
[{"$nulls":3},3,4]
[null,"1","421200 - Енергетске услуге",{"$f":"+D14+D15","v":{"v":5656,"d":"5,656"}},{"$f":"+E14+E15","v":0}]
[null,null,"06C - Енергенти у ЗУ примарне ЗЗ"]
[null,null,"07С - Енергенти у ЗУ секундарне  ЗЗ",{"v":5656,"d":"5,656"}]
[null,2,"426700 - Медицински и лабораторијски материјали",{"$f":"SUM(D17:D32)","v":{"v":10072,"d":"10,072"}},{"$f":"SUM(E17:E32)","v":0}]
[null,null,"062 - Лекови у ЗУ примарне ЗЗ"]
[null,null,"071 - Лекови у ЗУ секундарне ЗЗ",{"v":7601,"d":"7,601"}]
[null,null,"073 - Цитистатици са листе"]
[null,null,"074 - Лекови по посебном режиму"]
[null,null,"075 - Лекови за хемофилију"]
[null,null,"986 - Октреотид и ланреотид"]
[null,null,"064 - Санитетски и медицински потрошни материјал у примарној ЗЗ"]
[null,null,"085 - Санитетски и медицински материјал потришни у секундарној и терцијарној ЗЗ",{"v":2471,"d":"2,471"}]
[null,null,"077 - Уградни материјал у ортопедији"]
[null,null,"078 - Имплантати у ортопедији "]
[null,null,"079 - Уградни материјал у кардиохирургији"]
[null,null,"081 - Пејсмејкери и електроде"]
[null,null,"082 - Стентови"]
[null,null,"083 - Графтови"]
[null,null,"084 - Остали уградни материјал"]
[null,null,"920 - Лекови ван листе лекова за лечење ретких урођених болести метаболизма"]
[null,null,"Укупно:",{"$f":"+D13+D16","v":{"v":15728,"d":"15,728"}},{"$f":"+E13+E16","v":0}]

{"sheet":"KontrolaF","index":10,"n_rows":30,"n_cols":8,"rows_kept":30,"merged":[[0,6,0,7],[11,3,11,5],[21,3,21,5],[29,3,29,5]]}
["Matični broj","Naziv ustanove","R.Br.",{"$nulls":3},"Odstupanja"]
[{"$f":"MaticniBroj","v":" 07128541"},{"$f":"NazivKorisnika","v":" Специјана болница \"Озрен\""},null,null,1,null,"u 000 decimal","u 000 din"]
[{"$nulls":4},"u decimal din","u 000 din"]
[null,null,"2","4712 iz CB                                                   --->",null,{"$f":"ROUND(E4/1000,5)","v":0}]
[]
[null,null,"3","7811 iz OZPR","--->",{"$f":"OZPR!H31","v":44}]
[]
[null,null,"4","ZBIR = 2 + 3",null,{"$f":"F4+F6","v":44}]
[]
[null,null,"5","781100 iz obrasca 5","--->",{"$f":"Obrazac5!I138","v":{"v":179509,"d":"179,509"}}]
[]
[null,null,"6","RAZLIKA = 4 - 5",null,null,{"$f":"F8-F10","v":{"v":-179465,"d":"-179,465.00000"}},{"$f":"G12","v":{"v":-179465,"d":"-179,465"}}]
[]
[null,null,"7","PRERAČUNATI PDV","--->"]
[]
[null,null,"8","PDV iz participacije","--->",{"$f":"OZPR!E31*0.1","v":0}]
[]
[null,null,"9","ZBIR = 7 + 8",null,{"$f":"F14+F16","v":0}]
[]
[null,null,"10","PDV iz K9","--->",{"$f":"K9OOSO!E22","v":0}]
[]
[null,null,"11","Odstupanje = 9 - 10",null,null,{"$f":"F18-F20","v":{"v":0,"d":"0.00000"}},{"$f":"Odstupanje_1","v":0}]
[]
[null,null,"12","Asignacije","--->",0]
[]
[null,null,"13","Realizovane asignacije iz prethodne godine","--->",0]
[]
[null,null,"14","Obrazloženo odstupanje","--->",0]
[]
[null,null,"15","Konačno odstupanje =  11 - 12 - 13 - 14",null,null,{"$f":"H22-F24-F26-F28","v":{"v":0,"d":"0.00000"}},{"$f":"G30","v":0}]